NUMERO_MANDATO;RIGA_MANDATO;QUIET;IMPORTO_RIGA;IMPORTO_MANDATO;BENEFICIARIO;CIG;TITOLO_PAGAMENTO;DATA_MANDATO;CAPITOLO;ARTICOLO;NUMERO_IMPEGNO;TITOLO;DESCR_TITOLO;LIVELLO_II;DESCR_LIVELLO_II;LIVELLO_III;DESCR_LIVELLO_III;LIVELLO_IV;DESCR_LIVELLO_IV;LIVELLO_V;DESCR_LIVELLO_V;DATA_PAG_EFF
3811;1;9999999;720;720;OMESSO NOMINATIVO NEL RISPETTO DELLA NORMATIVA SULLA PROTEZIONE DATI PERSONALI; ;riproposizione mandato CONTRIBUTO REGIONALE IMPEGNATIVA DI CURA DOMICILIARE - ICD B 1 SEMESTRE 2021 E ICD M 2 TRIMESTRE 2021. -;01/10/2021;3957;50;793;1;Spese correnti;4;Trasferimenti correnti;2;Trasferimenti correnti a Famiglie;2;Interventi assistenziali;999;Altri assegni e sussidi assistenziali;06/10/2021
3812;1;9999999;600;600;OMESSO NOMINATIVO NEL RISPETTO DELLA NORMATIVA SULLA PROTEZIONE DATI PERSONALI; ;riproposizione mandato CONTRIBUTO REGIONALE IMPEGNATIVA DI CURA DOMICILIARE - ICD B 1 SEMESTRE 2021 E ICD M 2 TRIMESTRE 2021.;01/10/2021;3957;50;811;1;Spese correnti;4;Trasferimenti correnti;2;Trasferimenti correnti a Famiglie;2;Interventi assistenziali;999;Altri assegni e sussidi assistenziali;06/10/2021
3814;1;9999999;1.000,00;1.000,00;OMESSO NOMINATIVO NEL RISPETTO DELLA NORMATIVA SULLA PROTEZIONE DATI PERSONALI; ;RATA OTTOBRE 2021 CONTRIBUTO A FAVORE DI UTENTE DISABILE PER PROSECUZIONE PROGETTO DI DOMICILIARITA;04/10/2021;4157;0;602;1;Spese correnti;4;Trasferimenti correnti;2;Trasferimenti correnti a Famiglie;2;Interventi assistenziali;999;Altri assegni e sussidi assistenziali;07/10/2021
3815;1;9999999;150;150;OMESSO NOMINATIVO NEL RISPETTO DELLA NORMATIVA SULLA PROTEZIONE DATI PERSONALI; ;OTTOBRE 2021 AFFIDO FAMILIARE;04/10/2021;3757;50;282;1;Spese correnti;4;Trasferimenti correnti;2;Trasferimenti correnti a Famiglie;2;Interventi assistenziali;999;Altri assegni e sussidi assistenziali;07/10/2021
3816;1;9999999;36,41;36,41;C/C/P 15453301 SERVIZIO DI TESORERIA COM; ;SPESE DI GESTIONE CCP 15453301 MESE DI AGOSTO 2021;05/10/2021;146;0;0;1;Spese correnti;3;Acquisto di beni e servizi;2;Acquisto di servizi;17;Servizi finanziari;999;Spese per servizi finanziari n.a.c.;07/10/2021
3817;1;9999999;300;300;F.B.F. IMPIANTI SRL;Z672E75E6E;ACCONTO Fatt.n. 108FPA  del 20/09/2021 CANONE MANUTENZIONE ORDINARIA  IMPIANTI MECCANICI - 4 TRIMESTRE STAGIONE 2020 -2021;05/10/2021;134;30;135;1;Spese correnti;3;Acquisto di beni e servizi;2;Acquisto di servizi;5;Utenze e canoni;6;Gas;07/10/2021
3818;1;9999999;1.693,26;1.693,26;F.B.F. IMPIANTI SRL;Z672E75E6E;ACCONTO Fatt.n. 108FPA  del 20/09/2021 CANONE MANUTENZIONE ORDINARIA  IMPIANTI MECCANICI - 4 TRIMESTRE STAGIONE 2020 -2021;05/10/2021;134;31;136;1;Spese correnti;3;Acquisto di beni e servizi;2;Acquisto di servizi;5;Utenze e canoni;6;Gas;07/10/2021
3819;1;9999999;3.294,56;3.294,56;COOP.SOCIALE LIBERTA' ONLUS;Z05313C21F;SALDO Fatt.n. 691  del 31/08/2021  AGOSTO 2021 - SERVIZIO DI PULIZIA E SANIFICAZIONE UFFICI COMUNALI;05/10/2021;142;0;358;1;Spese correnti;3;Acquisto di beni e servizi;2;Acquisto di servizi;13;Servizi ausiliari per il funzionamento dell'ente;2;Servizi di pulizia e lavanderia;07/10/2021
3820;1;9999999;140,3;140,3;VEDETTA 2 MONDIALPOL SPA;ZD032B120B;SALDO Fatt.n. VZ-11222  del 09/09/2021 AGOSTO 2021  - SERVIZIODI COLLEGAMENTO - ALLARME  - VIGILANZA NOTTURNA MAGAZZINO COMUNALE E VILLA FARSETTI;05/10/2021;548;0;688;1;Spese correnti;3;Acquisto di beni e servizi;2;Acquisto di servizi;9;Manutenzione ordinaria e riparazioni;8;Manutenzione ordinaria e riparazioni di beni immobili;07/10/2021
3821;1;9999999;2.791,97;2.791,97;F.B.F. IMPIANTI SRL;Z672E75E6E;SALDO Fatt.n. 109FPA  del 20/09/2021 PERIODO 4-TRIMESTRE STAGIONE 2020/2021 SERVIZIO DI CONDUZIONE E MANUTENZIONE ORDINARIA DEGLI IMPIANTI TERMICI PALESTRE COMUNALI (INTEGRAZIONE IVA REVERSE CHARGE);05/10/2021;1334;30;143;1;Spese correnti;3;Acquisto di beni e servizi;2;Acquisto di servizi;5;Utenze e canoni;6;Gas;07/10/2021
3822;1;9999999;2.148,33;2.148,33;F.B.F. IMPIANTI SRL;Z672E75E6E;ACCONTO Fatt.n. 108FPA  del 20/09/2021 CANONE MANUTENZIONE ORDINARIA  IMPIANTI MECCANICI - 4 TRIMESTRE STAGIONE 2020 -2021;05/10/2021;1334;30;143;1;Spese correnti;3;Acquisto di beni e servizi;2;Acquisto di servizi;5;Utenze e canoni;6;Gas;07/10/2021
3823;1;9999999;70,66;70,66;PULIAUTOMATIC SRL;ZD732EA5BA;ACCONTO Fatt.n. 20000151/V12  del 15/09/2021 RIPARAZIONE LAVASCIUGA Mod. JADE 50B MATR.05020103 PALESTRA VETERNIGO;05/10/2021;1338;0;721;1;Spese correnti;3;Acquisto di beni e servizi;2;Acquisto di servizi;9;Manutenzione ordinaria e riparazioni;5;Manutenzione ordinaria e riparazioni di attrezzature;07/10/2021
3824;1;9999999;950;950;F.B.F. IMPIANTI SRL;Z672E75E6E;ACCONTO Fatt.n. 108FPA  del 20/09/2021 CANONE MANUTENZIONE ORDINARIA  IMPIANTI MECCANICI - 4 TRIMESTRE STAGIONE 2020 -2021;05/10/2021;1834;0;137;1;Spese correnti;3;Acquisto di beni e servizi;2;Acquisto di servizi;5;Utenze e canoni;6;Gas;07/10/2021
3825;1;9999999;600;600;F.B.F. IMPIANTI SRL;Z672E75E6E;ACCONTO Fatt.n. 108FPA  del 20/09/2021 CANONE MANUTENZIONE ORDINARIA  IMPIANTI MECCANICI - 4 TRIMESTRE STAGIONE 2020 -2021;05/10/2021;1934;0;138;1;Spese correnti;3;Acquisto di beni e servizi;2;Acquisto di servizi;5;Utenze e canoni;6;Gas;07/10/2021
3826;1;9999999;70,66;70,66;PULIAUTOMATIC SRL;ZD732EA5BA;SALDO Fatt.n. 20000151/V12  del 15/09/2021 RIPARAZIONE LAVASCIUGA Mod. JADE 50B MATR.05020103 PALESTRA VETERNIGO;05/10/2021;1938;0;722;1;Spese correnti;3;Acquisto di beni e servizi;2;Acquisto di servizi;9;Manutenzione ordinaria e riparazioni;5;Manutenzione ordinaria e riparazioni di attrezzature;07/10/2021
3827;1;9999999;250;250;F.B.F. IMPIANTI SRL;Z672E75E6E;ACCONTO Fatt.n. 108FPA  del 20/09/2021 CANONE MANUTENZIONE ORDINARIA  IMPIANTI MECCANICI - 4 TRIMESTRE STAGIONE 2020 -2021;05/10/2021;3534;0;139;1;Spese correnti;3;Acquisto di beni e servizi;2;Acquisto di servizi;5;Utenze e canoni;6;Gas;07/10/2021
3828;1;9999999;127,6;26.668,83;SOC. SOCIOCULTURALE COOP. SOCIALE;80171200B8;SALDO Fatt.n. 2792 PAS  del 13/09/2021 INTEGRAZIONE MESE DI GIUGNO 2021 - ASSISTENZA DOMICILIARE E TRASPORTO;05/10/2021;3944;0;975;1;Spese correnti;3;Acquisto di beni e servizi;2;Acquisto di servizi;15;Contratti di servizio pubblico;9;Contratti di servizio di assistenza sociale domiciliare;07/10/2021
3828;2;9999999;192,05;26.668,83;SOC. SOCIOCULTURALE COOP. SOCIALE;80171200B8;SALDO Fatt.n. 2791 PAS  del 13/09/2021 INTEGRAZIONE MESE DI MAGGIO 2021 - ASSISTENZA DOMICILIARE E TRASPORTO;05/10/2021;3944;0;975;1;Spese correnti;3;Acquisto di beni e servizi;2;Acquisto di servizi;15;Contratti di servizio pubblico;9;Contratti di servizio di assistenza sociale domiciliare;07/10/2021
3828;3;9999999;12.892,65;26.668,83;SOC. SOCIOCULTURALE COOP. SOCIALE;80171200B8;SALDO Fatt.n. 2819 PAS  del 14/09/2021 MESE DI AGOSTO 2021 - ASSISTENZA DOMICILIARE E TRASPORTO;05/10/2021;3944;0;975;1;Spese correnti;3;Acquisto di beni e servizi;2;Acquisto di servizi;15;Contratti di servizio pubblico;9;Contratti di servizio di assistenza sociale domiciliare;07/10/2021
3828;4;9999999;13.456,53;26.668,83;SOC. SOCIOCULTURALE COOP. SOCIALE;80171200B8;SALDO Fatt.n. 2818 PAS  del 14/09/2021 MESE DI LUGLIO 2021 - ASSISTENZA DOMICILIARE E TRASPORTO;05/10/2021;3944;0;975;1;Spese correnti;3;Acquisto di beni e servizi;2;Acquisto di servizi;15;Contratti di servizio pubblico;9;Contratti di servizio di assistenza sociale domiciliare;07/10/2021
3829;1;9999999;1.200,00;1.200,00;F.B.F. IMPIANTI SRL;Z672E75E6E;SALDO Fatt.n. 108FPA  del 20/09/2021 CANONE MANUTENZIONE ORDINARIA  IMPIANTI MECCANICI - 4 TRIMESTRE STAGIONE 2020 -2021;05/10/2021;4234;0;140;1;Spese correnti;3;Acquisto di beni e servizi;2;Acquisto di servizi;5;Utenze e canoni;6;Gas;07/10/2021
3830;1;9999999;1.439,60;1.439,60;BADO S.R.L.;ZD63299838;SALDO Fatt.n. 1/112  del 17/09/2021 FORNITURA ARMADIO PER UFFICIO TRIBUTI;05/10/2021;7420;5;678;2;Spese in conto capitale;2;Investimenti fissi lordi e acquisto di terreni;1;Beni materiali;99;Altri beni materiali;999;Altri beni materiali diversi;07/10/2021
3831;1;9999999;4.948,32;4.948,32;BUGGIN ANTONIO;ZFA2AF1CBA;SALDO Fatt.n. FATTPA 28_21  del 14/09/2021 VARIANTE GENERALE AL PIANO INTERVENTI;05/10/2021;8699;1;1265;2;Spese in conto capitale;2;Investimenti fissi lordi e acquisto di terreni;3;Beni immateriali;99;Spese di investimento per beni immateriali n.a.c.;1;Spese di investimento per beni immateriali n.a.c.;07/10/2021
3835;1;9999999;1.348,25;1.348,25;CITTA' METROPOLITANA DI VENEZIA; ;SUA PER CONTO DEL  COMUNE DI SANTA MARIA DI SALA /RIMBORSO SPESE PER ESPLETAMENTO PROCEDURA APERTA IN AMBITO U.E. PER AFFIDAM. SERVIZIO TRASPORTO SCOLASTICO ALUNNI IST.COMPRESIVO A.S. 21/22-22/23-23-24 CIG. 8704892021;06/10/2021;1344;0;382;1;Spese correnti;3;Acquisto di beni e servizi;2;Acquisto di servizi;15;Contratti di servizio pubblico;2;Contratti di servizio di trasporto scolastico;08/10/2021
3836;1;9999999;2.340,07;2.340,07;CITTA' METROPOLITANA DI VENEZIA;8704892021;SUA PER CONTO DEL  COMUNE DI SANTA MARIA DI SALA /RIMBORSO SPESE PER ESPLETAMENTO PROCEDURA APERTA IN AMBITO U.E. PER AFFIDAM. SERVIZIO TRASPORTO SCOLASTICO ALUNNI IST.COMPRESIVO A.S. 21/22-22/23-23-24 CIG. 8704892021;06/10/2021;1344;0;383;1;Spese correnti;3;Acquisto di beni e servizi;2;Acquisto di servizi;15;Contratti di servizio pubblico;2;Contratti di servizio di trasporto scolastico;08/10/2021
3837;1;9999999;69,4;69,4;BARBATO BARBARA ECONOMO COMUNALE; ;Rimborso bollette;06/10/2021;121;6;66;1;Spese correnti;3;Acquisto di beni e servizi;1;Acquisto di beni;2;Altri beni di consumo;1;Carta, cancelleria e stampati;08/10/2021
3838;1;9999999;23,29;23,29;BARBATO BARBARA ECONOMO COMUNALE; ;Rimborso bollette;06/10/2021;145;0;14;1;Spese correnti;3;Acquisto di beni e servizi;2;Acquisto di servizi;16;Servizi amministrativi;2;Spese postali;08/10/2021
3839;1;9999999;2,5;2,5;BARBATO BARBARA ECONOMO COMUNALE; ;Rimborso bollette;06/10/2021;748;0;576;1;Spese correnti;3;Acquisto di beni e servizi;2;Acquisto di servizi;19;Servizi informatici e di telecomunicazioni;2;Assistenza all'utente e formazione;08/10/2021
3840;1;9999999;120;120;BARBATO BARBARA ECONOMO COMUNALE; ;Rimborso bollette;06/10/2021;1821;0;38;1;Spese correnti;3;Acquisto di beni e servizi;1;Acquisto di beni;2;Altri beni di consumo;999;Altri beni e materiali di consumo n.a.c.;08/10/2021
3841;1;9999999;254,93;254,93;AGENZIA DELLE ENTRATE - IVA; ;LIQUIDAZIONE IVA COMMERCIALE MESE DI SETTEMBRE 2021;07/10/2021;291;0;852;1;Spese correnti;10;Altre spese correnti;3;Versamenti IVA a debito;1;Versamenti IVA a debito per le gestioni commerciali;1;Versamenti IVA a debito per le gestioni commerciali;22/10/2021
3842;1;9999999;31,99;31,99;C/C/P 15453301 SERVIZIO DI TESORERIA COM; ;SPESE DI GESTIONE CCP 15453301 MESE DI SETTEMBRE 2021;07/10/2021;146;0;0;1;Spese correnti;3;Acquisto di beni e servizi;2;Acquisto di servizi;17;Servizi finanziari;999;Spese per servizi finanziari n.a.c.;12/10/2021
3843;1;9999999;23,49;23,49;C/C/P 1039683022 -RISCOSSIONE COATTIVA EX ICP DPA; ;SPESE GESTIONE CCP 1039683022 RISOSSIONE COATTIVA MESE DI AGOSTO 2021;11/10/2021;146;0;0;1;Spese correnti;3;Acquisto di beni e servizi;2;Acquisto di servizi;17;Servizi finanziari;999;Spese per servizi finanziari n.a.c.;15/10/2021
3844;1;9999999;23,49;23,49;C/C/P 1039683022 -RISCOSSIONE COATTIVA EX ICP DPA; ;SPESE GESTIONE CONTO RISCOSSIONE COATTIVA RENDICONTO SETTEMBRE 2021 EX ICP SERVIZIO TESORERIA C/C 001039683022;12/10/2021;146;0;0;1;Spese correnti;3;Acquisto di beni e servizi;2;Acquisto di servizi;17;Servizi finanziari;999;Spese per servizi finanziari n.a.c.;15/10/2021
3845;1;9999999;707,6;707,6;CHIP COMPUTERS SRL;ZA632EFF78;SALDO Fatt.n. 95/7  del 27/09/2021 CARNET 10 ORE FINALIZZATO AL TRASFERIMENTO DELLA SOLUZIONE MULTIMEDIALE NELLA SEDE PRINCIPALE DEL COMUNE;12/10/2021;748;0;724;1;Spese correnti;3;Acquisto di beni e servizi;2;Acquisto di servizi;19;Servizi informatici e di telecomunicazioni;5;Servizi per i sistemi e relativa manutenzione;15/10/2021
3846;1;9999999;590;590;REGGIANI CONSULTING SRL;ZF72CDA91E;SALDO Fatt.n. 20210288  del 30/06/2021 SERVIZIO DI FORMAZIONEIN AULA SUL REGOLAMENTO GENERALE SULLA PROTEZIONE DEI DATI E SUL NOVELLATO CODICE PRIVACY;12/10/2021;833;0;438;1;Spese correnti;3;Acquisto di beni e servizi;2;Acquisto di servizi;4;Acquisto di servizi per formazione e addestramento del personale dell'ente;4;Acquisto di servizi per formazione obbligatoria;15/10/2021
3847;1;9999999;305;305;GRAFICHE QUATTRO SRL;Z60332F313;SALDO Fatt.n. 000009-0CPAPA  del 30/09/2021 STAMPA VOLANTINI  - METTIAMOCI AL LAVORO -;12/10/2021;1831;0;848;1;Spese correnti;3;Acquisto di beni e servizi;2;Acquisto di servizi;2;Organizzazione eventi, pubblicita` e servizi per trasferta;4;Pubblicita`;15/10/2021
3848;1;9999999;-3.874,72;1.937,36;COM.TEL SPA;Z1B3229786;SALDO Fatt.n. 40002  del 29/09/2021 STORNO PARZIALE SU FT N. 40050 DEL 27.07.2021 PER MAGGIOR IMPORTO FATTURATO;12/10/2021;748;0;595;1;Spese correnti;3;Acquisto di beni e servizi;2;Acquisto di servizi;19;Servizi informatici e di telecomunicazioni;4;Servizi di rete per trasmissione dati e VoIP e relativa manutenzione;15/10/2021
3848;2;9999999;5.812,08;1.937,36;COM.TEL SPA;Z1B3229786;SALDO Fatt.n. 40050  del 27/07/2021 SERVIZIO DI MANUTENZIONE CENTRALINO TELEFONICO;12/10/2021;748;0;595;1;Spese correnti;3;Acquisto di beni e servizi;2;Acquisto di servizi;19;Servizi informatici e di telecomunicazioni;4;Servizi di rete per trasmissione dati e VoIP e relativa manutenzione;15/10/2021
3850;1;9999999;580;580;ZACCHELLO SAS DI ZACCHELLO LORIS E C.; ;FORNITURA PRODOTTI ALIMENTARI E GENERI DI PRIMA NECESSITA;12/10/2021;4122;0;1329;1;Spese correnti;3;Acquisto di beni e servizi;1;Acquisto di beni;2;Altri beni di consumo;11;Generi alimentari;15/10/2021
3851;1;9999999;300;300;NEGRO GIROLAMO; ;NOTA DI ADDEBITO N. 2/2021 PRODOTTI ALIMENTARI O GENERI DI PRIMA NECESSITA;12/10/2021;4122;0;1329;1;Spese correnti;3;Acquisto di beni e servizi;1;Acquisto di beni;2;Altri beni di consumo;11;Generi alimentari;15/10/2021
3852;1;9999999;50;50;UNICOMM SRL SOC. UNIPERSONALE; ;NOTA DI ADDEBITO N. 746/2021 LUGLIO 21 FORNITURA PRODOTTI ALIMENTARI E GENERI DI PRIMA NECESSITA;12/10/2021;4122;0;1329;1;Spese correnti;3;Acquisto di beni e servizi;1;Acquisto di beni;2;Altri beni di consumo;11;Generi alimentari;15/10/2021
3855;1;9999999;36,42;36,42;COMUNE DI S.MARIA DI SALA; ;CONTRIBUTO IFEL RISCOSSIONE IMU PRELEVAMENTO AL 12.10.2021;12/10/2021;332;0;0;1;Spese correnti;3;Acquisto di beni e servizi;2;Acquisto di servizi;3;Aggi di riscossione;999;Altri aggi di riscossione n.a.c.;15/10/2021
3856;1;9999999;10,79;10,79;COMUNE DI S.MARIA DI SALA; ;CONTRIBUTO IFEL RISCOSSIONE IMU RENDICONTO AL 15.09.2021;12/10/2021;332;0;0;1;Spese correnti;3;Acquisto di beni e servizi;2;Acquisto di servizi;3;Aggi di riscossione;999;Altri aggi di riscossione n.a.c.;18/10/2021
3858;1;9999999;200;200;OMESSO NOMINATIVO NEL RISPETTO DELLA NORMATIVA SULLA PROTEZIONE DATI PERSONALI; ;SETTEMBRE 2021 PROGETTO RIA;14/10/2021;3957;54;146;1;Spese correnti;4;Trasferimenti correnti;2;Trasferimenti correnti a Famiglie;5;Altri trasferimenti a famiglie;999;Altri trasferimenti a famiglie n.a.c.;21/10/2021
3859;1;9999999;200;200;OMESSO NOMINATIVO NEL RISPETTO DELLA NORMATIVA SULLA PROTEZIONE DATI PERSONALI; ;SETTEMBRE 2021 PROGETTO RIA;14/10/2021;3957;54;146;1;Spese correnti;4;Trasferimenti correnti;2;Trasferimenti correnti a Famiglie;5;Altri trasferimenti a famiglie;999;Altri trasferimenti a famiglie n.a.c.;26/10/2021
3860;1;9999999;200;200;OMESSO NOMINATIVO NEL RISPETTO DELLA NORMATIVA SULLA PROTEZIONE DATI PERSONALI; ;SETTEMBRE 2021 PROGETTO RIA;14/10/2021;3957;54;146;1;Spese correnti;4;Trasferimenti correnti;2;Trasferimenti correnti a Famiglie;5;Altri trasferimenti a famiglie;999;Altri trasferimenti a famiglie n.a.c.;11/11/2021
3861;1;9999999;200;200;OMESSO NOMINATIVO NEL RISPETTO DELLA NORMATIVA SULLA PROTEZIONE DATI PERSONALI; ;SETTEMBRE 2021 PROGETTO RIA;14/10/2021;3957;54;146;1;Spese correnti;4;Trasferimenti correnti;2;Trasferimenti correnti a Famiglie;5;Altri trasferimenti a famiglie;999;Altri trasferimenti a famiglie n.a.c.;18/10/2021
3862;1;9999999;200;200;OMESSO NOMINATIVO NEL RISPETTO DELLA NORMATIVA SULLA PROTEZIONE DATI PERSONALI; ;SETTEMBRE 2021 PROGETTO RIA;14/10/2021;3957;54;146;1;Spese correnti;4;Trasferimenti correnti;2;Trasferimenti correnti a Famiglie;5;Altri trasferimenti a famiglie;999;Altri trasferimenti a famiglie n.a.c.;18/10/2021
3863;1;9999999;100;100;OMESSO NOMINATIVO NEL RISPETTO DELLA NORMATIVA SULLA PROTEZIONE DATI PERSONALI; ;OTTOBRE 2021 MINIMO VITALE;14/10/2021;4157;0;615;1;Spese correnti;4;Trasferimenti correnti;2;Trasferimenti correnti a Famiglie;2;Interventi assistenziali;999;Altri assegni e sussidi assistenziali;21/10/2021
3864;1;9999999;100;100;OMESSO NOMINATIVO NEL RISPETTO DELLA NORMATIVA SULLA PROTEZIONE DATI PERSONALI; ;OTTOBRE 2021 MINIMO VITALE;14/10/2021;4157;0;872;1;Spese correnti;4;Trasferimenti correnti;2;Trasferimenti correnti a Famiglie;2;Interventi assistenziali;999;Altri assegni e sussidi assistenziali;25/10/2021
3865;1;9999999;150;150;OMESSO NOMINATIVO NEL RISPETTO DELLA NORMATIVA SULLA PROTEZIONE DATI PERSONALI; ;OTTOBRE 2021 MINIMO VITALE;14/10/2021;4157;0;621;1;Spese correnti;4;Trasferimenti correnti;2;Trasferimenti correnti a Famiglie;2;Interventi assistenziali;999;Altri assegni e sussidi assistenziali;26/10/2021
3866;1;9999999;150;150;OMESSO NOMINATIVO NEL RISPETTO DELLA NORMATIVA SULLA PROTEZIONE DATI PERSONALI; ;OTTOBRE 2021 MINIMO VITALE;14/10/2021;4157;0;480;1;Spese correnti;4;Trasferimenti correnti;2;Trasferimenti correnti a Famiglie;2;Interventi assistenziali;999;Altri assegni e sussidi assistenziali;25/10/2021
3867;1;9999999;150;150;OMESSO NOMINATIVO NEL RISPETTO DELLA NORMATIVA SULLA PROTEZIONE DATI PERSONALI; ;OTTOBRE 2021 MINIMO VITALE;14/10/2021;4157;0;873;1;Spese correnti;4;Trasferimenti correnti;2;Trasferimenti correnti a Famiglie;2;Interventi assistenziali;999;Altri assegni e sussidi assistenziali;05/11/2021
3868;1;9999999;200;200;OMESSO NOMINATIVO NEL RISPETTO DELLA NORMATIVA SULLA PROTEZIONE DATI PERSONALI; ;OTTOBRE 2021 MINIMO VITALE;14/10/2021;4157;0;874;1;Spese correnti;4;Trasferimenti correnti;2;Trasferimenti correnti a Famiglie;2;Interventi assistenziali;999;Altri assegni e sussidi assistenziali;10/11/2021
3869;1;9999999;500;500;OMESSO NOMINATIVO NEL RISPETTO DELLA NORMATIVA SULLA PROTEZIONE DATI PERSONALI; ;OTTOBRE 2021 MINIMO VITALE;14/10/2021;4157;51;645;1;Spese correnti;4;Trasferimenti correnti;2;Trasferimenti correnti a Famiglie;2;Interventi assistenziali;999;Altri assegni e sussidi assistenziali;10/11/2021
3870;1;9999999;100;100;OMESSO NOMINATIVO NEL RISPETTO DELLA NORMATIVA SULLA PROTEZIONE DATI PERSONALI; ;OTTOBRE 2021 MINIMO VITALE;14/10/2021;4157;0;695;1;Spese correnti;4;Trasferimenti correnti;2;Trasferimenti correnti a Famiglie;2;Interventi assistenziali;999;Altri assegni e sussidi assistenziali;11/11/2021
3871;1;9999999;100;100;OMESSO NOMINATIVO NEL RISPETTO DELLA NORMATIVA SULLA PROTEZIONE DATI PERSONALI; ;OTTOBRE 2021 MINIMO VITALE;14/10/2021;4157;0;422;1;Spese correnti;4;Trasferimenti correnti;2;Trasferimenti correnti a Famiglie;2;Interventi assistenziali;999;Altri assegni e sussidi assistenziali;05/11/2021
3872;1;9999999;700;700;OMESSO NOMINATIVO NEL RISPETTO DELLA NORMATIVA SULLA PROTEZIONE DATI PERSONALI; ;OTTOBRE 2021 PROGETTO RILEVANZA SOCIALE;14/10/2021;4157;0;91;1;Spese correnti;4;Trasferimenti correnti;2;Trasferimenti correnti a Famiglie;2;Interventi assistenziali;999;Altri assegni e sussidi assistenziali;18/10/2021
3873;1;9999999;360;360;OMESSO NOMINATIVO NEL RISPETTO DELLA NORMATIVA SULLA PROTEZIONE DATI PERSONALI; ;OTTOBRE 2021 MINIMO VITALE;14/10/2021;4157;0;875;1;Spese correnti;4;Trasferimenti correnti;2;Trasferimenti correnti a Famiglie;2;Interventi assistenziali;999;Altri assegni e sussidi assistenziali;19/10/2021
3874;1;9999999;150;150;OMESSO NOMINATIVO NEL RISPETTO DELLA NORMATIVA SULLA PROTEZIONE DATI PERSONALI; ;OTTOBRE 2021 MINIMO VITALE;14/10/2021;4157;0;482;1;Spese correnti;4;Trasferimenti correnti;2;Trasferimenti correnti a Famiglie;2;Interventi assistenziali;999;Altri assegni e sussidi assistenziali;18/10/2021
3875;1;9999999;4.240,33;4.240,33;TRIVELLATO ENNIO; ;RESTITUZIONE DEL CONTRIBUTO DI COSTRUZIONE  RELATIVO AL PERMESSO DI COSTRUIRE N.9141 / 2007;14/10/2021;8820;0;878;2;Spese in conto capitale;5;Altre spese in conto capitale;99;Altre spese in conto capitale n.a.c.;99;Altre spese in conto capitale n.a.c.;999;Altre spese in conto capitale n.a.c.;18/10/2021
3876;1;9999999;-0,12;20,45;V.E.R.I.T.A.S. SPA; ;SALDO Fatt.n. 600006235436  del 14/09/2021 PERIODO 22.01.2021-31.08.2021 - NOTA DI ACCREDITO PER CONG. CONSUMI;14/10/2021;134;30;127;1;Spese correnti;3;Acquisto di beni e servizi;2;Acquisto di servizi;5;Utenze e canoni;5;Acqua;18/10/2021
3876;2;9999999;20,57;20,45;V.E.R.I.T.A.S. SPA; ;SALDO Fatt.n. 600006235427  del 14/09/2021 PERIODO 21.01.2021-31.08.2021 - CONSUMI MERCATO CALTANA;14/10/2021;134;30;127;1;Spese correnti;3;Acquisto di beni e servizi;2;Acquisto di servizi;5;Utenze e canoni;5;Acqua;18/10/2021
3877;1;9999999;-89,21;175,69;V.E.R.I.T.A.S. SPA; ;SALDO Fatt.n. 600006235430  del 14/09/2021 PERIODO13.01.2021-31.08.2021 - NOTA DI ACCREDITO PER CONG. CONSUMI;14/10/2021;134;31;128;1;Spese correnti;3;Acquisto di beni e servizi;2;Acquisto di servizi;5;Utenze e canoni;5;Acqua;18/10/2021
3877;2;9999999;-16,12;175,69;V.E.R.I.T.A.S. SPA; ;SALDO Fatt.n. 600006235464  del 14/09/2021 PERIODO 25.01.2020-31.08.2021 - NOTA DI ACCREDITO PER CONG. CONSUMI;14/10/2021;134;31;128;1;Spese correnti;3;Acquisto di beni e servizi;2;Acquisto di servizi;5;Utenze e canoni;5;Acqua;18/10/2021
3877;3;9999999;281,02;175,69;V.E.R.I.T.A.S. SPA; ;SALDO Fatt.n. 600006235437  del 14/09/2021 PERIODO 23.01.2021-31.08.2021 - CONSUMI SEDE MUNICIPALE;14/10/2021;134;31;128;1;Spese correnti;3;Acquisto di beni e servizi;2;Acquisto di servizi;5;Utenze e canoni;5;Acqua;18/10/2021
3878;1;9999999;2,63;170,09;V.E.R.I.T.A.S. SPA; ;SALDO Fatt.n. 600006235456  del 14/09/2021 PERIODO 10.01.2021-31.08.2021 - CONSUMI P.ZZA S.D.A. CALTANA;14/10/2021;134;31;128;1;Spese correnti;3;Acquisto di beni e servizi;2;Acquisto di servizi;5;Utenze e canoni;5;Acqua;18/10/2021
3878;2;9999999;11,64;170,09;V.E.R.I.T.A.S. SPA; ;SALDO Fatt.n. 600006235458  del 14/09/2021 PERIODO 16.01.2021-31.08.2021 -  CONSUMI MANIFESTAZIONE CALTANA;14/10/2021;134;31;128;1;Spese correnti;3;Acquisto di beni e servizi;2;Acquisto di servizi;5;Utenze e canoni;5;Acqua;18/10/2021
3878;3;9999999;28,07;170,09;V.E.R.I.T.A.S. SPA; ;SALDO Fatt.n. 600006235445  del 14/09/2021 PERIODO 16.01.2021-31.08.2021 - CONSUMI DISTRIBUTORE ACQUA CASELLE;14/10/2021;134;31;128;1;Spese correnti;3;Acquisto di beni e servizi;2;Acquisto di servizi;5;Utenze e canoni;5;Acqua;18/10/2021
3878;4;9999999;46,33;170,09;V.E.R.I.T.A.S. SPA; ;SALDO Fatt.n. 600006235457  del 14/09/2021 PERIODO 02.07.2020-31.08.2021 - ANTINCENDIO PARCHEGGIO STIGLIANO;14/10/2021;134;31;128;1;Spese correnti;3;Acquisto di beni e servizi;2;Acquisto di servizi;5;Utenze e canoni;5;Acqua;18/10/2021
3878;5;9999999;81,42;170,09;V.E.R.I.T.A.S. SPA; ;SALDO Fatt.n. 600006235455  del 14/09/2021 PERIODO 20.01.2021-31.08.2021 - CONSUMI PIAZZA ACTV CALTANA;14/10/2021;134;31;128;1;Spese correnti;3;Acquisto di beni e servizi;2;Acquisto di servizi;5;Utenze e canoni;5;Acqua;18/10/2021
3879;1;9999999;-500,82;2.618,65;V.E.R.I.T.A.S. SPA; ;SALDO Fatt.n. 600006235438  del 14/09/2021 PERIODO10.07.2020-31.08.2021 - NOTA DI ACCREDITO PER CONG. CONSUMI;14/10/2021;1334;30;129;1;Spese correnti;3;Acquisto di beni e servizi;2;Acquisto di servizi;5;Utenze e canoni;5;Acqua;18/10/2021
3879;2;9999999;-412,12;2.618,65;V.E.R.I.T.A.S. SPA; ;SALDO Fatt.n. 600006235454  del 14/09/2021 PERIODO 02.07.2020-31.08.2021 - NOTA DI ACCREDITO PER CONG. CONSUMI;14/10/2021;1334;30;129;1;Spese correnti;3;Acquisto di beni e servizi;2;Acquisto di servizi;5;Utenze e canoni;5;Acqua;18/10/2021
3879;3;9999999;-161,11;2.618,65;V.E.R.I.T.A.S. SPA; ;SALDO Fatt.n. 600006235450  del 14/09/2021 PERIODO 15.01.2021-31.08.2021 - NOTA DI ACCREDITO PER CONG. CONSUMI;14/10/2021;1334;30;129;1;Spese correnti;3;Acquisto di beni e servizi;2;Acquisto di servizi;5;Utenze e canoni;5;Acqua;18/10/2021
3879;4;9999999;-134,88;2.618,65;V.E.R.I.T.A.S. SPA; ;SALDO Fatt.n. 600006235449  del 14/09/2021 PERIODO 21.01.2021-31.08.2021 - NOTA DI ACCREDITO PER CONG. CONSUMI;14/10/2021;1334;30;129;1;Spese correnti;3;Acquisto di beni e servizi;2;Acquisto di servizi;5;Utenze e canoni;5;Acqua;18/10/2021
3879;5;9999999;3.827,58;2.618,65;V.E.R.I.T.A.S. SPA; ;SALDO Fatt.n. 600006235435  del 14/09/2021 PERIODO 23.01.2021-31.08.2021 - CONSUMI VILLA FARSETTI;14/10/2021;1334;30;129;1;Spese correnti;3;Acquisto di beni e servizi;2;Acquisto di servizi;5;Utenze e canoni;5;Acqua;18/10/2021
3880;1;9999999;46,35;328,02;V.E.R.I.T.A.S. SPA; ;SALDO Fatt.n. 600006235439  del 14/09/2021 PERIODO 22.01.2021-31.08.2021 - ANTINCENDIO SCUOLA MEDIA SMS;14/10/2021;1334;30;129;1;Spese correnti;3;Acquisto di beni e servizi;2;Acquisto di servizi;5;Utenze e canoni;5;Acqua;18/10/2021
3880;2;9999999;46,37;328,02;V.E.R.I.T.A.S. SPA; ;SALDO Fatt.n. 600006235441  del 14/09/2021 PERIODO 10.01.2021-31.08.2021 - ANTINCENDIO SC. ELEM. CALTANA;14/10/2021;1334;30;129;1;Spese correnti;3;Acquisto di beni e servizi;2;Acquisto di servizi;5;Utenze e canoni;5;Acqua;18/10/2021
3880;3;9999999;108,68;328,02;V.E.R.I.T.A.S. SPA; ;SALDO Fatt.n. 600006235440  del 14/09/2021 PERIODO 22.01.2021-31.08.2021 - CONSUMI SC. ELEM. SMS;14/10/2021;1334;30;129;1;Spese correnti;3;Acquisto di beni e servizi;2;Acquisto di servizi;5;Utenze e canoni;5;Acqua;18/10/2021
3880;4;9999999;126,62;328,02;V.E.R.I.T.A.S. SPA; ;SALDO Fatt.n. 600006235428  del 14/09/2021 PERIODO 15.01.2021-31.08.2021 - CONSUMI SC. ELEM. CALTANA;14/10/2021;1334;30;129;1;Spese correnti;3;Acquisto di beni e servizi;2;Acquisto di servizi;5;Utenze e canoni;5;Acqua;18/10/2021
3881;1;9999999;32,12;32,12;V.E.R.I.T.A.S. SPA; ;ACCONTO Fatt.n. 600006235471  del 14/09/2021 PERIODO 10.01.2021-31.08.2021 - CONSUMI PALESTRA CALTANA;14/10/2021;1334;30;129;1;Spese correnti;3;Acquisto di beni e servizi;2;Acquisto di servizi;5;Utenze e canoni;5;Acqua;18/10/2021
3882;1;9999999;23,17;23,17;V.E.R.I.T.A.S. SPA; ;ACCONTO Fatt.n. 600006235472  del 14/09/2021 PERIODO 10.01.2021-31.08.2021 - ANTINCENDIO PALESTRA CALTANA;14/10/2021;1334;30;129;1;Spese correnti;3;Acquisto di beni e servizi;2;Acquisto di servizi;5;Utenze e canoni;5;Acqua;18/10/2021
3883;1;9999999;9;9;V.E.R.I.T.A.S. SPA; ;ACCONTO Fatt.n. 600006235442  del 14/09/2021 PERIODO 01.07.2021-31.08.2021 - ANTINCENDIO SC. ELEM - PALESTRA CASELLE;14/10/2021;1334;30;129;1;Spese correnti;3;Acquisto di beni e servizi;2;Acquisto di servizi;5;Utenze e canoni;5;Acqua;18/10/2021
3884;1;9999999;28,34;28,34;V.E.R.I.T.A.S. SPA; ;ACCONTO Fatt.n. 600006235442  del 14/09/2021 PERIODO 01.07.2021-31.08.2021 - ANTINCENDIO SC. ELEM - PALESTRA CASELLE;14/10/2021;1334;30;129;1;Spese correnti;3;Acquisto di beni e servizi;2;Acquisto di servizi;5;Utenze e canoni;5;Acqua;18/10/2021
3885;1;9999999;16;16;V.E.R.I.T.A.S. SPA; ;ACCONTO Fatt.n. 600006235433  del 14/09/2021 PERIODO 16.01.2021-31.08.2021 - CONSUMI SC. ELEM - PALESTRA - ASILO S.ANGELO;14/10/2021;1334;30;129;1;Spese correnti;3;Acquisto di beni e servizi;2;Acquisto di servizi;5;Utenze e canoni;5;Acqua;18/10/2021
3886;1;9999999;47,02;47,02;V.E.R.I.T.A.S. SPA; ;ACCONTO Fatt.n. 600006235433  del 14/09/2021 PERIODO 16.01.2021-31.08.2021 - CONSUMI SC. ELEM - PALESTRA - ASILO S.ANGELO;14/10/2021;1334;30;129;1;Spese correnti;3;Acquisto di beni e servizi;2;Acquisto di servizi;5;Utenze e canoni;5;Acqua;18/10/2021
3887;1;9999999;9;9;V.E.R.I.T.A.S. SPA; ;ACCONTO Fatt.n. 600006235444  del 14/09/2021 PERIODO16.01.2021-31.08.2021 - ANTINCENDIO SC. ELEM - PALESTRA - ASILO S.ANGELO;14/10/2021;1334;30;129;1;Spese correnti;3;Acquisto di beni e servizi;2;Acquisto di servizi;5;Utenze e canoni;5;Acqua;18/10/2021
3888;1;9999999;28,35;28,35;V.E.R.I.T.A.S. SPA; ;ACCONTO Fatt.n. 600006235444  del 14/09/2021 PERIODO16.01.2021-31.08.2021 - ANTINCENDIO SC. ELEM - PALESTRA - ASILO S.ANGELO;14/10/2021;1334;30;129;1;Spese correnti;3;Acquisto di beni e servizi;2;Acquisto di servizi;5;Utenze e canoni;5;Acqua;18/10/2021
3889;1;9999999;16;16;V.E.R.I.T.A.S. SPA; ;ACCONTO Fatt.n. 600006235431  del 14/09/2021 PERIODO13.01.2021-31.08.2021 - ANTINCENDIO SC. ELEM - PALESTRA STIGLIANO;14/10/2021;1334;30;129;1;Spese correnti;3;Acquisto di beni e servizi;2;Acquisto di servizi;5;Utenze e canoni;5;Acqua;18/10/2021
3890;1;9999999;14,35;14,35;V.E.R.I.T.A.S. SPA; ;ACCONTO Fatt.n. 600006235431  del 14/09/2021 PERIODO13.01.2021-31.08.2021 - ANTINCENDIO SC. ELEM - PALESTRA STIGLIANO;14/10/2021;1334;30;129;1;Spese correnti;3;Acquisto di beni e servizi;2;Acquisto di servizi;5;Utenze e canoni;5;Acqua;18/10/2021
3891;1;9999999;100;100;V.E.R.I.T.A.S. SPA; ;ACCONTO Fatt.n. 600006235432  del 14/09/2021 PERIODO 01.07.2021-31.08.2021 - CONSUMI SC. ELEM. - PALESTRA VETERNIGO;14/10/2021;1334;30;129;1;Spese correnti;3;Acquisto di beni e servizi;2;Acquisto di servizi;5;Utenze e canoni;5;Acqua;18/10/2021
3892;1;9999999;162,99;162,99;V.E.R.I.T.A.S. SPA; ;ACCONTO Fatt.n. 600006235432  del 14/09/2021 PERIODO 01.07.2021-31.08.2021 - CONSUMI SC. ELEM. - PALESTRA VETERNIGO;14/10/2021;1334;30;129;1;Spese correnti;3;Acquisto di beni e servizi;2;Acquisto di servizi;5;Utenze e canoni;5;Acqua;18/10/2021
3893;1;9999999;13;13;V.E.R.I.T.A.S. SPA; ;ACCONTO Fatt.n. 600006235443  del 14/09/2021 PERIODO 01.07.2021-31.08.2021 - ANTINCENDIO SC. ELEM - PALESTRA VETERNIGO;14/10/2021;1334;30;129;1;Spese correnti;3;Acquisto di beni e servizi;2;Acquisto di servizi;5;Utenze e canoni;5;Acqua;18/10/2021
3894;1;9999999;20,34;20,34;V.E.R.I.T.A.S. SPA; ;ACCONTO Fatt.n. 600006235443  del 14/09/2021 PERIODO 01.07.2021-31.08.2021 - ANTINCENDIO SC. ELEM - PALESTRA VETERNIGO;14/10/2021;1334;30;129;1;Spese correnti;3;Acquisto di beni e servizi;2;Acquisto di servizi;5;Utenze e canoni;5;Acqua;18/10/2021
3895;1;9999999;3;3;V.E.R.I.T.A.S. SPA; ;ACCONTO Fatt.n. 600006235429  del 14/09/2021 PERIODO16.01.2021-31.08.2021 - CONSUMI SC. ELEM - PALESTRA CASELLE;14/10/2021;1334;30;129;1;Spese correnti;3;Acquisto di beni e servizi;2;Acquisto di servizi;5;Utenze e canoni;5;Acqua;18/10/2021
3896;1;9999999;7,71;7,71;V.E.R.I.T.A.S. SPA; ;ACCONTO Fatt.n. 600006235429  del 14/09/2021 PERIODO16.01.2021-31.08.2021 - CONSUMI SC. ELEM - PALESTRA CASELLE;14/10/2021;1334;30;129;1;Spese correnti;3;Acquisto di beni e servizi;2;Acquisto di servizi;5;Utenze e canoni;5;Acqua;18/10/2021
3897;1;9999999;107,65;107,65;V.E.R.I.T.A.S. SPA; ;ACCONTO Fatt.n. 600006235434  del 14/09/2021 PERIODO 01.07.2021-31.08.2021 - CONSUMI PALESTRA SMS;14/10/2021;1334;30;129;1;Spese correnti;3;Acquisto di beni e servizi;2;Acquisto di servizi;5;Utenze e canoni;5;Acqua;18/10/2021
3898;1;9999999;10,23;195,63;V.E.R.I.T.A.S. SPA; ;SALDO Fatt.n. 600006235463  del 14/09/2021 PERIODO 6.01.2021-31.08.2021 - FONTANA VETERNIGO;14/10/2021;1834;0;130;1;Spese correnti;3;Acquisto di beni e servizi;2;Acquisto di servizi;5;Utenze e canoni;5;Acqua;18/10/2021
3898;2;9999999;46,35;195,63;V.E.R.I.T.A.S. SPA; ;SALDO Fatt.n. 600006235461  del 14/09/2021  PERIODO 01.07.2021-31.08.2021 - ANTINCENDIO PARCHEGGIO C.C. PRISMA CASELLE;14/10/2021;1834;0;130;1;Spese correnti;3;Acquisto di beni e servizi;2;Acquisto di servizi;5;Utenze e canoni;5;Acqua;18/10/2021
3898;3;9999999;46,35;195,63;V.E.R.I.T.A.S. SPA; ;SALDO Fatt.n. 600006235462  del 14/09/2021 PERIODO 01.07.2021-31.08.2021 - ANTINCENDIO STRADA PRESSO ALLOGGIO GUIOTTO CALTANA;14/10/2021;1834;0;130;1;Spese correnti;3;Acquisto di beni e servizi;2;Acquisto di servizi;5;Utenze e canoni;5;Acqua;18/10/2021
3898;4;9999999;46,35;195,63;V.E.R.I.T.A.S. SPA; ;SALDO Fatt.n. 600006235459  del 14/09/2021 PERIODO 01.07.2021-31.08.2021 - ANTINCENDIO Z.I. SMS;14/10/2021;1834;0;130;1;Spese correnti;3;Acquisto di beni e servizi;2;Acquisto di servizi;5;Utenze e canoni;5;Acqua;18/10/2021
3898;5;9999999;46,35;195,63;V.E.R.I.T.A.S. SPA; ;SALDO Fatt.n. 600006235460  del 14/09/2021 PERIODO 01.07.2021-31.08.2021 - ANTINCENDIO Z.I. SMS;14/10/2021;1834;0;130;1;Spese correnti;3;Acquisto di beni e servizi;2;Acquisto di servizi;5;Utenze e canoni;5;Acqua;18/10/2021
3899;1;9999999;12,32;223,52;V.E.R.I.T.A.S. SPA; ;SALDO Fatt.n. 600006235470  del 14/09/2021 PERIODO 09.01.2021-31.08.2021 - CONSUMI STRADA PRESSO ALLOGGIO GUIOTTO CALTANA;14/10/2021;1834;0;130;1;Spese correnti;3;Acquisto di beni e servizi;2;Acquisto di servizi;5;Utenze e canoni;5;Acqua;18/10/2021
3899;2;9999999;34,49;223,52;V.E.R.I.T.A.S. SPA; ;SALDO Fatt.n. 600006235465  del 14/09/2021 PERIODO 02.07.2020-31.08.2021 - CONSUMI FONTANA VERDE STIGLIANO;14/10/2021;1834;0;130;1;Spese correnti;3;Acquisto di beni e servizi;2;Acquisto di servizi;5;Utenze e canoni;5;Acqua;18/10/2021
3899;3;9999999;46,35;223,52;V.E.R.I.T.A.S. SPA; ;SALDO Fatt.n. 600006235466  del 14/09/2021 PERIODO 01.07.2021-31.08.2021 - ANTINCENDIO PER MANIFESTAZIONI SMS;14/10/2021;1834;0;130;1;Spese correnti;3;Acquisto di beni e servizi;2;Acquisto di servizi;5;Utenze e canoni;5;Acqua;18/10/2021
3899;4;9999999;46,35;223,52;V.E.R.I.T.A.S. SPA; ;SALDO Fatt.n. 600006235474  del 14/09/2021 PERIODO 01.07.2021-31.08.2021 - ANTINCENDIO;14/10/2021;1834;0;130;1;Spese correnti;3;Acquisto di beni e servizi;2;Acquisto di servizi;5;Utenze e canoni;5;Acqua;18/10/2021
3899;5;9999999;84,01;223,52;V.E.R.I.T.A.S. SPA; ;SALDO Fatt.n. 600006235467  del 14/09/2021 PERIODO 19.01.2021-31.08.2021 - CONSUMI PER MANIFESTAZIONI SMS;14/10/2021;1834;0;130;1;Spese correnti;3;Acquisto di beni e servizi;2;Acquisto di servizi;5;Utenze e canoni;5;Acqua;18/10/2021
3900;1;9999999;10,96;110,33;V.E.R.I.T.A.S. SPA; ;SALDO Fatt.n. 600006235478  del 14/09/2021 PERIODO 21.01.2021-31.08.2021 - CONSUMI FONTANA VERDE CASELLE;14/10/2021;1834;0;130;1;Spese correnti;3;Acquisto di beni e servizi;2;Acquisto di servizi;5;Utenze e canoni;5;Acqua;18/10/2021
3900;2;9999999;15,06;110,33;V.E.R.I.T.A.S. SPA; ;SALDO Fatt.n. 600006235475  del 14/09/2021 PERIODO 01.07.2021-31.08.2021 - CONSUMI PARCHEGGIO CASELLE;14/10/2021;1834;0;130;1;Spese correnti;3;Acquisto di beni e servizi;2;Acquisto di servizi;5;Utenze e canoni;5;Acqua;18/10/2021
3900;3;9999999;37,96;110,33;V.E.R.I.T.A.S. SPA; ;SALDO Fatt.n. 600006235477  del 14/09/2021 PERIODO 20.01.2021-31.08.2021 - CONSUMI PIAZZA CASELLE;14/10/2021;1834;0;130;1;Spese correnti;3;Acquisto di beni e servizi;2;Acquisto di servizi;5;Utenze e canoni;5;Acqua;18/10/2021
3900;4;9999999;46,35;110,33;V.E.R.I.T.A.S. SPA; ;SALDO Fatt.n. 600006235476  del 14/09/2021 PERIODO 01.07.2021-31.08.2021 - ANTINCENDIO PARCHEGGIO CASELLE;14/10/2021;1834;0;130;1;Spese correnti;3;Acquisto di beni e servizi;2;Acquisto di servizi;5;Utenze e canoni;5;Acqua;18/10/2021
3901;1;9999999;32,12;32,12;V.E.R.I.T.A.S. SPA; ;SALDO Fatt.n. 600006235471  del 14/09/2021 PERIODO 10.01.2021-31.08.2021 - CONSUMI PALESTRA CALTANA;14/10/2021;1934;0;131;1;Spese correnti;3;Acquisto di beni e servizi;2;Acquisto di servizi;5;Utenze e canoni;5;Acqua;18/10/2021
3902;1;9999999;23,18;23,18;V.E.R.I.T.A.S. SPA; ;SALDO Fatt.n. 600006235472  del 14/09/2021 PERIODO 10.01.2021-31.08.2021 - ANTINCENDIO PALESTRA CALTANA;14/10/2021;1934;0;131;1;Spese correnti;3;Acquisto di beni e servizi;2;Acquisto di servizi;5;Utenze e canoni;5;Acqua;18/10/2021
3903;1;9999999;9;9;V.E.R.I.T.A.S. SPA; ;SALDO Fatt.n. 600006235442  del 14/09/2021 PERIODO 01.07.2021-31.08.2021 - ANTINCENDIO SC. ELEM - PALESTRA CASELLE;14/10/2021;1934;0;131;1;Spese correnti;3;Acquisto di beni e servizi;2;Acquisto di servizi;5;Utenze e canoni;5;Acqua;18/10/2021
3904;1;9999999;16;16;V.E.R.I.T.A.S. SPA; ;SALDO Fatt.n. 600006235433  del 14/09/2021 PERIODO 16.01.2021-31.08.2021 - CONSUMI SC. ELEM - PALESTRA - ASILO S.ANGELO;14/10/2021;1934;0;131;1;Spese correnti;3;Acquisto di beni e servizi;2;Acquisto di servizi;5;Utenze e canoni;5;Acqua;18/10/2021
3905;1;9999999;9;9;V.E.R.I.T.A.S. SPA; ;SALDO Fatt.n. 600006235444  del 14/09/2021 PERIODO16.01.2021-31.08.2021 - ANTINCENDIO SC. ELEM - PALESTRA - ASILO S.ANGELO;14/10/2021;1934;0;131;1;Spese correnti;3;Acquisto di beni e servizi;2;Acquisto di servizi;5;Utenze e canoni;5;Acqua;18/10/2021
3906;1;9999999;16;16;V.E.R.I.T.A.S. SPA; ;SALDO Fatt.n. 600006235431  del 14/09/2021 PERIODO13.01.2021-31.08.2021 - ANTINCENDIO SC. ELEM - PALESTRA STIGLIANO;14/10/2021;1934;0;131;1;Spese correnti;3;Acquisto di beni e servizi;2;Acquisto di servizi;5;Utenze e canoni;5;Acqua;18/10/2021
3907;1;9999999;100;100;V.E.R.I.T.A.S. SPA; ;SALDO Fatt.n. 600006235432  del 14/09/2021 PERIODO 01.07.2021-31.08.2021 - CONSUMI SC. ELEM. - PALESTRA VETERNIGO;14/10/2021;1934;0;131;1;Spese correnti;3;Acquisto di beni e servizi;2;Acquisto di servizi;5;Utenze e canoni;5;Acqua;18/10/2021
3908;1;9999999;13;13;V.E.R.I.T.A.S. SPA; ;SALDO Fatt.n. 600006235443  del 14/09/2021 PERIODO 01.07.2021-31.08.2021 - ANTINCENDIO SC. ELEM - PALESTRA VETERNIGO;14/10/2021;1934;0;131;1;Spese correnti;3;Acquisto di beni e servizi;2;Acquisto di servizi;5;Utenze e canoni;5;Acqua;18/10/2021
3909;1;9999999;3;3;V.E.R.I.T.A.S. SPA; ;SALDO Fatt.n. 600006235429  del 14/09/2021 PERIODO16.01.2021-31.08.2021 - CONSUMI SC. ELEM - PALESTRA CASELLE;14/10/2021;1934;0;131;1;Spese correnti;3;Acquisto di beni e servizi;2;Acquisto di servizi;5;Utenze e canoni;5;Acqua;18/10/2021
3910;1;9999999;107,64;107,64;V.E.R.I.T.A.S. SPA; ;SALDO Fatt.n. 600006235434  del 14/09/2021 PERIODO 01.07.2021-31.08.2021 - CONSUMI PALESTRA SMS;14/10/2021;1934;0;131;1;Spese correnti;3;Acquisto di beni e servizi;2;Acquisto di servizi;5;Utenze e canoni;5;Acqua;18/10/2021
3911;1;9999999;-31,21;65,82;V.E.R.I.T.A.S. SPA; ;SALDO Fatt.n. 600006235451  del 14/09/2021 PERIODO 15.01.2021-31.08.2021 - NOTA DI ACCREDITO PER CONG. CONSUMI;14/10/2021;3534;0;132;1;Spese correnti;3;Acquisto di beni e servizi;2;Acquisto di servizi;5;Utenze e canoni;5;Acqua;18/10/2021
3911;2;9999999;97,03;65,82;V.E.R.I.T.A.S. SPA; ;SALDO Fatt.n. 600006235469  del 14/09/2021 PERIODO 26.01.2021-31.08.2021 - CONSUMI ECOCENTRO COMUNALE;14/10/2021;3534;0;132;1;Spese correnti;3;Acquisto di beni e servizi;2;Acquisto di servizi;5;Utenze e canoni;5;Acqua;18/10/2021
3912;1;9999999;29,58;122,27;V.E.R.I.T.A.S. SPA; ;SALDO Fatt.n. 600006235447  del 14/09/2021 PERIODO 01.07.2021-31.08.2021 - CONSUMI MAGAZZINO COMUNALE;14/10/2021;3534;0;132;1;Spese correnti;3;Acquisto di beni e servizi;2;Acquisto di servizi;5;Utenze e canoni;5;Acqua;18/10/2021
3912;2;9999999;46,34;122,27;V.E.R.I.T.A.S. SPA; ;SALDO Fatt.n. 600006235448  del 14/09/2021 PERIODO 01.07.2021-31.08.2021 - ANTINCENDIO MAGAZZINO COMUNALE;14/10/2021;3534;0;132;1;Spese correnti;3;Acquisto di beni e servizi;2;Acquisto di servizi;5;Utenze e canoni;5;Acqua;18/10/2021
3912;3;9999999;46,35;122,27;V.E.R.I.T.A.S. SPA; ;SALDO Fatt.n. 600006235468  del 14/09/2021 PERIODO 26.01.2021-31.08.2021 - ANTINCENDIO ECOCENTRO COMUNALE;14/10/2021;3534;0;132;1;Spese correnti;3;Acquisto di beni e servizi;2;Acquisto di servizi;5;Utenze e canoni;5;Acqua;18/10/2021
3913;1;9999999;46,34;46,34;V.E.R.I.T.A.S. SPA; ;SALDO Fatt.n. 600006235446  del 14/09/2021 PERIODO 25.01.2020-31.08.2021 - ANTINCENDIO VILLA FARSETTI;14/10/2021;4234;0;133;1;Spese correnti;3;Acquisto di beni e servizi;2;Acquisto di servizi;5;Utenze e canoni;5;Acqua;18/10/2021
3914;1;9999999;10,26;28,76;V.E.R.I.T.A.S. SPA; ;SALDO Fatt.n. 600006235452  del 14/09/2021 PERIODO 16.01.2021-31.08.2021 - CONSUMI CIMITERO S.ANGELO;14/10/2021;4434;0;134;1;Spese correnti;3;Acquisto di beni e servizi;2;Acquisto di servizi;5;Utenze e canoni;5;Acqua;18/10/2021
3914;2;9999999;18,5;28,76;V.E.R.I.T.A.S. SPA; ;SALDO Fatt.n. 600006235453  del 14/09/2021 PERIODO 22.01.2021-31.08.2021 - CONSUMI CIMITERO CASELLE;14/10/2021;4434;0;134;1;Spese correnti;3;Acquisto di beni e servizi;2;Acquisto di servizi;5;Utenze e canoni;5;Acqua;18/10/2021
3915;1;9999999;259,86;259,86;UFFICIO OVEST S.R.L.;ZA33301036;SALDO Fatt.n. 29/5  del 29/09/2021 FORNITURA N. 150 CARTELLE SOSPESE PER ARCHIVIO UFFICIO SERVIZI SOCIALI;14/10/2021;121;6;735;1;Spese correnti;3;Acquisto di beni e servizi;1;Acquisto di beni;2;Altri beni di consumo;1;Carta, cancelleria e stampati;18/10/2021
3916;1;9999999;1.783,64;1.783,64;GLOBEX MVR S.R.L.;Z111FF33BF;SALDO Fatt.n. FATTPA 44_21  del 28/09/2021 NOLEGGIO CABINE VELO OK N. 17 BIMESTRE AGOSTO SETTEMBRE 2021;14/10/2021;1136;0;572;1;Spese correnti;3;Acquisto di beni e servizi;2;Acquisto di servizi;7;Utilizzo di beni di terzi;8;Noleggi di impianti e macchinari;18/10/2021
3917;1;9999999;14.489,16;14.489,16;ZIN FABIO;Z3B311D0DF;SALDO Fatt.n. 34  del 21/09/2021 SFALCIO ERBA BANCHINE STRADALI ANNO 2021 - S.A.L. N. 3;14/10/2021;2549;0;313;1;Spese correnti;3;Acquisto di beni e servizi;2;Acquisto di servizi;99;Altri servizi;9;Acquisto di sevizi per verde e arredo urbano;18/10/2021
3918;1;9999999;600;600;AIDAI VENETO; ;CONTRIBUTO ECONOMICO ALLE ASSOCIAZIONI CULTURALI PER LO SVOLGIMENTO DI ATTIVIT RIVOLTE ALLA CITTADINANZA - ESTATE/AUTUNNO 2021 dt. 647/21;14/10/2021;4059;0;884;1;Spese correnti;4;Trasferimenti correnti;4;Trasferimenti correnti a Istituzioni Sociali Private;1;Trasferimenti correnti a Istituzioni Sociali Private;1;Trasferimenti correnti a Istituzioni Sociali Private;18/10/2021
3919;1;9999999;700;700;CIRCOLO ARCI  F. PIROLA; ;CONTRIBUTO ECONOMICO ALLE ASSOCIAZIONI CULTURALI PER LO SVOLGIMENTO DI ATTIVIT RIVOLTE ALLA CITTADINANZA - ESTATE/AUTUNNO 2021 dt. 647/21;14/10/2021;1859;0;879;1;Spese correnti;4;Trasferimenti correnti;4;Trasferimenti correnti a Istituzioni Sociali Private;1;Trasferimenti correnti a Istituzioni Sociali Private;1;Trasferimenti correnti a Istituzioni Sociali Private;18/10/2021
3920;1;9999999;500;500;ASSOCIAZIONE  LA CASA SULL' ALBERO; ;CONTRIBUTO ECONOMICO ALLE ASSOCIAZIONI CULTURALI PER LO SVOLGIMENTO DI ATTIVIT RIVOLTE ALLA CITTADINANZA - ESTATE/AUTUNNO 2021 DT.647/21;14/10/2021;1859;0;880;1;Spese correnti;4;Trasferimenti correnti;4;Trasferimenti correnti a Istituzioni Sociali Private;1;Trasferimenti correnti a Istituzioni Sociali Private;1;Trasferimenti correnti a Istituzioni Sociali Private;18/10/2021
3921;1;9999999;500;500;ORCHESTRA DI FIATI DEL VENETO; ;CONTRIBUTO ECONOMICO ALLE ASSOCIAZIONI CULTURALI PER LO SVOLGIMENTO DI ATTIVIT RIVOLTE ALLA CITTADINANZA - ESTATE/AUTUNNO 2021 DT.647/21;14/10/2021;1859;0;881;1;Spese correnti;4;Trasferimenti correnti;4;Trasferimenti correnti a Istituzioni Sociali Private;1;Trasferimenti correnti a Istituzioni Sociali Private;1;Trasferimenti correnti a Istituzioni Sociali Private;18/10/2021
3922;1;9999999;750;750;ASSOCIAZIONE PRO LOCO S.MARIA DI SALA; ;CONTRIBUTO ECONOMICO ALLE ASSOCIAZIONI CULTURALI PER LO SVOLGIMENTO DI ATTIVIT RIVOLTE ALLA CITTADINANZA - ESTATE/AUTUNNO 2021 DT.647/21;14/10/2021;1859;0;882;1;Spese correnti;4;Trasferimenti correnti;4;Trasferimenti correnti a Istituzioni Sociali Private;1;Trasferimenti correnti a Istituzioni Sociali Private;1;Trasferimenti correnti a Istituzioni Sociali Private;18/10/2021
3923;1;9999999;300;300;PARROCCHIA DI  S.BIAGIO CALTANA; ;CONTRIBUTO ECONOMICO ALLE ASSOCIAZIONI CULTURALI PER LO SVOLGIMENTO DI ATTIVIT RIVOLTE ALLA CITTADINANZA - ESTATE/AUTUNNO 2021 DT.647/21;14/10/2021;1859;0;883;1;Spese correnti;4;Trasferimenti correnti;4;Trasferimenti correnti a Istituzioni Sociali Private;1;Trasferimenti correnti a Istituzioni Sociali Private;1;Trasferimenti correnti a Istituzioni Sociali Private;18/10/2021
3924;1;9999999;260,36;260,36;AUTOROMBO S.A.S. DI SARTORE RENZO & C.;Z8032BA424;SALDO Fatt.n. 1/PA  del 24/09/2021 TAGLIANDO AUTOMEZZO POLIZIA LOCALE;18/10/2021;3538;0;692;1;Spese correnti;3;Acquisto di beni e servizi;2;Acquisto di servizi;9;Manutenzione ordinaria e riparazioni;1;Manutenzione ordinaria e riparazioni di mezzi di trasporto ad uso civile, di sicurezza e ordine pubblico;20/10/2021
3925;1;9999999;2.315,16;2.315,16;ARTEA  SNC DI LION & SALVIATO;Z47300506C;SALDO Fatt.n. 22-2021/PA  del 20/09/2021 OPERAZIONI EFFETTUATE NEI CIMITERI DEL COMUNE DI SANTA MARIA DI SALA NEL MESE DI AGOSTO 2021;18/10/2021;4438;0;1377;1;Spese correnti;3;Acquisto di beni e servizi;2;Acquisto di servizi;9;Manutenzione ordinaria e riparazioni;8;Manutenzione ordinaria e riparazioni di beni immobili;20/10/2021
3926;1;9999999;728;728;SCARABOTTOLO NADIA;ZC931A7BB5;SALDO Fatt.n. 5PA  del 27/09/2021 ACCONTO RELATIVO AL COORDINAMENTO PER LA SICUREZZA IN FASE DI PROGETTAZIONE ED ESECUZIONE PER I LAVORI DI MESSA IN SICUREZZA DEL CENTRO ABITATO DI SANTA MARIA DI SALA - TRATTO VIA LUXORE - VIA RIVALE;18/10/2021;8563;0;1371;2;Spese in conto capitale;2;Investimenti fissi lordi e acquisto di terreni;1;Beni materiali;9;Beni immobili;12;Infrastrutture stradali;20/10/2021
3927;1;9999999;502;502;CALZAVARA DANILO; ;SALDO Fatt.n. 21  del 06/10/2021 BUONI ALIMENTARI COVID 19;18/10/2021;4122;0;1329;1;Spese correnti;3;Acquisto di beni e servizi;1;Acquisto di beni;2;Altri beni di consumo;11;Generi alimentari;20/10/2021
3928;1;9999999;8.186,72;8.186,72;DIVERSI-AMMINISTRATORI COM.LI; ;STIPENDI MESE DI OTTOBRE 21;19/10/2021;30;99;0;1;Spese correnti;3;Acquisto di beni e servizi;2;Acquisto di servizi;1;Organi e incarichi istituzionali dell'amministrazione;1;Organi istituzionali dell'amministrazione - Indennità;27/10/2021
3938;1;9999999;541,67;617,1;DIVERSI - DIPENDENTI COMUNALI; ;STIPENDI MESE DI OTTOBRE 21;19/10/2021;230;0;1167;1;Spese correnti;3;Acquisto di beni e servizi;2;Acquisto di servizi;1;Organi e incarichi istituzionali dell'amministrazione;8;Compensi agli organi istituzionali di revisione, di controllo ed altri incarichi istituzionali dell'amministrazione;27/10/2021
3938;2;9999999;75,43;617,1;DIVERSI - DIPENDENTI COMUNALI; ;STIPENDI MESE DI OTTOBRE 21;19/10/2021;230;0;1167;1;Spese correnti;3;Acquisto di beni e servizi;2;Acquisto di servizi;1;Organi e incarichi istituzionali dell'amministrazione;8;Compensi agli organi istituzionali di revisione, di controllo ed altri incarichi istituzionali dell'amministrazione;27/10/2021
3939;1;9999999;86,64;86,64;I.N.P.S. SEDE DI VENEZIA; ;VERS.CONTRIB. MESE OTTOBRE 21 A CARICO ENTE;19/10/2021;230;0;1167;1;Spese correnti;3;Acquisto di beni e servizi;2;Acquisto di servizi;1;Organi e incarichi istituzionali dell'amministrazione;8;Compensi agli organi istituzionali di revisione, di controllo ed altri incarichi istituzionali dell'amministrazione;16/11/2021
3965;1;9999999;2.900,00;2.900,00;DIVERSI - DIPENDENTI COMUNALI; ;STIPENDI MESE DI OTTOBRE 21;19/10/2021;849;0;868;1;Spese correnti;3;Acquisto di beni e servizi;2;Acquisto di servizi;99;Altri servizi;999;Altri servizi diversi n.a.c.;27/10/2021
4006;1;9999999;1.461,19;1.461,19;MEB SRL;ZEB310D930;SALDO Fatt.n. 049282  del 30/09/2021 MATERIALE ELETTRICO PER MANUTENZIONI;19/10/2021;1338;0;406;1;Spese correnti;3;Acquisto di beni e servizi;2;Acquisto di servizi;9;Manutenzione ordinaria e riparazioni;4;Manutenzione ordinaria e riparazioni di impianti e macchinari;21/10/2021
4007;1;9999999;3.072,93;3.072,93;BERTI LISA - CARTOLERIA; ;SALDO Fatt.n. 12  del 05/10/2021 FORNITURA LIBRI DI TESTO A.S. 2021-2022;19/10/2021;1357;0;156;1;Spese correnti;4;Trasferimenti correnti;2;Trasferimenti correnti a Famiglie;5;Altri trasferimenti a famiglie;999;Altri trasferimenti a famiglie n.a.c.;21/10/2021
4008;1;9999999;1,16;389,15;SONEPAR ITALIA  SPA;ZD1310D90B;SALDO Fatt.n. 0031240214  del 30/09/2021 MATERIALE ELETTRICO PER MANUTENZIONI;19/10/2021;3538;0;314;1;Spese correnti;3;Acquisto di beni e servizi;2;Acquisto di servizi;9;Manutenzione ordinaria e riparazioni;4;Manutenzione ordinaria e riparazioni di impianti e macchinari;21/10/2021
4008;2;9999999;12,13;389,15;SONEPAR ITALIA  SPA;ZD1310D90B;SALDO Fatt.n. 0031240211  del 30/09/2021 MATERIALE ELETTRICO PER MANUTENZIONI;19/10/2021;3538;0;314;1;Spese correnti;3;Acquisto di beni e servizi;2;Acquisto di servizi;9;Manutenzione ordinaria e riparazioni;4;Manutenzione ordinaria e riparazioni di impianti e macchinari;21/10/2021
4008;3;9999999;14,01;389,15;SONEPAR ITALIA  SPA;ZD1310D90B;SALDO Fatt.n. 0031240212  del 30/09/2021 MATERIALE ELETTRICO PER MANUTENZIONI;19/10/2021;3538;0;314;1;Spese correnti;3;Acquisto di beni e servizi;2;Acquisto di servizi;9;Manutenzione ordinaria e riparazioni;4;Manutenzione ordinaria e riparazioni di impianti e macchinari;21/10/2021
4008;4;9999999;49;389,15;SONEPAR ITALIA  SPA;ZD1310D90B;SALDO Fatt.n. 0031240210  del 30/09/2021 MATERIALE ELETTRICO PER MANUTENZIONI;19/10/2021;3538;0;314;1;Spese correnti;3;Acquisto di beni e servizi;2;Acquisto di servizi;9;Manutenzione ordinaria e riparazioni;4;Manutenzione ordinaria e riparazioni di impianti e macchinari;21/10/2021
4008;5;9999999;59,35;389,15;SONEPAR ITALIA  SPA;ZD1310D90B;SALDO Fatt.n. 0031240207  del 30/09/2021 MATERIALE ELETTRICO PER MANUTENZIONI;19/10/2021;3538;0;314;1;Spese correnti;3;Acquisto di beni e servizi;2;Acquisto di servizi;9;Manutenzione ordinaria e riparazioni;4;Manutenzione ordinaria e riparazioni di impianti e macchinari;21/10/2021
4008;6;9999999;69,03;389,15;SONEPAR ITALIA  SPA;ZD1310D90B;SALDO Fatt.n. 0031240213  del 30/09/2021 MATERIALE ELETTRICO PER MANUTENZIONI;19/10/2021;3538;0;314;1;Spese correnti;3;Acquisto di beni e servizi;2;Acquisto di servizi;9;Manutenzione ordinaria e riparazioni;4;Manutenzione ordinaria e riparazioni di impianti e macchinari;21/10/2021
4008;7;9999999;76,54;389,15;SONEPAR ITALIA  SPA;ZD1310D90B;SALDO Fatt.n. 0031240209  del 30/09/2021 MATERIALE ELETTRICO PER MANUTENZIONI;19/10/2021;3538;0;314;1;Spese correnti;3;Acquisto di beni e servizi;2;Acquisto di servizi;9;Manutenzione ordinaria e riparazioni;4;Manutenzione ordinaria e riparazioni di impianti e macchinari;21/10/2021
4008;8;9999999;107,93;389,15;SONEPAR ITALIA  SPA;ZD1310D90B;SALDO Fatt.n. 0031240208  del 30/09/2021 MATERIALE ELETTRICO PER MANUTENZIONI;19/10/2021;3538;0;314;1;Spese correnti;3;Acquisto di beni e servizi;2;Acquisto di servizi;9;Manutenzione ordinaria e riparazioni;4;Manutenzione ordinaria e riparazioni di impianti e macchinari;21/10/2021
4009;1;9999999;18,03;18,03;DOLOMITI ENERGIA SPA;8,70E+100;SALDO Fatt.n. 42104215014  del 28/09/2021 AGOSTO 2021 - CONSUMI ALLOGGIO VIA D.GALLERANI CALTANA;19/10/2021;134;30;347;1;Spese correnti;3;Acquisto di beni e servizi;2;Acquisto di servizi;5;Utenze e canoni;6;Gas;21/10/2021
4010;1;9999999;27,89;27,89;DOLOMITI ENERGIA SPA;8,70E+100;SALDO Fatt.n. 42104216287  del 28/09/2021 AGOSTO 2021 - CONSUMI ALLOGGIO VIA OLIMPIA SMS;19/10/2021;134;30;347;1;Spese correnti;3;Acquisto di beni e servizi;2;Acquisto di servizi;5;Utenze e canoni;6;Gas;21/10/2021
4011;1;9999999;1.151,99;1.151,99;DOLOMITI ENERGIA SPA;8,70E+100;SALDO Fatt.n. 42104216285  del 28/09/2021 AGOSTO 2021 - CONSUMI SEDE MUNICIPALE;19/10/2021;134;31;348;1;Spese correnti;3;Acquisto di beni e servizi;2;Acquisto di servizi;5;Utenze e canoni;6;Gas;21/10/2021
4012;1;9999999;90,39;90,39;DOLOMITI ENERGIA SPA;8,70E+100;SALDO Fatt.n. 42104215015  del 28/09/2021 AGOSTO 2021 - CONSUMI SCUOLE . ELEM - MEDIE SMS;19/10/2021;1334;30;349;1;Spese correnti;3;Acquisto di beni e servizi;2;Acquisto di servizi;5;Utenze e canoni;6;Gas;21/10/2021
4013;1;9999999;59,77;59,77;DOLOMITI ENERGIA SPA;8,70E+100;SALDO Fatt.n. 42104215019  del 28/09/2021 AGOSTO 2021 - CONSUMI IMP. SPORT. CASELLE;19/10/2021;1334;30;349;1;Spese correnti;3;Acquisto di beni e servizi;2;Acquisto di servizi;5;Utenze e canoni;6;Gas;21/10/2021
4014;1;9999999;39,97;39,97;DOLOMITI ENERGIA SPA;8,70E+100;SALDO Fatt.n. 42104216283  del 28/09/2021 AGOSTO 2021 - CONSUMI SC. ELEM. CALTANA;19/10/2021;1334;30;349;1;Spese correnti;3;Acquisto di beni e servizi;2;Acquisto di servizi;5;Utenze e canoni;6;Gas;21/10/2021
4015;1;9999999;83;83;DOLOMITI ENERGIA SPA;8,70E+100;ACCONTO Fatt.n. 42104216280  del 28/09/2021 AGOSTO 2021 - CONSUMI SC. ELEM - PALESTRA STIGLIANO;19/10/2021;1334;30;349;1;Spese correnti;3;Acquisto di beni e servizi;2;Acquisto di servizi;5;Utenze e canoni;6;Gas;21/10/2021
4016;1;9999999;83;83;DOLOMITI ENERGIA SPA;8,70E+100;ACCONTO Fatt.n. 42104216280  del 28/09/2021 AGOSTO 2021 - CONSUMI SC. ELEM - PALESTRA STIGLIANO;19/10/2021;1334;30;349;1;Spese correnti;3;Acquisto di beni e servizi;2;Acquisto di servizi;5;Utenze e canoni;6;Gas;21/10/2021
4017;1;9999999;72,67;72,67;DOLOMITI ENERGIA SPA;8,70E+100;SALDO Fatt.n. 42104216280  del 28/09/2021 AGOSTO 2021 - CONSUMI SC. ELEM - PALESTRA STIGLIANO;19/10/2021;1334;30;349;1;Spese correnti;3;Acquisto di beni e servizi;2;Acquisto di servizi;5;Utenze e canoni;6;Gas;21/10/2021
4018;1;9999999;11;11;DOLOMITI ENERGIA SPA;8,70E+100;ACCONTO Fatt.n. 42104216281  del 28/09/2021 AGOSTO 2021 - CONSUMI SC. ELEM - PALESTRA VETERNIGO;19/10/2021;1334;30;349;1;Spese correnti;3;Acquisto di beni e servizi;2;Acquisto di servizi;5;Utenze e canoni;6;Gas;21/10/2021
4019;1;9999999;11;11;DOLOMITI ENERGIA SPA;8,70E+100;ACCONTO Fatt.n. 42104216281  del 28/09/2021 AGOSTO 2021 - CONSUMI SC. ELEM - PALESTRA VETERNIGO;19/10/2021;1334;30;349;1;Spese correnti;3;Acquisto di beni e servizi;2;Acquisto di servizi;5;Utenze e canoni;6;Gas;21/10/2021
4020;1;9999999;17,97;17,97;DOLOMITI ENERGIA SPA;8,70E+100;SALDO Fatt.n. 42104216281  del 28/09/2021 AGOSTO 2021 - CONSUMI SC. ELEM - PALESTRA VETERNIGO;19/10/2021;1334;30;349;1;Spese correnti;3;Acquisto di beni e servizi;2;Acquisto di servizi;5;Utenze e canoni;6;Gas;21/10/2021
4021;1;9999999;19,98;19,98;DOLOMITI ENERGIA SPA;8,70E+100;ACCONTO Fatt.n. 42104215018  del 28/09/2021 AGOSTO 2021 - CONSUMI PALESTRA CALTANA;19/10/2021;1334;30;349;1;Spese correnti;3;Acquisto di beni e servizi;2;Acquisto di servizi;5;Utenze e canoni;6;Gas;21/10/2021
4022;1;9999999;19,99;19,99;DOLOMITI ENERGIA SPA;8,70E+100;SALDO Fatt.n. 42104215018  del 28/09/2021 AGOSTO 2021 - CONSUMI PALESTRA CALTANA;19/10/2021;1334;30;349;1;Spese correnti;3;Acquisto di beni e servizi;2;Acquisto di servizi;5;Utenze e canoni;6;Gas;21/10/2021
4023;1;9999999;26;26;DOLOMITI ENERGIA SPA;8,70E+100;ACCONTO Fatt.n. 42104216286  del 28/09/2021 AGOSTO 2021 - CONSUMI SC. ELEM - PALESTRA - ASILO S.ANGELO;19/10/2021;1334;30;349;1;Spese correnti;3;Acquisto di beni e servizi;2;Acquisto di servizi;5;Utenze e canoni;6;Gas;21/10/2021
4024;1;9999999;26;26;DOLOMITI ENERGIA SPA;8,70E+100;ACCONTO Fatt.n. 42104216286  del 28/09/2021 AGOSTO 2021 - CONSUMI SC. ELEM - PALESTRA - ASILO S.ANGELO;19/10/2021;1334;30;349;1;Spese correnti;3;Acquisto di beni e servizi;2;Acquisto di servizi;5;Utenze e canoni;6;Gas;21/10/2021
4025;1;9999999;81,38;81,38;DOLOMITI ENERGIA SPA;8,70E+100;SALDO Fatt.n. 42104216286  del 28/09/2021 AGOSTO 2021 - CONSUMI SC. ELEM - PALESTRA - ASILO S.ANGELO;19/10/2021;1334;30;349;1;Spese correnti;3;Acquisto di beni e servizi;2;Acquisto di servizi;5;Utenze e canoni;6;Gas;21/10/2021
4026;1;9999999;19,98;19,98;DOLOMITI ENERGIA SPA;8,70E+100;ACCONTO Fatt.n. 42104215016  del 28/09/2021 AGOSTO 2021 - CONSUMI PALESTRA SMS;19/10/2021;1334;30;349;1;Spese correnti;3;Acquisto di beni e servizi;2;Acquisto di servizi;5;Utenze e canoni;6;Gas;21/10/2021
4027;1;9999999;19,99;19,99;DOLOMITI ENERGIA SPA;8,70E+100;SALDO Fatt.n. 42104215016  del 28/09/2021 AGOSTO 2021 - CONSUMI PALESTRA SMS;19/10/2021;1334;30;349;1;Spese correnti;3;Acquisto di beni e servizi;2;Acquisto di servizi;5;Utenze e canoni;6;Gas;21/10/2021
4028;1;9999999;8;8;DOLOMITI ENERGIA SPA;8,70E+100;ACCONTO Fatt.n. 42104216284  del 28/09/2021 AGOSTO 2021 - CONSUMI SC. ELEM. - PALESTRA CASELLE;19/10/2021;1334;30;349;1;Spese correnti;3;Acquisto di beni e servizi;2;Acquisto di servizi;5;Utenze e canoni;6;Gas;21/10/2021
4029;1;9999999;8;8;DOLOMITI ENERGIA SPA;8,70E+100;ACCONTO Fatt.n. 42104216284  del 28/09/2021 AGOSTO 2021 - CONSUMI SC. ELEM. - PALESTRA CASELLE;19/10/2021;1334;30;349;1;Spese correnti;3;Acquisto di beni e servizi;2;Acquisto di servizi;5;Utenze e canoni;6;Gas;21/10/2021
4030;1;9999999;23,97;23,97;DOLOMITI ENERGIA SPA;8,70E+100;SALDO Fatt.n. 42104216284  del 28/09/2021 AGOSTO 2021 - CONSUMI SC. ELEM. - PALESTRA CASELLE;19/10/2021;1334;30;349;1;Spese correnti;3;Acquisto di beni e servizi;2;Acquisto di servizi;5;Utenze e canoni;6;Gas;21/10/2021
4031;1;9999999;19,45;19,45;DOLOMITI ENERGIA SPA;8,70E+100;SALDO Fatt.n. 42104215017  del 28/09/2021 AGOSTO 2021 - CONSUMI MAGAZZINO COMUNALE;19/10/2021;3534;0;351;1;Spese correnti;3;Acquisto di beni e servizi;2;Acquisto di servizi;5;Utenze e canoni;6;Gas;21/10/2021
4032;1;9999999;39,97;39,97;DOLOMITI ENERGIA SPA;8,70E+100;SALDO Fatt.n. 42104216282  del 28/09/2021 AGOSTO 2021 - CONSUMI VILLA FARSETTI;19/10/2021;4234;0;352;1;Spese correnti;3;Acquisto di beni e servizi;2;Acquisto di servizi;5;Utenze e canoni;6;Gas;21/10/2021
4036;1;9999999;199,6;199,6;OMESSO NOMINATIVO NEL RISPETTO DELLA NORMATIVA SULLA PROTEZIONE DATI PERSONALI; ;LUGLIO/AGOSTO/SETTEMBRE 21 PROGETTO PERSONALIZZATO DINTERVENTO SOCIO-ASSISTENZIALE A FAVORE DI MINORE;21/10/2021;3757;0;851;1;Spese correnti;4;Trasferimenti correnti;2;Trasferimenti correnti a Famiglie;5;Altri trasferimenti a famiglie;999;Altri trasferimenti a famiglie n.a.c.;26/10/2021
4037;1;9999999;1.080,00;1.080,00;OMESSO NOMINATIVO NEL RISPETTO DELLA NORMATIVA SULLA PROTEZIONE DATI PERSONALI; ;LUGLIO/AGOSTO/SETTEMBRE 21 PROGETTO PERSONALIZZATO DINTERVENTO SOCIO-ASSISTENZIALE A FAVORE DI MINORE;21/10/2021;3957;54;646;1;Spese correnti;4;Trasferimenti correnti;2;Trasferimenti correnti a Famiglie;5;Altri trasferimenti a famiglie;999;Altri trasferimenti a famiglie n.a.c.;26/10/2021
4038;1;9999999;300;1.550,00;MANO AMICA - GRUPPO SALESE DI IMPEGNO SOCIALE O.D.V.; ;CONFEZIONAMENTO CESTE NATALIZIE 2021;21/10/2021;4059;0;446;1;Spese correnti;4;Trasferimenti correnti;4;Trasferimenti correnti a Istituzioni Sociali Private;1;Trasferimenti correnti a Istituzioni Sociali Private;1;Trasferimenti correnti a Istituzioni Sociali Private;26/10/2021
4038;2;9999999;1.250,00;1.550,00;MANO AMICA - GRUPPO SALESE DI IMPEGNO SOCIALE O.D.V.; ;PROGETTO CONDUZIONE E CURA ORTO SOLIDALE II SEMESTRE 21;21/10/2021;4059;0;446;1;Spese correnti;4;Trasferimenti correnti;4;Trasferimenti correnti a Istituzioni Sociali Private;1;Trasferimenti correnti a Istituzioni Sociali Private;1;Trasferimenti correnti a Istituzioni Sociali Private;26/10/2021
4039;1;9999999;1.500,00;1.500,00;MANO AMICA - GRUPPO SALESE DI IMPEGNO SOCIALE O.D.V.; ;II SEMESTRE 2021 QUOTA TRASPORTO SOCIALE;21/10/2021;4059;0;446;1;Spese correnti;4;Trasferimenti correnti;4;Trasferimenti correnti a Istituzioni Sociali Private;1;Trasferimenti correnti a Istituzioni Sociali Private;1;Trasferimenti correnti a Istituzioni Sociali Private;26/10/2021
4040;1;9999999;316,72;316,72;C.E.I.F. DI BESSEGA VANNI;ZB9305D59C;SALDO Fatt.n. 1-13  del 30/09/2021 MATERIALE VARIO DI FERRAMENTA PER MANUTENZIONI;21/10/2021;522;0;58;1;Spese correnti;3;Acquisto di beni e servizi;1;Acquisto di beni;2;Altri beni di consumo;999;Altri beni e materiali di consumo n.a.c.;26/10/2021
4041;1;9999999;3,69;42,39;COMUNE DI S.MARIA DI SALA; ;CANONE E COMMISSIONI SU POS 0E-COMMERCE;22/10/2021;146;0;712;1;Spese correnti;3;Acquisto di beni e servizi;2;Acquisto di servizi;17;Servizi finanziari;1;Commissioni per servizi finanziari;25/10/2021
4041;2;9999999;21,32;42,39;COMUNE DI S.MARIA DI SALA; ;CANONE E COMMISSIONI SU POS 0E-COMMERCE;22/10/2021;146;0;712;1;Spese correnti;3;Acquisto di beni e servizi;2;Acquisto di servizi;17;Servizi finanziari;1;Commissioni per servizi finanziari;25/10/2021
4041;3;9999999;3,65;42,39;COMUNE DI S.MARIA DI SALA; ;CANONE E COMMISSIONI SU POS 0E-COMMERCE;22/10/2021;146;0;712;1;Spese correnti;3;Acquisto di beni e servizi;2;Acquisto di servizi;17;Servizi finanziari;1;Commissioni per servizi finanziari;25/10/2021
4041;4;9999999;13,73;42,39;COMUNE DI S.MARIA DI SALA; ;CANONE E COMMISSIONI SU POS 0E-COMMERCE;22/10/2021;146;0;712;1;Spese correnti;3;Acquisto di beni e servizi;2;Acquisto di servizi;17;Servizi finanziari;1;Commissioni per servizi finanziari;25/10/2021
4044;1;9999999;115;115;OMESSO NOMINATIVO NEL RISPETTO DELLA NORMATIVA SULLA PROTEZIONE DATI PERSONALI; ;OTTOBRE 2021 COMPETENZE TIROCINIO INSERIMENTO LAVORATIVO;22/10/2021;4157;0;355;1;Spese correnti;4;Trasferimenti correnti;2;Trasferimenti correnti a Famiglie;2;Interventi assistenziali;999;Altri assegni e sussidi assistenziali;26/10/2021
4046;1;9999999;819,73;819,73;OMESSO NOMINATIVO NEL RISPETTO DELLA NORMATIVA SULLA PROTEZIONE DATI PERSONALI; ;OTTOBRE 2021 INTEGRAZIONE RETTA CASA DI RIPOSO IPAB L.MARIUTTO DI MIRANO ANNO 2021;25/10/2021;3844;0;709;1;Spese correnti;3;Acquisto di beni e servizi;2;Acquisto di servizi;15;Contratti di servizio pubblico;8;Contratti di servizio di assistenza sociale residenziale e semiresidenziale;28/10/2021
4047;1;9999999;900;900;OMESSO NOMINATIVO NEL RISPETTO DELLA NORMATIVA SULLA PROTEZIONE DATI PERSONALI; ;OTTOBRE 2021 INTEGRAZIONE RETTA CASA DI RIPOSO IPAB L.MARIUTTO DI MIRANO;25/10/2021;3844;0;574;1;Spese correnti;3;Acquisto di beni e servizi;2;Acquisto di servizi;15;Contratti di servizio pubblico;8;Contratti di servizio di assistenza sociale residenziale e semiresidenziale;28/10/2021
4048;1;9999999;506;506;OMESSO NOMINATIVO NEL RISPETTO DELLA NORMATIVA SULLA PROTEZIONE DATI PERSONALI; ;OTTOBRE 2021 INTEGRAZIONE RETTA CASA DI RIPOSO RELAXXI DI NOALE;25/10/2021;3844;0;437;1;Spese correnti;3;Acquisto di beni e servizi;2;Acquisto di servizi;15;Contratti di servizio pubblico;8;Contratti di servizio di assistenza sociale residenziale e semiresidenziale;28/10/2021
4049;1;9999999;365;365;OMESSO NOMINATIVO NEL RISPETTO DELLA NORMATIVA SULLA PROTEZIONE DATI PERSONALI; ;OTTOBRE 2021 INTEGRAZIONE RETTA CASA DI RIPOSO DON ORIONE DI TREBASELEGHE.;25/10/2021;3844;0;415;1;Spese correnti;3;Acquisto di beni e servizi;2;Acquisto di servizi;15;Contratti di servizio pubblico;12;Contratti di servizio per la gestione delle aree di sosta a pagamento;28/10/2021
4050;1;9999999;950;950;OMESSO NOMINATIVO NEL RISPETTO DELLA NORMATIVA SULLA PROTEZIONE DATI PERSONALI; ;OTTOBRE 2021 INTEGRAZIONE RETTA CASA DI RIPOSO LA SALUTE DI FIESSO DARTICO;25/10/2021;3844;0;434;1;Spese correnti;3;Acquisto di beni e servizi;2;Acquisto di servizi;15;Contratti di servizio pubblico;8;Contratti di servizio di assistenza sociale residenziale e semiresidenziale;28/10/2021
4051;1;9999999;700;700;OMESSO NOMINATIVO NEL RISPETTO DELLA NORMATIVA SULLA PROTEZIONE DATI PERSONALI; ;OTTOBRE 2021 INTEGRAZIONE RETTA CASA DI RIPOSO LA SALUTE DI FIESSO DARTICO.;25/10/2021;3844;0;435;1;Spese correnti;3;Acquisto di beni e servizi;2;Acquisto di servizi;15;Contratti di servizio pubblico;8;Contratti di servizio di assistenza sociale residenziale e semiresidenziale;28/10/2021
4052;1;9999999;600;600;OMESSO NOMINATIVO NEL RISPETTO DELLA NORMATIVA SULLA PROTEZIONE DATI PERSONALI; ;OTTOBRE 2021 INTEGRAZIONE RETTA CASA DI RIPOSO RELAXXI DI NOALE.;25/10/2021;3844;0;572;1;Spese correnti;3;Acquisto di beni e servizi;2;Acquisto di servizi;15;Contratti di servizio pubblico;8;Contratti di servizio di assistenza sociale residenziale e semiresidenziale;28/10/2021
4053;1;9999999;77,88;77,88;ABACO S.P.A.;766214493F;SALDO Fatt.n. 2021140003460  del 07/10/2021 AGGIO RISCOSSIONI ICI IMU TASI LOTTO 10- 11-12-13-14 RENDICONTO DELLA GESTIONE DAL 01/09/2021 AL 30/09/2021 ABACO SPA CIG 766214493F;25/10/2021;332;0;567;1;Spese correnti;3;Acquisto di beni e servizi;2;Acquisto di servizi;3;Aggi di riscossione;999;Altri aggi di riscossione n.a.c.;28/10/2021
4054;1;9999999;92,7;92,7;ABACO S.P.A.;Z4B0FF1CA6;SALDO Fatt.n. 2021140003464  del 07/10/2021 AGGIO RISCOSSIONI INCASSI CDS LOTTO 1 RENDICONTO DAL 01/09/2021 AL 30/09/2021 ABACO SPA CIG 5325258DE8;25/10/2021;332;0;876;1;Spese correnti;3;Acquisto di beni e servizi;2;Acquisto di servizi;3;Aggi di riscossione;999;Altri aggi di riscossione n.a.c.;28/10/2021
4055;1;9999999;3.491,22;3.491,22;BONAVENTURA EXPRESS SRL;8704892021;SALDO Fatt.n. 147PA  del 04/10/2021 SETTEMBRE 2021 - TRASPORTO SCOLASTICO;25/10/2021;1344;0;388;1;Spese correnti;3;Acquisto di beni e servizi;2;Acquisto di servizi;15;Contratti di servizio pubblico;2;Contratti di servizio di trasporto scolastico;28/10/2021
4056;1;9999999;352;352;BONAVENTURA EXPRESS SRL;8704892021;SALDO Fatt.n. 149PA  del 04/10/2021 SANIFICAZIONE PER EMERGENZA COVID -19 - TRASPORTO SCOLASTICO SETTEMBRE  2021;25/10/2021;1344;0;388;1;Spese correnti;3;Acquisto di beni e servizi;2;Acquisto di servizi;15;Contratti di servizio pubblico;2;Contratti di servizio di trasporto scolastico;28/10/2021
4057;1;9999999;586;586;ENERGIA FUTURA S.C.;ZDA332F39A;SALDO Fatt.n. FPA 11/21  del 08/10/2021 SERVIZIO DI CELLOPHANATURA E DISTRIBUZIONE DI MATERIALE INFORMATICO RELATIVO AL NOTIZIARIO COMUNALE ED. OTTOBRE 2021;25/10/2021;1831;0;847;1;Spese correnti;3;Acquisto di beni e servizi;2;Acquisto di servizi;2;Organizzazione eventi, pubblicita` e servizi per trasferta;4;Pubblicita`;28/10/2021
4058;1;9999999;1.610,40;1.610,40;GRAFICHE QUATTRO SRL;ZB632EFEE1;SALDO Fatt.n. 000008-0CPAPA  del 28/09/2021 LIBRETTO  - UNIPOP 2021-2022  COMPOSTO DA 12 PAGINE  E RILEGATO A PUNTO METALLICO;25/10/2021;1831;0;866;1;Spese correnti;3;Acquisto di beni e servizi;2;Acquisto di servizi;2;Organizzazione eventi, pubblicita` e servizi per trasferta;4;Pubblicita`;28/10/2021
4059;1;9999999;42,7;271,21;EPIU' SRL - COSTRUIRE INSIEME;Z4230934B4;SALDO Fatt.n. 605922  del 05/10/2021 CANONE NOLEGGIO ATTREZZATURA EDILE TRABATELLO;25/10/2021;3538;0;167;1;Spese correnti;3;Acquisto di beni e servizi;2;Acquisto di servizi;9;Manutenzione ordinaria e riparazioni;8;Manutenzione ordinaria e riparazioni di beni immobili;28/10/2021
4059;2;9999999;228,51;271,21;EPIU' SRL - COSTRUIRE INSIEME;Z4230934B4;SALDO Fatt.n. 24696  del 30/09/2021 MATERIALI EDILI PER MANUTENZIONI;25/10/2021;3538;0;167;1;Spese correnti;3;Acquisto di beni e servizi;2;Acquisto di servizi;9;Manutenzione ordinaria e riparazioni;8;Manutenzione ordinaria e riparazioni di beni immobili;28/10/2021
4060;1;9999999;4.758,00;4.758,00;SARV ANTINCENDI SRL;ZB332BD62A;SALDO Fatt.n. PA0000010  del 05/10/2021 SOSTITUZIONE DI N 3 DEFIBRILLATORI PRESENTI NEI FABBRICATI COMUNALI;25/10/2021;7581;0;699;2;Spese in conto capitale;2;Investimenti fissi lordi e acquisto di terreni;1;Beni materiali;5;Attrezzature;999;Attrezzature n.a.c.;28/10/2021
4061;1;9999999;2.593,43;2.593,43;MONTIN MANUEL;ZC92F5FCD2;ACCONTO Fatt.n. 55  del 06/10/2021  SALDO INCARICO RELATIVO AL  SERVIZIO PROGETTAZIONE ESECUTIVA E DIREZIONE LAVORI  PER INTERVENTO MANUTENZIONE STRAORDINARIA STRADE NEL TERIITORIO COMUNALE;25/10/2021;8558;0;1162;2;Spese in conto capitale;2;Investimenti fissi lordi e acquisto di terreni;1;Beni materiali;9;Beni immobili;12;Infrastrutture stradali;28/10/2021
4062;1;9999999;631,51;631,51;ASFALTI BARIZZA SNC;8553382A1C;SALDO Fatt.n. FPA 13/21  del 08/10/2021 3  SAL FINALE - MANUTENZIONE DELLE STRADE DEL TERRITORIO COMUNALE  - SVINCOLO POLIZZA E SALDO RITENUTA PER INFORTUNI DEL 0,5%;25/10/2021;8558;0;1242;2;Spese in conto capitale;2;Investimenti fissi lordi e acquisto di terreni;1;Beni materiali;9;Beni immobili;12;Infrastrutture stradali;28/10/2021
4063;1;9999999;50,36;50,36;MONTIN MANUEL;ZC92F5FCD2;SALDO Fatt.n. 55  del 06/10/2021  SALDO INCARICO RELATIVO AL  SERVIZIO PROGETTAZIONE ESECUTIVA E DIREZIONE LAVORI  PER INTERVENTO MANUTENZIONE STRAORDINARIA STRADE NEL TERIITORIO COMUNALE;25/10/2021;8558;0;684;2;Spese in conto capitale;2;Investimenti fissi lordi e acquisto di terreni;1;Beni materiali;9;Beni immobili;12;Infrastrutture stradali;28/10/2021
4064;1;9999999;45,69;584,71;ABACO S.P.A.;766214493F;SALDO Fatt.n. 2021120004627  del 08/10/2021 AGGIO CUP - OCCUPAZIONE SUOLO PUBBLICO - SU INCASSI ENTE RENDICONTO DELLA GESTIONE DAL 01/08/2021 A 30/09/2021 CIG 766214493F;25/10/2021;332;0;1228;1;Spese correnti;3;Acquisto di beni e servizi;2;Acquisto di servizi;3;Aggi di riscossione;999;Altri aggi di riscossione n.a.c.;28/10/2021
4064;2;9999999;539,02;584,71;ABACO S.P.A.;766214493F;SALDO Fatt.n. 2021120004628  del 08/10/2021 AGGIO CUP - ESPOSIZIONI PUBBLI CITARIE - SU INCASSI ENTE RENDICONTO DELLA GESTIONE DAL 01/08/2021 A 30/09/2021  CIG 766214493F;25/10/2021;332;0;1228;1;Spese correnti;3;Acquisto di beni e servizi;2;Acquisto di servizi;3;Aggi di riscossione;999;Altri aggi di riscossione n.a.c.;28/10/2021
4065;1;9999999;10,5;592,15;ABACO S.P.A.;5325258DE8;SALDO Fatt.n. 2021140003459  del 07/10/2021 AGGIO RISCOSSIONI ICI IMU TASI LOTTO 6 RENDICONTO DELLA GESTIONE DAL 01/09/2021 AL 30/09/2021 ABACO SPA CIG 5325258DE8;25/10/2021;332;0;671;1;Spese correnti;3;Acquisto di beni e servizi;2;Acquisto di servizi;3;Aggi di riscossione;999;Altri aggi di riscossione n.a.c.;28/10/2021
4065;2;9999999;14,57;592,15;ABACO S.P.A.;5325258DE8;SALDO Fatt.n. 2021140003458  del 07/10/2021 AGGIO RISCOSSIONI ICI IMU TASI LOTTO 2 RENDICONTO DELLA GESTIONE DAL 01/09/2021 AL 30/09/2021 ABACO SPA CIG 5325258DE8;25/10/2021;332;0;671;1;Spese correnti;3;Acquisto di beni e servizi;2;Acquisto di servizi;3;Aggi di riscossione;999;Altri aggi di riscossione n.a.c.;28/10/2021
4065;3;9999999;567,08;592,15;ABACO S.P.A.;5325258DE8;SALDO Fatt.n. 2021140003465  del 07/10/2021 AGGIO RISCOSSIONI ICI IMU TASI LOTTO 9 RENDICONTO DAL 01/09/2021 AL 30/09/2021 ABACO SPA CIG 5325258DE8;25/10/2021;332;0;671;1;Spese correnti;3;Acquisto di beni e servizi;2;Acquisto di servizi;3;Aggi di riscossione;999;Altri aggi di riscossione n.a.c.;28/10/2021
4066;1;9999999;58.725,11;58.725,11;CARPENTERIA  SERRAMENTI FAVARETTO DI FAVARETTO MATTEO;8796437971;SALDO Fatt.n. 0000071  del 30/09/2021 SOSTITUZIONE INFISSI SCUOLE COMUNALI AI FINI DELL EFFICENTAMENTO ENERGETICO ANNO 2021 - SAL n. 2  - CERTIFICATO n. 2.;25/10/2021;7630;1;612;2;Spese in conto capitale;2;Investimenti fissi lordi e acquisto di terreni;1;Beni materiali;9;Beni immobili;3;Fabbricati ad uso scolastico;28/10/2021
4067;1;9999999;16.500,00;16.500,00;CARPENTERIA  SERRAMENTI FAVARETTO DI FAVARETTO MATTEO;8796437971;SALDO Fatt.n. 0000071  del 30/09/2021 SOSTITUZIONE INFISSI SCUOLE COMUNALI AI FINI DELL EFFICENTAMENTO ENERGETICO ANNO 2021 - SAL n. 2  - CERTIFICATO n. 2.;25/10/2021;7630;1;612;2;Spese in conto capitale;2;Investimenti fissi lordi e acquisto di terreni;1;Beni materiali;9;Beni immobili;3;Fabbricati ad uso scolastico;28/10/2021
4068;1;9999999;13,64;13,64;COMUNE DI S.MARIA DI SALA; ;AGGIO IFEL RISCOSSIONE IMU RENDICONTO AL 25 OTTOBRE 2021;26/10/2021;332;0;0;1;Spese correnti;3;Acquisto di beni e servizi;2;Acquisto di servizi;3;Aggi di riscossione;999;Altri aggi di riscossione n.a.c.;28/10/2021
4069;1;9999999;3.221,00;3.221,00;LABS LABORATORIO SOLIDALE ONLUS; ;GIUGNO 2021 - SERVIZIO DI PULIZIA E DISINFEZIONE DI N.6 PALESTRE COMUNALI IN ORARIO SCOLASTICO;26/10/2021;1959;0;1341;1;Spese correnti;4;Trasferimenti correnti;4;Trasferimenti correnti a Istituzioni Sociali Private;1;Trasferimenti correnti a Istituzioni Sociali Private;1;Trasferimenti correnti a Istituzioni Sociali Private;28/10/2021
4070;1;9999999;569;569;COMUNE DI DOLO; ;RETTA LUGLIO 2021 OPSITE GRUPPO APPARTAMENTO;26/10/2021;4051;0;179;1;Spese correnti;4;Trasferimenti correnti;1;Trasferimenti correnti a Amministrazioni Pubbliche;2;Trasferimenti correnti a Amministrazioni Locali;3;Trasferimenti correnti a Comuni;28/10/2021
4071;1;9999999;109,8;109,8;JOLLY BOX SRL;Z642E237DF;SALDO Fatt.n. 4637-V0-2021  del 30/09/2021 NOLEGGIO DI CONTAINER NAVALI  SC. ELEM. VETERNIGO - MESE DI SETTEMBRE 2021;26/10/2021;1336;0;679;1;Spese correnti;3;Acquisto di beni e servizi;2;Acquisto di servizi;7;Utilizzo di beni di terzi;8;Noleggi di impianti e macchinari;28/10/2021
4072;1;9999999;164,16;164,16;IDRONORD SRL;ZAF3049734;SALDO Fatt.n. 2672  del 24/09/2021 FORNITURA MATERIALE EDILE E STRADALE PER MANUTENZIONI;26/10/2021;3538;0;49;1;Spese correnti;3;Acquisto di beni e servizi;2;Acquisto di servizi;9;Manutenzione ordinaria e riparazioni;8;Manutenzione ordinaria e riparazioni di beni immobili;28/10/2021
4073;1;9999999;1.070,49;1.070,49;E.N.P.A. ONLUS SEZ. DI MIRA; ;SALDO Fatt.n. 1481/PA  del 30/09/2021 CUSTODIA CANI VAGANTI LUGLIO - AGOSTO 2021;26/10/2021;3659;0;88;1;Spese correnti;4;Trasferimenti correnti;4;Trasferimenti correnti a Istituzioni Sociali Private;1;Trasferimenti correnti a Istituzioni Sociali Private;1;Trasferimenti correnti a Istituzioni Sociali Private;28/10/2021
4074;1;9999999;4.026,00;4.026,00;EFFEPI DI FABBIAN CANDIDO;Z45333C380;SALDO Fatt.n. 142  del 16/10/2021 FORNITURA TRATTORINO TAGLIAERBA STIGA ESTATE  7102 HWSY MATR.21IA1RON002145;26/10/2021;7430;0;850;2;Spese in conto capitale;2;Investimenti fissi lordi e acquisto di terreni;1;Beni materiali;4;Impianti e macchinari;1;Macchinari;28/10/2021
4075;1;9999999;79,2;79,2;AIDEM SRL -  PROFESSIONAL ACADEMY;ZDB32F9FD8;SALDO Fatt.n. 325/PA  del 05/10/2021 PARTECIPAZIONE DIPENDENTE COMUNALE S.F. AL CORSO CONSERVAZIONE DEI DOCUMENTI E MANUALE DI GESTIONE DOCUMENTALE;26/10/2021;833;0;727;1;Spese correnti;3;Acquisto di beni e servizi;2;Acquisto di servizi;4;Acquisto di servizi per formazione e addestramento del personale dell'ente;4;Acquisto di servizi per formazione obbligatoria;28/10/2021
4079;1;9999999;3.897,74;3.897,74;BOESSO DI SIMIONATO MARTA CARTOLERIA; ;SALDO Fatt.n. 9/PA  del 25/09/2021 FORNITURA LIBRI DI TESTO PER SCUOLE ELEMENTARI;26/10/2021;1357;0;156;1;Spese correnti;4;Trasferimenti correnti;2;Trasferimenti correnti a Famiglie;5;Altri trasferimenti a famiglie;999;Altri trasferimenti a famiglie n.a.c.;28/10/2021
4080;1;9999999;33,03;242,32;ENEL ENERGIA SPA;8426072694;SALDO Fatt.n. 004166522588  del 06/10/2021 SETTEMBRE 2021 - CONSUMI ALLOGGIO VIA DON GALLERANI CALTANA;28/10/2021;134;31;111;1;Spese correnti;3;Acquisto di beni e servizi;2;Acquisto di servizi;5;Utenze e canoni;4;Energia elettrica;02/11/2021
4080;2;9999999;60,98;242,32;ENEL ENERGIA SPA;8426072694;SALDO Fatt.n. 004173084833  del 13/10/2021 SETTEMBRE 2021 - CONSUMI ALLOGGIO VIA OLIMPIA SMS;28/10/2021;134;31;111;1;Spese correnti;3;Acquisto di beni e servizi;2;Acquisto di servizi;5;Utenze e canoni;4;Energia elettrica;02/11/2021
4080;3;9999999;69,33;242,32;ENEL ENERGIA SPA;8426072694;SALDO Fatt.n. 004166522646  del 06/10/2021 SETTEMBRE 2021 - CONSUMI PARCHEGGIO C.C. PRISMA CASELLE;28/10/2021;134;31;111;1;Spese correnti;3;Acquisto di beni e servizi;2;Acquisto di servizi;5;Utenze e canoni;4;Energia elettrica;02/11/2021
4080;4;9999999;78,98;242,32;ENEL ENERGIA SPA;8426072694;SALDO Fatt.n. 004166522618  del 06/10/2021 SETTEMBRE 2021 - CONSUMI PARCHEGGIO OVALE SMS;28/10/2021;134;31;111;1;Spese correnti;3;Acquisto di beni e servizi;2;Acquisto di servizi;5;Utenze e canoni;4;Energia elettrica;02/11/2021
4081;1;9999999;68,69;437,19;ENEL ENERGIA SPA;8426072694;SALDO Fatt.n. 004166522649  del 06/10/2021 SETTEMBRE 2021 - CONSUMI MERCATO CALTANA;28/10/2021;134;31;111;1;Spese correnti;3;Acquisto di beni e servizi;2;Acquisto di servizi;5;Utenze e canoni;4;Energia elettrica;02/11/2021
4081;2;9999999;78,96;437,19;ENEL ENERGIA SPA;8426072694;SALDO Fatt.n. 004166522606  del 06/10/2021 SETTEMBRE 2021 - CONSUMI ILLUMINAZIONE PUBBLICA;28/10/2021;134;31;111;1;Spese correnti;3;Acquisto di beni e servizi;2;Acquisto di servizi;5;Utenze e canoni;4;Energia elettrica;02/11/2021
4081;3;9999999;88,3;437,19;ENEL ENERGIA SPA;8426072694;SALDO Fatt.n. 004166522548  del 06/10/2021 SETTEMBRE 2021 - CONSUMI MERCATO SMS;28/10/2021;134;31;111;1;Spese correnti;3;Acquisto di beni e servizi;2;Acquisto di servizi;5;Utenze e canoni;4;Energia elettrica;02/11/2021
4081;4;9999999;95,23;437,19;ENEL ENERGIA SPA;8426072694;SALDO Fatt.n. 004166522614  del 06/10/2021 SETTEMBRE 2021 - CONSUMI P.ZZA S.D.A. CALTANA;28/10/2021;134;31;111;1;Spese correnti;3;Acquisto di beni e servizi;2;Acquisto di servizi;5;Utenze e canoni;4;Energia elettrica;02/11/2021
4081;5;9999999;106,01;437,19;ENEL ENERGIA SPA;8426072694;SALDO Fatt.n. 004166522540  del 06/10/2021 SETTEMBRE 2021 - CONSUMI MERCATO CASELLE;28/10/2021;134;31;111;1;Spese correnti;3;Acquisto di beni e servizi;2;Acquisto di servizi;5;Utenze e canoni;4;Energia elettrica;02/11/2021
4082;1;9999999;1.022,41;1.022,41;ENEL ENERGIA SPA;8426072694;SALDO Fatt.n. 004166522568  del 06/10/2021 SETTEMBRE 2021 - CONSUMI SEDE MUNICIPALE;28/10/2021;134;31;111;1;Spese correnti;3;Acquisto di beni e servizi;2;Acquisto di servizi;5;Utenze e canoni;4;Energia elettrica;02/11/2021
4083;1;9999999;6,57;6,57;ENEL ENERGIA SPA;8426072694;ACCONTO Fatt.n. 004166522560  del 06/10/2021 SETTEMBRE 2021 - CONSUMI CIMITERO SMS - LAMPADE VOTIVE;28/10/2021;134;31;111;1;Spese correnti;3;Acquisto di beni e servizi;2;Acquisto di servizi;5;Utenze e canoni;4;Energia elettrica;02/11/2021
4084;1;9999999;6,97;6,97;ENEL ENERGIA SPA;8426072694;ACCONTO Fatt.n. 004166522630  del 06/10/2021 SETTEMBRE 2021 - CONSUMI CIMITERO S.ANGELO - LAMPADE VOTIVE;28/10/2021;134;31;111;1;Spese correnti;3;Acquisto di beni e servizi;2;Acquisto di servizi;5;Utenze e canoni;4;Energia elettrica;02/11/2021
4085;1;9999999;8,05;8,05;ENEL ENERGIA SPA;8426072694;ACCONTO Fatt.n. 004166522572  del 06/10/2021 SETTEMBRE 2021 - CONSUMI CIMITERO  CALTANA  - LAMPADE VOTIVE;28/10/2021;134;31;111;1;Spese correnti;3;Acquisto di beni e servizi;2;Acquisto di servizi;5;Utenze e canoni;4;Energia elettrica;02/11/2021
4086;1;9999999;4,6;4,6;ENEL ENERGIA SPA;8426072694;ACCONTO Fatt.n. 004166522635  del 06/10/2021 SETTEMBRE 2021 - CONSUMI CIMITERO VETERNIGO - LAMPADE VOTIVE;28/10/2021;134;31;111;1;Spese correnti;3;Acquisto di beni e servizi;2;Acquisto di servizi;5;Utenze e canoni;4;Energia elettrica;02/11/2021
4087;1;9999999;4,3;4,3;ENEL ENERGIA SPA;8426072694;ACCONTO Fatt.n. 004166522544  del 06/10/2021 SETTEMBRE 2021 - CONSUMI CIMITERO CASELLE - LAMPADE VOTIVE;28/10/2021;134;31;111;1;Spese correnti;3;Acquisto di beni e servizi;2;Acquisto di servizi;5;Utenze e canoni;4;Energia elettrica;02/11/2021
4088;1;9999999;54;483,64;ENEL ENERGIA SPA;8426072694;SALDO Fatt.n. 004166522601  del 06/10/2021 SETTEMBRE 2021 - CONSUMI SC. ELEM. SMS;28/10/2021;1334;30;112;1;Spese correnti;3;Acquisto di beni e servizi;2;Acquisto di servizi;5;Utenze e canoni;4;Energia elettrica;02/11/2021
4088;2;9999999;203,94;483,64;ENEL ENERGIA SPA;8426072694;SALDO Fatt.n. 004166522628  del 06/10/2021 SETTEMBRE 2021 - CONSUMI SC. ELEM. CALTANA;28/10/2021;1334;30;112;1;Spese correnti;3;Acquisto di beni e servizi;2;Acquisto di servizi;5;Utenze e canoni;4;Energia elettrica;02/11/2021
4088;3;9999999;225,7;483,64;ENEL ENERGIA SPA;8426072694;SALDO Fatt.n. 004166522605  del 06/10/2021 SETTEMBRE 2021 - CONSUMI SC. ELEM. CASELLE;28/10/2021;1334;30;112;1;Spese correnti;3;Acquisto di beni e servizi;2;Acquisto di servizi;5;Utenze e canoni;4;Energia elettrica;02/11/2021
4089;1;9999999;376,43;2.483,36;ENEL ENERGIA SPA;8426072694;SALDO Fatt.n. 004173681035  del 21/10/2021 CONG. CONSUMI SC. ELEM. CALTANA;28/10/2021;1334;30;112;1;Spese correnti;3;Acquisto di beni e servizi;2;Acquisto di servizi;5;Utenze e canoni;4;Energia elettrica;02/11/2021
4089;2;9999999;822,43;2.483,36;ENEL ENERGIA SPA;8426072694;SALDO Fatt.n. 004173681033  del 21/10/2021 CONG. CONSUMI SC. ELEM. CALTANA;28/10/2021;1334;30;112;1;Spese correnti;3;Acquisto di beni e servizi;2;Acquisto di servizi;5;Utenze e canoni;4;Energia elettrica;02/11/2021
4089;3;9999999;1.284,50;2.483,36;ENEL ENERGIA SPA;8426072694;SALDO Fatt.n. 004173681034  del 21/10/2021 CONG. CONSUMI SC. ELEM. CALTANA;28/10/2021;1334;30;112;1;Spese correnti;3;Acquisto di beni e servizi;2;Acquisto di servizi;5;Utenze e canoni;4;Energia elettrica;02/11/2021
4090;1;9999999;182,51;182,51;ENEL ENERGIA SPA;8426072694;ACCONTO Fatt.n. 004166522619  del 06/10/2021 SETTEMBRE 2021 - CONSUMI PALESTRA CALTANA;28/10/2021;1334;30;112;1;Spese correnti;3;Acquisto di beni e servizi;2;Acquisto di servizi;5;Utenze e canoni;4;Energia elettrica;02/11/2021
4091;1;9999999;72,13;72,13;ENEL ENERGIA SPA;8426072694;ACCONTO Fatt.n. 004166522598  del 06/10/2021 SETTEMBRE 2021 - CONSUMI  PALESTRA CASELLE;28/10/2021;1334;30;112;1;Spese correnti;3;Acquisto di beni e servizi;2;Acquisto di servizi;5;Utenze e canoni;4;Energia elettrica;02/11/2021
4092;1;9999999;99;99;ENEL ENERGIA SPA;8426072694;ACCONTO Fatt.n. 004166522610  del 06/10/2021 SETTEMBRE 2021 - CONSUMI SC. ELEM. - PALESTRA STIGLIANO;28/10/2021;1334;30;112;1;Spese correnti;3;Acquisto di beni e servizi;2;Acquisto di servizi;5;Utenze e canoni;4;Energia elettrica;02/11/2021
4093;1;9999999;84,8;84,8;ENEL ENERGIA SPA;8426072694;ACCONTO Fatt.n. 004166522610  del 06/10/2021 SETTEMBRE 2021 - CONSUMI SC. ELEM. - PALESTRA STIGLIANO;28/10/2021;1334;30;112;1;Spese correnti;3;Acquisto di beni e servizi;2;Acquisto di servizi;5;Utenze e canoni;4;Energia elettrica;02/11/2021
4094;1;9999999;98;98;ENEL ENERGIA SPA;8426072694;ACCONTO Fatt.n. 004166522650  del 06/10/2021 SETTEMBRE 2021 - CONSUMI SC. ELEM. - PALESTRA - ASILO S.ANGELO;28/10/2021;1334;30;112;1;Spese correnti;3;Acquisto di beni e servizi;2;Acquisto di servizi;5;Utenze e canoni;4;Energia elettrica;02/11/2021
4095;1;9999999;295,39;295,39;ENEL ENERGIA SPA;8426072694;ACCONTO Fatt.n. 004166522650  del 06/10/2021 SETTEMBRE 2021 - CONSUMI SC. ELEM. - PALESTRA - ASILO S.ANGELO;28/10/2021;1334;30;112;1;Spese correnti;3;Acquisto di beni e servizi;2;Acquisto di servizi;5;Utenze e canoni;4;Energia elettrica;02/11/2021
4096;1;9999999;115,21;115,21;ENEL ENERGIA SPA;8426072694;ACCONTO Fatt.n. 004166522655  del 06/10/2021 SETTEMBRE 2021 - CONSUMI PALESTRA SMS;28/10/2021;1334;30;112;1;Spese correnti;3;Acquisto di beni e servizi;2;Acquisto di servizi;5;Utenze e canoni;4;Energia elettrica;02/11/2021
4097;1;9999999;118;118;ENEL ENERGIA SPA;8426072694;ACCONTO Fatt.n. 004166522546  del 06/10/2021 SETTEMBRE 2021 - CONSUMI SC. ELEM - PALESTRA VETERNIGO;28/10/2021;1334;30;112;1;Spese correnti;3;Acquisto di beni e servizi;2;Acquisto di servizi;5;Utenze e canoni;4;Energia elettrica;02/11/2021
4098;1;9999999;192,63;192,63;ENEL ENERGIA SPA;8426072694;ACCONTO Fatt.n. 004166522546  del 06/10/2021 SETTEMBRE 2021 - CONSUMI SC. ELEM - PALESTRA VETERNIGO;28/10/2021;1334;30;112;1;Spese correnti;3;Acquisto di beni e servizi;2;Acquisto di servizi;5;Utenze e canoni;4;Energia elettrica;02/11/2021
4099;1;9999999;158,67;158,67;ENEL ENERGIA SPA;8426072694;SALDO Fatt.n. 004166522633  del 06/10/2021 SETTEMBRE 2021 - CONSUMI IMP. SPORT. SMS;28/10/2021;1934;0;114;1;Spese correnti;3;Acquisto di beni e servizi;2;Acquisto di servizi;5;Utenze e canoni;4;Energia elettrica;02/11/2021
4100;1;9999999;17,43;17,43;ENEL ENERGIA SPA;8426072694;SALDO Fatt.n. 004166522667  del 06/10/2021 SETTEMBRE 2021 - CONSUMI IMP. SPORTIVO CASELLE;28/10/2021;1934;0;114;1;Spese correnti;3;Acquisto di beni e servizi;2;Acquisto di servizi;5;Utenze e canoni;4;Energia elettrica;02/11/2021
4101;1;9999999;147,16;147,16;ENEL ENERGIA SPA;8426072694;SALDO Fatt.n. 004166522571  del 06/10/2021 SETTEMBRE 2021 - CONSUMI  IMP. SPORT. CASELLE PARROCCHIA;28/10/2021;1934;0;114;1;Spese correnti;3;Acquisto di beni e servizi;2;Acquisto di servizi;5;Utenze e canoni;4;Energia elettrica;02/11/2021
4102;1;9999999;182,51;182,51;ENEL ENERGIA SPA;8426072694;SALDO Fatt.n. 004166522619  del 06/10/2021 SETTEMBRE 2021 - CONSUMI PALESTRA CALTANA;28/10/2021;1934;0;114;1;Spese correnti;3;Acquisto di beni e servizi;2;Acquisto di servizi;5;Utenze e canoni;4;Energia elettrica;02/11/2021
4103;1;9999999;72,14;72,14;ENEL ENERGIA SPA;8426072694;SALDO Fatt.n. 004166522598  del 06/10/2021 SETTEMBRE 2021 - CONSUMI  PALESTRA CASELLE;28/10/2021;1934;0;114;1;Spese correnti;3;Acquisto di beni e servizi;2;Acquisto di servizi;5;Utenze e canoni;4;Energia elettrica;02/11/2021
4104;1;9999999;99;99;ENEL ENERGIA SPA;8426072694;SALDO Fatt.n. 004166522610  del 06/10/2021 SETTEMBRE 2021 - CONSUMI SC. ELEM. - PALESTRA STIGLIANO;28/10/2021;1934;0;114;1;Spese correnti;3;Acquisto di beni e servizi;2;Acquisto di servizi;5;Utenze e canoni;4;Energia elettrica;02/11/2021
4105;1;9999999;98;98;ENEL ENERGIA SPA;8426072694;SALDO Fatt.n. 004166522650  del 06/10/2021 SETTEMBRE 2021 - CONSUMI SC. ELEM. - PALESTRA - ASILO S.ANGELO;28/10/2021;1934;0;114;1;Spese correnti;3;Acquisto di beni e servizi;2;Acquisto di servizi;5;Utenze e canoni;4;Energia elettrica;02/11/2021
4106;1;9999999;115,21;115,21;ENEL ENERGIA SPA;8426072694;SALDO Fatt.n. 004166522655  del 06/10/2021 SETTEMBRE 2021 - CONSUMI PALESTRA SMS;28/10/2021;1934;0;114;1;Spese correnti;3;Acquisto di beni e servizi;2;Acquisto di servizi;5;Utenze e canoni;4;Energia elettrica;02/11/2021
4107;1;9999999;118;118;ENEL ENERGIA SPA;8426072694;SALDO Fatt.n. 004166522546  del 06/10/2021 SETTEMBRE 2021 - CONSUMI SC. ELEM - PALESTRA VETERNIGO;28/10/2021;1934;0;114;1;Spese correnti;3;Acquisto di beni e servizi;2;Acquisto di servizi;5;Utenze e canoni;4;Energia elettrica;02/11/2021
4108;1;9999999;41,87;41,87;ENEL ENERGIA SPA;8426072694;SALDO Fatt.n. 004166522526  del 06/10/2021 SETTEMBRE 2021 - CONSUMI ECOCENTRO COMUNALE;28/10/2021;3534;0;116;1;Spese correnti;3;Acquisto di beni e servizi;2;Acquisto di servizi;5;Utenze e canoni;4;Energia elettrica;02/11/2021
4109;1;9999999;219,09;219,09;ENEL ENERGIA SPA;8426072694;SALDO Fatt.n. 004166522604  del 06/10/2021 SETTEMBRE 2021 - CONSUMI MAGAZZINO COMUNALE;28/10/2021;3534;0;116;1;Spese correnti;3;Acquisto di beni e servizi;2;Acquisto di servizi;5;Utenze e canoni;4;Energia elettrica;02/11/2021
4110;1;9999999;15,47;1.144,51;ENEL ENERGIA SPA;8426072694;SALDO Fatt.n. 004166522587  del 06/10/2021 SETTEMBRE 2021 - CONSUMI ILLUMINAZIONE PUBBLICA;28/10/2021;3544;0;119;1;Spese correnti;3;Acquisto di beni e servizi;2;Acquisto di servizi;15;Contratti di servizio pubblico;15;Contratti di servizio per l'illuminazione pubblica;02/11/2021
4110;2;9999999;24,77;1.144,51;ENEL ENERGIA SPA;8426072694;SALDO Fatt.n. 004166522643  del 06/10/2021 SETTEMBRE 2021 - CONSUMI ILLUMINAZIONE PUBBLICA;28/10/2021;3544;0;119;1;Spese correnti;3;Acquisto di beni e servizi;2;Acquisto di servizi;15;Contratti di servizio pubblico;15;Contratti di servizio per l'illuminazione pubblica;02/11/2021
4110;3;9999999;171,31;1.144,51;ENEL ENERGIA SPA;8426072694;SALDO Fatt.n. 004166522570  del 06/10/2021 SETTEMBRE 2021 - CONSUMI ILLUMINAZIONE PUBBLICA;28/10/2021;3544;0;119;1;Spese correnti;3;Acquisto di beni e servizi;2;Acquisto di servizi;15;Contratti di servizio pubblico;15;Contratti di servizio per l'illuminazione pubblica;02/11/2021
4110;4;9999999;251,89;1.144,51;ENEL ENERGIA SPA;8426072694;SALDO Fatt.n. 004166522642  del 06/10/2021 SETTEMBRE 2021 - CONSUMI ILLUMINAZIONE PUBBLICA;28/10/2021;3544;0;119;1;Spese correnti;3;Acquisto di beni e servizi;2;Acquisto di servizi;15;Contratti di servizio pubblico;15;Contratti di servizio per l'illuminazione pubblica;02/11/2021
4110;5;9999999;315,55;1.144,51;ENEL ENERGIA SPA;8426072694;SALDO Fatt.n. 004166522549  del 06/10/2021 SETTEMBRE 2021 - CONSUMI ILLUMINAZIONE PUBBLICA;28/10/2021;3544;0;119;1;Spese correnti;3;Acquisto di beni e servizi;2;Acquisto di servizi;15;Contratti di servizio pubblico;15;Contratti di servizio per l'illuminazione pubblica;02/11/2021
4110;6;9999999;365,52;1.144,51;ENEL ENERGIA SPA;8426072694;SALDO Fatt.n. 004166522637  del 06/10/2021 SETTEMBRE 2021 - CONSUMI ILLUMINAZIONE PUBBLICA;28/10/2021;3544;0;119;1;Spese correnti;3;Acquisto di beni e servizi;2;Acquisto di servizi;15;Contratti di servizio pubblico;15;Contratti di servizio per l'illuminazione pubblica;02/11/2021
4111;1;9999999;13,03;1.016,73;ENEL ENERGIA SPA;8426072694;SALDO Fatt.n. 004166522574  del 06/10/2021 SETTEMBRE 2021 - CONSUMI ILLUMINAZIONE PUBBLICA;28/10/2021;3544;0;119;1;Spese correnti;3;Acquisto di beni e servizi;2;Acquisto di servizi;15;Contratti di servizio pubblico;15;Contratti di servizio per l'illuminazione pubblica;02/11/2021
4111;2;9999999;22,18;1.016,73;ENEL ENERGIA SPA;8426072694;SALDO Fatt.n. 004166522648  del 06/10/2021 SETTEMBRE 2021 - CONSUMI ILLUMINAZIONE PUBBLICA;28/10/2021;3544;0;119;1;Spese correnti;3;Acquisto di beni e servizi;2;Acquisto di servizi;15;Contratti di servizio pubblico;15;Contratti di servizio per l'illuminazione pubblica;02/11/2021
4111;3;9999999;121,26;1.016,73;ENEL ENERGIA SPA;8426072694;SALDO Fatt.n. 004166522580  del 06/10/2021 SETTEMBRE 2021 - CONSUMI ILLUMINAZIONE PUBBLICA;28/10/2021;3544;0;119;1;Spese correnti;3;Acquisto di beni e servizi;2;Acquisto di servizi;15;Contratti di servizio pubblico;15;Contratti di servizio per l'illuminazione pubblica;02/11/2021
4111;4;9999999;132,36;1.016,73;ENEL ENERGIA SPA;8426072694;SALDO Fatt.n. 004166522565  del 06/10/2021 SETTEMBRE 2021 - CONSUMI ILLUMINAZIONE PUBBLICA;28/10/2021;3544;0;119;1;Spese correnti;3;Acquisto di beni e servizi;2;Acquisto di servizi;15;Contratti di servizio pubblico;15;Contratti di servizio per l'illuminazione pubblica;02/11/2021
4111;5;9999999;174,97;1.016,73;ENEL ENERGIA SPA;8426072694;SALDO Fatt.n. 004166522607  del 06/10/2021 SETTEMBRE 2021 - CONSUMI ILLUMINAZIONE PUBBLICA;28/10/2021;3544;0;119;1;Spese correnti;3;Acquisto di beni e servizi;2;Acquisto di servizi;15;Contratti di servizio pubblico;15;Contratti di servizio per l'illuminazione pubblica;02/11/2021
4111;6;9999999;552,93;1.016,73;ENEL ENERGIA SPA;8426072694;SALDO Fatt.n. 004166522641  del 06/10/2021 SETTEMBRE 2021 - CONSUMI ILLUMINAZIONE PUBBLICA;28/10/2021;3544;0;119;1;Spese correnti;3;Acquisto di beni e servizi;2;Acquisto di servizi;15;Contratti di servizio pubblico;15;Contratti di servizio per l'illuminazione pubblica;02/11/2021
4112;1;9999999;6,25;530,29;ENEL ENERGIA SPA;8426072694;SALDO Fatt.n. 004166522541  del 06/10/2021 SETTEMBRE 2021 - CONSUMI ILLUMINAZIONE PUBBLICA;28/10/2021;3544;0;119;1;Spese correnti;3;Acquisto di beni e servizi;2;Acquisto di servizi;15;Contratti di servizio pubblico;15;Contratti di servizio per l'illuminazione pubblica;02/11/2021
4112;2;9999999;51,28;530,29;ENEL ENERGIA SPA;8426072694;SALDO Fatt.n. 004166522552  del 06/10/2021 SETTEMBRE 2021 - CONSUMI ILLUMINAZIONE PUBBLICA;28/10/2021;3544;0;119;1;Spese correnti;3;Acquisto di beni e servizi;2;Acquisto di servizi;15;Contratti di servizio pubblico;15;Contratti di servizio per l'illuminazione pubblica;02/11/2021
4112;3;9999999;70,85;530,29;ENEL ENERGIA SPA;8426072694;SALDO Fatt.n. 004166522543  del 06/10/2021 SETTEMBRE 2021 - CONSUMI ILLUMINAZIONE PUBBLICA;28/10/2021;3544;0;119;1;Spese correnti;3;Acquisto di beni e servizi;2;Acquisto di servizi;15;Contratti di servizio pubblico;15;Contratti di servizio per l'illuminazione pubblica;02/11/2021
4112;4;9999999;118,13;530,29;ENEL ENERGIA SPA;8426072694;SALDO Fatt.n. 004166522559  del 06/10/2021 SETTEMBRE 2021 - CONSUMI ILLUMINAZIONE PUBBLICA;28/10/2021;3544;0;119;1;Spese correnti;3;Acquisto di beni e servizi;2;Acquisto di servizi;15;Contratti di servizio pubblico;15;Contratti di servizio per l'illuminazione pubblica;02/11/2021
4112;5;9999999;126,33;530,29;ENEL ENERGIA SPA;8426072694;SALDO Fatt.n. 004166522528  del 06/10/2021 SETTEMBRE 2021 - CONSUMI ILLUMINAZIONE PUBBLICA;28/10/2021;3544;0;119;1;Spese correnti;3;Acquisto di beni e servizi;2;Acquisto di servizi;15;Contratti di servizio pubblico;15;Contratti di servizio per l'illuminazione pubblica;02/11/2021
4112;6;9999999;157,45;530,29;ENEL ENERGIA SPA;8426072694;SALDO Fatt.n. 004166522557  del 06/10/2021 SETTEMBRE 2021 - CONSUMI ILLUMINAZIONE PUBBLICA;28/10/2021;3544;0;119;1;Spese correnti;3;Acquisto di beni e servizi;2;Acquisto di servizi;15;Contratti di servizio pubblico;15;Contratti di servizio per l'illuminazione pubblica;02/11/2021
4113;1;9999999;10,52;376,27;ENEL ENERGIA SPA;8426072694;SALDO Fatt.n. 004166522666  del 06/10/2021 SETTEMBRE 2021 - CONSUMI ILLUMINAZIONE PUBBLICA;28/10/2021;3544;0;119;1;Spese correnti;3;Acquisto di beni e servizi;2;Acquisto di servizi;15;Contratti di servizio pubblico;15;Contratti di servizio per l'illuminazione pubblica;02/11/2021
4113;2;9999999;20,73;376,27;ENEL ENERGIA SPA;8426072694;SALDO Fatt.n. 004166522664  del 06/10/2021 SETTEMBRE 2021 - CONSUMI ILLUMINAZIONE PUBBLICA;28/10/2021;3544;0;119;1;Spese correnti;3;Acquisto di beni e servizi;2;Acquisto di servizi;15;Contratti di servizio pubblico;15;Contratti di servizio per l'illuminazione pubblica;02/11/2021
4113;3;9999999;60,68;376,27;ENEL ENERGIA SPA;8426072694;SALDO Fatt.n. 004166522652  del 06/10/2021 SETTEMBRE 2021 - CONSUMI ILLUMINAZIONE PUBBLICA;28/10/2021;3544;0;119;1;Spese correnti;3;Acquisto di beni e servizi;2;Acquisto di servizi;15;Contratti di servizio pubblico;15;Contratti di servizio per l'illuminazione pubblica;02/11/2021
4113;4;9999999;71,85;376,27;ENEL ENERGIA SPA;8426072694;SALDO Fatt.n. 004166522654  del 06/10/2021 SETTEMBRE 2021 - CONSUMI ILLUMINAZIONE PUBBLICA;28/10/2021;3544;0;119;1;Spese correnti;3;Acquisto di beni e servizi;2;Acquisto di servizi;15;Contratti di servizio pubblico;15;Contratti di servizio per l'illuminazione pubblica;02/11/2021
4113;5;9999999;77,34;376,27;ENEL ENERGIA SPA;8426072694;SALDO Fatt.n. 004166522665  del 06/10/2021 SETTEMBRE 2021 - CONSUMI ILLUMINAZIONE PUBBLICA;28/10/2021;3544;0;119;1;Spese correnti;3;Acquisto di beni e servizi;2;Acquisto di servizi;15;Contratti di servizio pubblico;15;Contratti di servizio per l'illuminazione pubblica;02/11/2021
4113;6;9999999;135,15;376,27;ENEL ENERGIA SPA;8426072694;SALDO Fatt.n. 004166522663  del 06/10/2021 SETTEMBRE 2021 - CONSUMI ILLUMINAZIONE PUBBLICA;28/10/2021;3544;0;119;1;Spese correnti;3;Acquisto di beni e servizi;2;Acquisto di servizi;15;Contratti di servizio pubblico;15;Contratti di servizio per l'illuminazione pubblica;02/11/2021
4114;1;9999999;8,14;1.440,33;ENEL ENERGIA SPA;8426072694;SALDO Fatt.n. 004166522553  del 06/10/2021 SETTEMBRE 2021 - CONSUMI ILLUMINAZIONE PUBBLICA;28/10/2021;3544;0;119;1;Spese correnti;3;Acquisto di beni e servizi;2;Acquisto di servizi;15;Contratti di servizio pubblico;15;Contratti di servizio per l'illuminazione pubblica;02/11/2021
4114;2;9999999;9,38;1.440,33;ENEL ENERGIA SPA;8426072694;SALDO Fatt.n. 004166522621  del 06/10/2021 SETTEMBRE 2021 - CONSUMI ILLUMINAZIONE PUBBLICA;28/10/2021;3544;0;119;1;Spese correnti;3;Acquisto di beni e servizi;2;Acquisto di servizi;15;Contratti di servizio pubblico;15;Contratti di servizio per l'illuminazione pubblica;02/11/2021
4114;3;9999999;33,77;1.440,33;ENEL ENERGIA SPA;8426072694;SALDO Fatt.n. 004166522579  del 06/10/2021 SETTEMBRE 2021 - CONSUMI ILLUMINAZIONE PUBBLICA;28/10/2021;3544;0;119;1;Spese correnti;3;Acquisto di beni e servizi;2;Acquisto di servizi;15;Contratti di servizio pubblico;15;Contratti di servizio per l'illuminazione pubblica;02/11/2021
4114;4;9999999;43,42;1.440,33;ENEL ENERGIA SPA;8426072694;SALDO Fatt.n. 004166522639  del 06/10/2021 SETTEMBRE 2021 - CONSUMI ILLUMINAZIONE PUBBLICA;28/10/2021;3544;0;119;1;Spese correnti;3;Acquisto di beni e servizi;2;Acquisto di servizi;15;Contratti di servizio pubblico;15;Contratti di servizio per l'illuminazione pubblica;02/11/2021
4114;5;9999999;101,71;1.440,33;ENEL ENERGIA SPA;8426072694;SALDO Fatt.n. 004166522567  del 06/10/2021 SETTEMBRE 2021 - CONSUMI ILLUMINAZIONE PUBBLICA;28/10/2021;3544;0;119;1;Spese correnti;3;Acquisto di beni e servizi;2;Acquisto di servizi;15;Contratti di servizio pubblico;15;Contratti di servizio per l'illuminazione pubblica;02/11/2021
4114;6;9999999;1.243,91;1.440,33;ENEL ENERGIA SPA;8426072694;SALDO Fatt.n. 004166522612  del 06/10/2021 SETTEMBRE 2021 - CONSUMI ILLUMINAZIONE PUBBLICA;28/10/2021;3544;0;119;1;Spese correnti;3;Acquisto di beni e servizi;2;Acquisto di servizi;15;Contratti di servizio pubblico;15;Contratti di servizio per l'illuminazione pubblica;02/11/2021
4115;1;9999999;3,98;854,93;ENEL ENERGIA SPA;8426072694;SALDO Fatt.n. 004166522551  del 06/10/2021 SETTEMBRE 2021 - CONSUMI ILLUMINAZIONE PUBBLICA;28/10/2021;3544;0;119;1;Spese correnti;3;Acquisto di beni e servizi;2;Acquisto di servizi;15;Contratti di servizio pubblico;15;Contratti di servizio per l'illuminazione pubblica;02/11/2021
4115;2;9999999;12,08;854,93;ENEL ENERGIA SPA;8426072694;SALDO Fatt.n. 004166522529  del 06/10/2021 SETTEMBRE 2021 - CONSUMI ILLUMINAZIONE PUBBLICA;28/10/2021;3544;0;119;1;Spese correnti;3;Acquisto di beni e servizi;2;Acquisto di servizi;15;Contratti di servizio pubblico;15;Contratti di servizio per l'illuminazione pubblica;02/11/2021
4115;3;9999999;68,1;854,93;ENEL ENERGIA SPA;8426072694;SALDO Fatt.n. 004166522532  del 06/10/2021 SETTEMBRE 2021 - CONSUMI ILLUMINAZIONE PUBBLICA;28/10/2021;3544;0;119;1;Spese correnti;3;Acquisto di beni e servizi;2;Acquisto di servizi;15;Contratti di servizio pubblico;15;Contratti di servizio per l'illuminazione pubblica;02/11/2021
4115;4;9999999;185,89;854,93;ENEL ENERGIA SPA;8426072694;SALDO Fatt.n. 004166522531  del 06/10/2021 SETTEMBRE 2021 - CONSUMI ILLUMINAZIONE PUBBLICA;28/10/2021;3544;0;119;1;Spese correnti;3;Acquisto di beni e servizi;2;Acquisto di servizi;15;Contratti di servizio pubblico;15;Contratti di servizio per l'illuminazione pubblica;02/11/2021
4115;5;9999999;238,02;854,93;ENEL ENERGIA SPA;8426072694;SALDO Fatt.n. 004166522550  del 06/10/2021 SETTEMBRE 2021 - CONSUMI ILLUMINAZIONE PUBBLICA;28/10/2021;3544;0;119;1;Spese correnti;3;Acquisto di beni e servizi;2;Acquisto di servizi;15;Contratti di servizio pubblico;15;Contratti di servizio per l'illuminazione pubblica;02/11/2021
4115;6;9999999;346,86;854,93;ENEL ENERGIA SPA;8426072694;SALDO Fatt.n. 004166522535  del 06/10/2021 SETTEMBRE 2021 - CONSUMI ILLUMINAZIONE PUBBLICA;28/10/2021;3544;0;119;1;Spese correnti;3;Acquisto di beni e servizi;2;Acquisto di servizi;15;Contratti di servizio pubblico;15;Contratti di servizio per l'illuminazione pubblica;02/11/2021
4116;1;9999999;8,71;1.172,33;ENEL ENERGIA SPA;8426072694;SALDO Fatt.n. 004166522623  del 06/10/2021 SETTEMBRE 2021 - CONSUMI ILLUMINAZIONE PUBBLICA;28/10/2021;3544;0;119;1;Spese correnti;3;Acquisto di beni e servizi;2;Acquisto di servizi;15;Contratti di servizio pubblico;15;Contratti di servizio per l'illuminazione pubblica;02/11/2021
4116;2;9999999;19,04;1.172,33;ENEL ENERGIA SPA;8426072694;SALDO Fatt.n. 004166522645  del 06/10/2021 SETTEMBRE 2021 - CONSUMI ILLUMINAZIONE PUBBLICA;28/10/2021;3544;0;119;1;Spese correnti;3;Acquisto di beni e servizi;2;Acquisto di servizi;15;Contratti di servizio pubblico;15;Contratti di servizio per l'illuminazione pubblica;02/11/2021
4116;3;9999999;76,9;1.172,33;ENEL ENERGIA SPA;8426072694;SALDO Fatt.n. 004166522644  del 06/10/2021 SETTEMBRE 2021 - CONSUMI ILLUMINAZIONE PUBBLICA;28/10/2021;3544;0;119;1;Spese correnti;3;Acquisto di beni e servizi;2;Acquisto di servizi;15;Contratti di servizio pubblico;15;Contratti di servizio per l'illuminazione pubblica;02/11/2021
4116;4;9999999;80,73;1.172,33;ENEL ENERGIA SPA;8426072694;SALDO Fatt.n. 004166522626  del 06/10/2021 SETTEMBRE 2021 - CONSUMI ILLUMINAZIONE PUBBLICA;28/10/2021;3544;0;119;1;Spese correnti;3;Acquisto di beni e servizi;2;Acquisto di servizi;15;Contratti di servizio pubblico;15;Contratti di servizio per l'illuminazione pubblica;02/11/2021
4116;5;9999999;446,42;1.172,33;ENEL ENERGIA SPA;8426072694;SALDO Fatt.n. 004166522647  del 06/10/2021 SETTEMBRE 2021 - CONSUMI ILLUMINAZIONE PUBBLICA;28/10/2021;3544;0;119;1;Spese correnti;3;Acquisto di beni e servizi;2;Acquisto di servizi;15;Contratti di servizio pubblico;15;Contratti di servizio per l'illuminazione pubblica;02/11/2021
4116;6;9999999;540,53;1.172,33;ENEL ENERGIA SPA;8426072694;SALDO Fatt.n. 004166522622  del 06/10/2021 SETTEMBRE 2021 - CONSUMI ILLUMINAZIONE PUBBLICA;28/10/2021;3544;0;119;1;Spese correnti;3;Acquisto di beni e servizi;2;Acquisto di servizi;15;Contratti di servizio pubblico;15;Contratti di servizio per l'illuminazione pubblica;02/11/2021
4117;1;9999999;20,31;582,16;ENEL ENERGIA SPA;8426072694;SALDO Fatt.n. 004166522586  del 06/10/2021 SETTEMBRE 2021 - CONSUMI ILLUMINAZIONE PUBBLICA;28/10/2021;3544;0;119;1;Spese correnti;3;Acquisto di beni e servizi;2;Acquisto di servizi;15;Contratti di servizio pubblico;15;Contratti di servizio per l'illuminazione pubblica;02/11/2021
4117;2;9999999;46,79;582,16;ENEL ENERGIA SPA;8426072694;SALDO Fatt.n. 004166522585  del 06/10/2021 SETTEMBRE 2021 - CONSUMI ILLUMINAZIONE PUBBLICA;28/10/2021;3544;0;119;1;Spese correnti;3;Acquisto di beni e servizi;2;Acquisto di servizi;15;Contratti di servizio pubblico;15;Contratti di servizio per l'illuminazione pubblica;02/11/2021
4117;3;9999999;59,73;582,16;ENEL ENERGIA SPA;8426072694;SALDO Fatt.n. 004166522592  del 06/10/2021 SETTEMBRE 2021 - CONSUMI ILLUMINAZIONE PUBBLICA;28/10/2021;3544;0;119;1;Spese correnti;3;Acquisto di beni e servizi;2;Acquisto di servizi;15;Contratti di servizio pubblico;15;Contratti di servizio per l'illuminazione pubblica;02/11/2021
4117;4;9999999;101,03;582,16;ENEL ENERGIA SPA;8426072694;SALDO Fatt.n. 004166522590  del 06/10/2021 SETTEMBRE 2021 - CONSUMI ILLUMINAZIONE PUBBLICA;28/10/2021;3544;0;119;1;Spese correnti;3;Acquisto di beni e servizi;2;Acquisto di servizi;15;Contratti di servizio pubblico;15;Contratti di servizio per l'illuminazione pubblica;02/11/2021
4117;5;9999999;125,06;582,16;ENEL ENERGIA SPA;8426072694;SALDO Fatt.n. 004166522583  del 06/10/2021 SETTEMBRE 2021 - CONSUMI ILLUMINAZIONE PUBBLICA;28/10/2021;3544;0;119;1;Spese correnti;3;Acquisto di beni e servizi;2;Acquisto di servizi;15;Contratti di servizio pubblico;15;Contratti di servizio per l'illuminazione pubblica;02/11/2021
4117;6;9999999;229,24;582,16;ENEL ENERGIA SPA;8426072694;SALDO Fatt.n. 004166522575  del 06/10/2021 SETTEMBRE 2021 - CONSUMI ILLUMINAZIONE PUBBLICA;28/10/2021;3544;0;119;1;Spese correnti;3;Acquisto di beni e servizi;2;Acquisto di servizi;15;Contratti di servizio pubblico;15;Contratti di servizio per l'illuminazione pubblica;02/11/2021
4118;1;9999999;28,27;1.346,46;ENEL ENERGIA SPA;8426072694;SALDO Fatt.n. 004166522555  del 06/10/2021 SETTEMBRE 2021 - CONSUMI ILLUMINAZIONE PUBBLICA;28/10/2021;3544;0;119;1;Spese correnti;3;Acquisto di beni e servizi;2;Acquisto di servizi;15;Contratti di servizio pubblico;15;Contratti di servizio per l'illuminazione pubblica;02/11/2021
4118;2;9999999;167,2;1.346,46;ENEL ENERGIA SPA;8426072694;SALDO Fatt.n. 004166522533  del 06/10/2021 SETTEMBRE 2021 - CONSUMI ILLUMINAZIONE PUBBLICA;28/10/2021;3544;0;119;1;Spese correnti;3;Acquisto di beni e servizi;2;Acquisto di servizi;15;Contratti di servizio pubblico;15;Contratti di servizio per l'illuminazione pubblica;02/11/2021
4118;3;9999999;172,17;1.346,46;ENEL ENERGIA SPA;8426072694;SALDO Fatt.n. 004166522554  del 06/10/2021 SETTEMBRE 2021 - CONSUMI ILLUMINAZIONE PUBBLICA;28/10/2021;3544;0;119;1;Spese correnti;3;Acquisto di beni e servizi;2;Acquisto di servizi;15;Contratti di servizio pubblico;15;Contratti di servizio per l'illuminazione pubblica;02/11/2021
4118;4;9999999;253,11;1.346,46;ENEL ENERGIA SPA;8426072694;SALDO Fatt.n. 004166522563  del 06/10/2021 SETTEMBRE 2021 - CONSUMI ILLUMINAZIONE PUBBLICA;28/10/2021;3544;0;119;1;Spese correnti;3;Acquisto di beni e servizi;2;Acquisto di servizi;15;Contratti di servizio pubblico;15;Contratti di servizio per l'illuminazione pubblica;02/11/2021
4118;5;9999999;331,58;1.346,46;ENEL ENERGIA SPA;8426072694;SALDO Fatt.n. 004166522534  del 06/10/2021 SETTEMBRE 2021 - CONSUMI ILLUMINAZIONE PUBBLICA;28/10/2021;3544;0;119;1;Spese correnti;3;Acquisto di beni e servizi;2;Acquisto di servizi;15;Contratti di servizio pubblico;15;Contratti di servizio per l'illuminazione pubblica;02/11/2021
4118;6;9999999;394,13;1.346,46;ENEL ENERGIA SPA;8426072694;SALDO Fatt.n. 004166522524  del 06/10/2021 SETTEMBRE 2021 - CONSUMI ILLUMINAZIONE PUBBLICA;28/10/2021;3544;0;119;1;Spese correnti;3;Acquisto di beni e servizi;2;Acquisto di servizi;15;Contratti di servizio pubblico;15;Contratti di servizio per l'illuminazione pubblica;02/11/2021
4119;1;9999999;22,35;611,42;ENEL ENERGIA SPA;8426072694;SALDO Fatt.n. 004166522603  del 06/10/2021 SETTEMBRE 2021 - CONSUMI ILLUMINAZIONE PUBBLICA;28/10/2021;3544;0;119;1;Spese correnti;3;Acquisto di beni e servizi;2;Acquisto di servizi;15;Contratti di servizio pubblico;15;Contratti di servizio per l'illuminazione pubblica;02/11/2021
4119;2;9999999;27,76;611,42;ENEL ENERGIA SPA;8426072694;SALDO Fatt.n. 004166522616  del 06/10/2021 SETTEMBRE 2021 - CONSUMI ILLUMINAZIONE PUBBLICA;28/10/2021;3544;0;119;1;Spese correnti;3;Acquisto di beni e servizi;2;Acquisto di servizi;15;Contratti di servizio pubblico;15;Contratti di servizio per l'illuminazione pubblica;02/11/2021
4119;3;9999999;37,88;611,42;ENEL ENERGIA SPA;8426072694;SALDO Fatt.n. 004166522632  del 06/10/2021 SETTEMBRE 2021 - CONSUMI ILLUMINAZIONE PUBBLICA;28/10/2021;3544;0;119;1;Spese correnti;3;Acquisto di beni e servizi;2;Acquisto di servizi;15;Contratti di servizio pubblico;15;Contratti di servizio per l'illuminazione pubblica;02/11/2021
4119;4;9999999;97,45;611,42;ENEL ENERGIA SPA;8426072694;SALDO Fatt.n. 004166522608  del 06/10/2021 SETTEMBRE 2021 - CONSUMI ILLUMINAZIONE PUBBLICA;28/10/2021;3544;0;119;1;Spese correnti;3;Acquisto di beni e servizi;2;Acquisto di servizi;15;Contratti di servizio pubblico;15;Contratti di servizio per l'illuminazione pubblica;02/11/2021
4119;5;9999999;125,92;611,42;ENEL ENERGIA SPA;8426072694;SALDO Fatt.n. 004166522591  del 06/10/2021 SETTEMBRE 2021 - CONSUMI ILLUMINAZIONE PUBBLICA;28/10/2021;3544;0;119;1;Spese correnti;3;Acquisto di beni e servizi;2;Acquisto di servizi;15;Contratti di servizio pubblico;15;Contratti di servizio per l'illuminazione pubblica;02/11/2021
4119;6;9999999;300,06;611,42;ENEL ENERGIA SPA;8426072694;SALDO Fatt.n. 004166522582  del 06/10/2021 SETTEMBRE 2021 - CONSUMI ILLUMINAZIONE PUBBLICA;28/10/2021;3544;0;119;1;Spese correnti;3;Acquisto di beni e servizi;2;Acquisto di servizi;15;Contratti di servizio pubblico;15;Contratti di servizio per l'illuminazione pubblica;02/11/2021
4120;1;9999999;5,7;610,49;ENEL ENERGIA SPA;8426072694;SALDO Fatt.n. 004166522602  del 06/10/2021 SETTEMBRE 2021 - CONSUMI ILLUMINAZIONE PUBBLICA;28/10/2021;3544;0;119;1;Spese correnti;3;Acquisto di beni e servizi;2;Acquisto di servizi;15;Contratti di servizio pubblico;15;Contratti di servizio per l'illuminazione pubblica;02/11/2021
4120;2;9999999;32,04;610,49;ENEL ENERGIA SPA;8426072694;SALDO Fatt.n. 004166522593  del 06/10/2021 SETTEMBRE 2021 - CONSUMI ILLUMINAZIONE PUBBLICA;28/10/2021;3544;0;119;1;Spese correnti;3;Acquisto di beni e servizi;2;Acquisto di servizi;15;Contratti di servizio pubblico;15;Contratti di servizio per l'illuminazione pubblica;02/11/2021
4120;3;9999999;35,53;610,49;ENEL ENERGIA SPA;8426072694;SALDO Fatt.n. 004166522617  del 06/10/2021 SETTEMBRE 2021 - CONSUMI ILLUMINAZIONE PUBBLICA;28/10/2021;3544;0;119;1;Spese correnti;3;Acquisto di beni e servizi;2;Acquisto di servizi;15;Contratti di servizio pubblico;15;Contratti di servizio per l'illuminazione pubblica;02/11/2021
4120;4;9999999;67,44;610,49;ENEL ENERGIA SPA;8426072694;SALDO Fatt.n. 004166522599  del 06/10/2021 SETTEMBRE 2021 - CONSUMI ILLUMINAZIONE PUBBLICA;28/10/2021;3544;0;119;1;Spese correnti;3;Acquisto di beni e servizi;2;Acquisto di servizi;15;Contratti di servizio pubblico;15;Contratti di servizio per l'illuminazione pubblica;02/11/2021
4120;5;9999999;86,13;610,49;ENEL ENERGIA SPA;8426072694;SALDO Fatt.n. 004166522613  del 06/10/2021 SETTEMBRE 2021 - CONSUMI ILLUMINAZIONE PUBBLICA;28/10/2021;3544;0;119;1;Spese correnti;3;Acquisto di beni e servizi;2;Acquisto di servizi;15;Contratti di servizio pubblico;15;Contratti di servizio per l'illuminazione pubblica;02/11/2021
4120;6;9999999;383,65;610,49;ENEL ENERGIA SPA;8426072694;SALDO Fatt.n. 004166522615  del 06/10/2021 SETTEMBRE 2021 - CONSUMI ILLUMINAZIONE PUBBLICA;28/10/2021;3544;0;119;1;Spese correnti;3;Acquisto di beni e servizi;2;Acquisto di servizi;15;Contratti di servizio pubblico;15;Contratti di servizio per l'illuminazione pubblica;02/11/2021
4121;1;9999999;15,3;1.151,05;ENEL ENERGIA SPA;8426072694;SALDO Fatt.n. 004166522538  del 06/10/2021 SETTEMBRE 2021 - CONSUMI ILLUMINAZIONE PUBBLICA;28/10/2021;3544;0;119;1;Spese correnti;3;Acquisto di beni e servizi;2;Acquisto di servizi;15;Contratti di servizio pubblico;15;Contratti di servizio per l'illuminazione pubblica;02/11/2021
4121;2;9999999;61,85;1.151,05;ENEL ENERGIA SPA;8426072694;SALDO Fatt.n. 004166522545  del 06/10/2021 SETTEMBRE 2021 - CONSUMI ILLUMINAZIONE PUBBLICA;28/10/2021;3544;0;119;1;Spese correnti;3;Acquisto di beni e servizi;2;Acquisto di servizi;15;Contratti di servizio pubblico;15;Contratti di servizio per l'illuminazione pubblica;02/11/2021
4121;3;9999999;115,94;1.151,05;ENEL ENERGIA SPA;8426072694;SALDO Fatt.n. 004166522542  del 06/10/2021 SETTEMBRE 2021 - CONSUMI ILLUMINAZIONE PUBBLICA;28/10/2021;3544;0;119;1;Spese correnti;3;Acquisto di beni e servizi;2;Acquisto di servizi;15;Contratti di servizio pubblico;15;Contratti di servizio per l'illuminazione pubblica;02/11/2021
4121;4;9999999;134,79;1.151,05;ENEL ENERGIA SPA;8426072694;SALDO Fatt.n. 004166522539  del 06/10/2021 SETTEMBRE 2021 - CONSUMI ILLUMINAZIONE PUBBLICA;28/10/2021;3544;0;119;1;Spese correnti;3;Acquisto di beni e servizi;2;Acquisto di servizi;15;Contratti di servizio pubblico;15;Contratti di servizio per l'illuminazione pubblica;02/11/2021
4121;5;9999999;282,97;1.151,05;ENEL ENERGIA SPA;8426072694;SALDO Fatt.n. 004166522536  del 06/10/2021 SETTEMBRE 2021 - CONSUMI ILLUMINAZIONE PUBBLICA;28/10/2021;3544;0;119;1;Spese correnti;3;Acquisto di beni e servizi;2;Acquisto di servizi;15;Contratti di servizio pubblico;15;Contratti di servizio per l'illuminazione pubblica;02/11/2021
4121;6;9999999;540,2;1.151,05;ENEL ENERGIA SPA;8426072694;SALDO Fatt.n. 004166522537  del 06/10/2021 SETTEMBRE 2021 - CONSUMI ILLUMINAZIONE PUBBLICA;28/10/2021;3544;0;119;1;Spese correnti;3;Acquisto di beni e servizi;2;Acquisto di servizi;15;Contratti di servizio pubblico;15;Contratti di servizio per l'illuminazione pubblica;02/11/2021
4122;1;9999999;11,25;908,4;ENEL ENERGIA SPA;8426072694;SALDO Fatt.n. 004166522566  del 06/10/2021 SETTEMBRE 2021 - CONSUMI ILLUMINAZIONE PUBBLICA;28/10/2021;3544;0;119;1;Spese correnti;3;Acquisto di beni e servizi;2;Acquisto di servizi;15;Contratti di servizio pubblico;15;Contratti di servizio per l'illuminazione pubblica;02/11/2021
4122;2;9999999;20,11;908,4;ENEL ENERGIA SPA;8426072694;SALDO Fatt.n. 004166522569  del 06/10/2021 SETTEMBRE 2021 - CONSUMI ILLUMINAZIONE PUBBLICA;28/10/2021;3544;0;119;1;Spese correnti;3;Acquisto di beni e servizi;2;Acquisto di servizi;15;Contratti di servizio pubblico;15;Contratti di servizio per l'illuminazione pubblica;02/11/2021
4122;3;9999999;41,82;908,4;ENEL ENERGIA SPA;8426072694;SALDO Fatt.n. 004166522594  del 06/10/2021 SETTEMBRE 2021 - CONSUMI ILLUMINAZIONE PUBBLICA;28/10/2021;3544;0;119;1;Spese correnti;3;Acquisto di beni e servizi;2;Acquisto di servizi;15;Contratti di servizio pubblico;15;Contratti di servizio per l'illuminazione pubblica;02/11/2021
4122;4;9999999;59,24;908,4;ENEL ENERGIA SPA;8426072694;SALDO Fatt.n. 004166522561  del 06/10/2021 SETTEMBRE 2021 - CONSUMI ILLUMINAZIONE PUBBLICA;28/10/2021;3544;0;119;1;Spese correnti;3;Acquisto di beni e servizi;2;Acquisto di servizi;15;Contratti di servizio pubblico;15;Contratti di servizio per l'illuminazione pubblica;02/11/2021
4122;5;9999999;340,54;908,4;ENEL ENERGIA SPA;8426072694;SALDO Fatt.n. 004166522578  del 06/10/2021 SETTEMBRE 2021 - CONSUMI ILLUMINAZIONE PUBBLICA;28/10/2021;3544;0;119;1;Spese correnti;3;Acquisto di beni e servizi;2;Acquisto di servizi;15;Contratti di servizio pubblico;15;Contratti di servizio per l'illuminazione pubblica;02/11/2021
4122;6;9999999;435,44;908,4;ENEL ENERGIA SPA;8426072694;SALDO Fatt.n. 004166522595  del 06/10/2021 SETTEMBRE 2021 - CONSUMI ILLUMINAZIONE PUBBLICA;28/10/2021;3544;0;119;1;Spese correnti;3;Acquisto di beni e servizi;2;Acquisto di servizi;15;Contratti di servizio pubblico;15;Contratti di servizio per l'illuminazione pubblica;02/11/2021
4123;1;9999999;20,11;1.112,51;ENEL ENERGIA SPA;8426072694;SALDO Fatt.n. 004166522631  del 06/10/2021 SETTEMBRE 2021 - CONSUMI ILLUMINAZIONE PUBBLICA;28/10/2021;3544;0;119;1;Spese correnti;3;Acquisto di beni e servizi;2;Acquisto di servizi;15;Contratti di servizio pubblico;15;Contratti di servizio per l'illuminazione pubblica;02/11/2021
4123;2;9999999;21;1.112,51;ENEL ENERGIA SPA;8426072694;SALDO Fatt.n. 004166522609  del 06/10/2021 SETTEMBRE 2021 - CONSUMI ILLUMINAZIONE PUBBLICA;28/10/2021;3544;0;119;1;Spese correnti;3;Acquisto di beni e servizi;2;Acquisto di servizi;15;Contratti di servizio pubblico;15;Contratti di servizio per l'illuminazione pubblica;02/11/2021
4123;3;9999999;42,16;1.112,51;ENEL ENERGIA SPA;8426072694;SALDO Fatt.n. 004166522620  del 06/10/2021 SETTEMBRE 2021 - CONSUMI ILLUMINAZIONE PUBBLICA;28/10/2021;3544;0;119;1;Spese correnti;3;Acquisto di beni e servizi;2;Acquisto di servizi;15;Contratti di servizio pubblico;15;Contratti di servizio per l'illuminazione pubblica;02/11/2021
4123;4;9999999;92,31;1.112,51;ENEL ENERGIA SPA;8426072694;SALDO Fatt.n. 004166522600  del 06/10/2021 SETTEMBRE 2021 - CONSUMI ILLUMINAZIONE PUBBLICA;28/10/2021;3544;0;119;1;Spese correnti;3;Acquisto di beni e servizi;2;Acquisto di servizi;15;Contratti di servizio pubblico;15;Contratti di servizio per l'illuminazione pubblica;02/11/2021
4123;5;9999999;174,97;1.112,51;ENEL ENERGIA SPA;8426072694;SALDO Fatt.n. 004166522596  del 06/10/2021 SETTEMBRE 2021 - CONSUMI ILLUMINAZIONE PUBBLICA;28/10/2021;3544;0;119;1;Spese correnti;3;Acquisto di beni e servizi;2;Acquisto di servizi;15;Contratti di servizio pubblico;15;Contratti di servizio per l'illuminazione pubblica;02/11/2021
4123;6;9999999;761,96;1.112,51;ENEL ENERGIA SPA;8426072694;SALDO Fatt.n. 004166522625  del 06/10/2021 SETTEMBRE 2021 - CONSUMI ILLUMINAZIONE PUBBLICA;28/10/2021;3544;0;119;1;Spese correnti;3;Acquisto di beni e servizi;2;Acquisto di servizi;15;Contratti di servizio pubblico;15;Contratti di servizio per l'illuminazione pubblica;02/11/2021
4124;1;9999999;10,87;678,91;ENEL ENERGIA SPA;8426072694;SALDO Fatt.n. 004166522640  del 06/10/2021 SETTEMBRE 2021 - CONSUMI ILLUMINAZIONE PUBBLICA;28/10/2021;3544;0;119;1;Spese correnti;3;Acquisto di beni e servizi;2;Acquisto di servizi;15;Contratti di servizio pubblico;15;Contratti di servizio per l'illuminazione pubblica;02/11/2021
4124;2;9999999;70,66;678,91;ENEL ENERGIA SPA;8426072694;SALDO Fatt.n. 004166522634  del 06/10/2021 SETTEMBRE 2021 - CONSUMI ILLUMINAZIONE PUBBLICA;28/10/2021;3544;0;119;1;Spese correnti;3;Acquisto di beni e servizi;2;Acquisto di servizi;15;Contratti di servizio pubblico;15;Contratti di servizio per l'illuminazione pubblica;02/11/2021
4124;3;9999999;94,96;678,91;ENEL ENERGIA SPA;8426072694;SALDO Fatt.n. 004166522638  del 06/10/2021 SETTEMBRE 2021 - CONSUMI ILLUMINAZIONE PUBBLICA;28/10/2021;3544;0;119;1;Spese correnti;3;Acquisto di beni e servizi;2;Acquisto di servizi;15;Contratti di servizio pubblico;15;Contratti di servizio per l'illuminazione pubblica;02/11/2021
4124;4;9999999;100,67;678,91;ENEL ENERGIA SPA;8426072694;SALDO Fatt.n. 004166522656  del 06/10/2021 SETTEMBRE 2021 - CONSUMI ILLUMINAZIONE PUBBLICA;28/10/2021;3544;0;119;1;Spese correnti;3;Acquisto di beni e servizi;2;Acquisto di servizi;15;Contratti di servizio pubblico;15;Contratti di servizio per l'illuminazione pubblica;02/11/2021
4124;5;9999999;183,87;678,91;ENEL ENERGIA SPA;8426072694;SALDO Fatt.n. 004166522651  del 06/10/2021 SETTEMBRE 2021 - CONSUMI ILLUMINAZIONE PUBBLICA;28/10/2021;3544;0;119;1;Spese correnti;3;Acquisto di beni e servizi;2;Acquisto di servizi;15;Contratti di servizio pubblico;15;Contratti di servizio per l'illuminazione pubblica;02/11/2021
4124;6;9999999;217,88;678,91;ENEL ENERGIA SPA;8426072694;SALDO Fatt.n. 004166522636  del 06/10/2021 SETTEMBRE 2021 - CONSUMI ILLUMINAZIONE PUBBLICA;28/10/2021;3544;0;119;1;Spese correnti;3;Acquisto di beni e servizi;2;Acquisto di servizi;15;Contratti di servizio pubblico;15;Contratti di servizio per l'illuminazione pubblica;02/11/2021
4125;1;9999999;1,77;396,13;ENEL ENERGIA SPA;8426072694;SALDO Fatt.n. 004166522547  del 06/10/2021 SETTEMBRE 2021 - CONSUMI ILLUMINAZIONE PUBBLICA;28/10/2021;3544;0;119;1;Spese correnti;3;Acquisto di beni e servizi;2;Acquisto di servizi;15;Contratti di servizio pubblico;15;Contratti di servizio per l'illuminazione pubblica;02/11/2021
4125;2;9999999;5,84;396,13;ENEL ENERGIA SPA;8426072694;SALDO Fatt.n. 004166522530  del 06/10/2021 SETTEMBRE 2021 - CONSUMI ILLUMINAZIONE PUBBLICA;28/10/2021;3544;0;119;1;Spese correnti;3;Acquisto di beni e servizi;2;Acquisto di servizi;15;Contratti di servizio pubblico;15;Contratti di servizio per l'illuminazione pubblica;02/11/2021
4125;3;9999999;10,49;396,13;ENEL ENERGIA SPA;8426072694;SALDO Fatt.n. 004166522556  del 06/10/2021 SETTEMBRE 2021 - CONSUMI ILLUMINAZIONE PUBBLICA;28/10/2021;3544;0;119;1;Spese correnti;3;Acquisto di beni e servizi;2;Acquisto di servizi;15;Contratti di servizio pubblico;15;Contratti di servizio per l'illuminazione pubblica;02/11/2021
4125;4;9999999;16,65;396,13;ENEL ENERGIA SPA;8426072694;SALDO Fatt.n. 004166522573  del 06/10/2021 SETTEMBRE 2021 - CONSUMI ILLUMINAZIONE PUBBLICA;28/10/2021;3544;0;119;1;Spese correnti;3;Acquisto di beni e servizi;2;Acquisto di servizi;15;Contratti di servizio pubblico;15;Contratti di servizio per l'illuminazione pubblica;02/11/2021
4125;5;9999999;77,91;396,13;ENEL ENERGIA SPA;8426072694;SALDO Fatt.n. 004166522527  del 06/10/2021 SETTEMBRE 2021 - CONSUMI ILLUMINAZIONE PUBBLICA;28/10/2021;3544;0;119;1;Spese correnti;3;Acquisto di beni e servizi;2;Acquisto di servizi;15;Contratti di servizio pubblico;15;Contratti di servizio per l'illuminazione pubblica;02/11/2021
4125;6;9999999;283,47;396,13;ENEL ENERGIA SPA;8426072694;SALDO Fatt.n. 004166522576  del 06/10/2021 SETTEMBRE 2021 - CONSUMI ILLUMINAZIONE PUBBLICA;28/10/2021;3544;0;119;1;Spese correnti;3;Acquisto di beni e servizi;2;Acquisto di servizi;15;Contratti di servizio pubblico;15;Contratti di servizio per l'illuminazione pubblica;02/11/2021
4126;1;9999999;6,25;347,86;ENEL ENERGIA SPA;8426072694;SALDO Fatt.n. 004166522611  del 06/10/2021 SETTEMBRE 2021 - CONSUMI ILLUMINAZIONE PUBBLICA;28/10/2021;3544;0;119;1;Spese correnti;3;Acquisto di beni e servizi;2;Acquisto di servizi;15;Contratti di servizio pubblico;15;Contratti di servizio per l'illuminazione pubblica;02/11/2021
4126;2;9999999;33,94;347,86;ENEL ENERGIA SPA;8426072694;SALDO Fatt.n. 004166522653  del 06/10/2021 SETTEMBRE 2021 - CONSUMI ILLUMINAZIONE PUBBLICA;28/10/2021;3544;0;119;1;Spese correnti;3;Acquisto di beni e servizi;2;Acquisto di servizi;15;Contratti di servizio pubblico;15;Contratti di servizio per l'illuminazione pubblica;02/11/2021
4126;3;9999999;35,21;347,86;ENEL ENERGIA SPA;8426072694;SALDO Fatt.n. 004166522658  del 06/10/2021 SETTEMBRE 2021 - CONSUMI ILLUMINAZIONE PUBBLICA;28/10/2021;3544;0;119;1;Spese correnti;3;Acquisto di beni e servizi;2;Acquisto di servizi;15;Contratti di servizio pubblico;15;Contratti di servizio per l'illuminazione pubblica;02/11/2021
4126;4;9999999;42,31;347,86;ENEL ENERGIA SPA;8426072694;SALDO Fatt.n. 004166522661  del 06/10/2021 SETTEMBRE 2021 - CONSUMI ILLUMINAZIONE PUBBLICA;28/10/2021;3544;0;119;1;Spese correnti;3;Acquisto di beni e servizi;2;Acquisto di servizi;15;Contratti di servizio pubblico;15;Contratti di servizio per l'illuminazione pubblica;02/11/2021
4126;5;9999999;49,76;347,86;ENEL ENERGIA SPA;8426072694;SALDO Fatt.n. 004166522657  del 06/10/2021 SETTEMBRE 2021 - CONSUMI ILLUMINAZIONE PUBBLICA;28/10/2021;3544;0;119;1;Spese correnti;3;Acquisto di beni e servizi;2;Acquisto di servizi;15;Contratti di servizio pubblico;15;Contratti di servizio per l'illuminazione pubblica;02/11/2021
4126;6;9999999;180,39;347,86;ENEL ENERGIA SPA;8426072694;SALDO Fatt.n. 004166522581  del 06/10/2021 SETTEMBRE 2021 - CONSUMI ILLUMINAZIONE PUBBLICA;28/10/2021;3544;0;119;1;Spese correnti;3;Acquisto di beni e servizi;2;Acquisto di servizi;15;Contratti di servizio pubblico;15;Contratti di servizio per l'illuminazione pubblica;02/11/2021
4127;1;9999999;8,89;772,21;ENEL ENERGIA SPA;8426072694;SALDO Fatt.n. 004166522525  del 06/10/2021 SETTEMBRE 2021 - CONSUMI ILLUMINAZIONE PUBBLICA;28/10/2021;3544;0;119;1;Spese correnti;3;Acquisto di beni e servizi;2;Acquisto di servizi;15;Contratti di servizio pubblico;15;Contratti di servizio per l'illuminazione pubblica;02/11/2021
4127;2;9999999;17,47;772,21;ENEL ENERGIA SPA;8426072694;SALDO Fatt.n. 004166522659  del 06/10/2021 SETTEMBRE 2021 - CONSUMI ILLUMINAZIONE PUBBLICA;28/10/2021;3544;0;119;1;Spese correnti;3;Acquisto di beni e servizi;2;Acquisto di servizi;15;Contratti di servizio pubblico;15;Contratti di servizio per l'illuminazione pubblica;02/11/2021
4127;3;9999999;41,47;772,21;ENEL ENERGIA SPA;8426072694;SALDO Fatt.n. 004166522584  del 06/10/2021 SETTEMBRE 2021 - CONSUMI ILLUMINAZIONE PUBBLICA;28/10/2021;3544;0;119;1;Spese correnti;3;Acquisto di beni e servizi;2;Acquisto di servizi;15;Contratti di servizio pubblico;15;Contratti di servizio per l'illuminazione pubblica;02/11/2021
4127;4;9999999;74,55;772,21;ENEL ENERGIA SPA;8426072694;SALDO Fatt.n. 004166522577  del 06/10/2021 SETTEMBRE 2021 - CONSUMI ILLUMINAZIONE PUBBLICA;28/10/2021;3544;0;119;1;Spese correnti;3;Acquisto di beni e servizi;2;Acquisto di servizi;15;Contratti di servizio pubblico;15;Contratti di servizio per l'illuminazione pubblica;02/11/2021
4127;5;9999999;147,08;772,21;ENEL ENERGIA SPA;8426072694;SALDO Fatt.n. 004166522629  del 06/10/2021 SETTEMBRE 2021 - CONSUMI ILLUMINAZIONE PUBBLICA;28/10/2021;3544;0;119;1;Spese correnti;3;Acquisto di beni e servizi;2;Acquisto di servizi;15;Contratti di servizio pubblico;15;Contratti di servizio per l'illuminazione pubblica;02/11/2021
4127;6;9999999;482,75;772,21;ENEL ENERGIA SPA;8426072694;SALDO Fatt.n. 004166522624  del 06/10/2021 SETTEMBRE 2021 - CONSUMI ILLUMINAZIONE PUBBLICA;28/10/2021;3544;0;119;1;Spese correnti;3;Acquisto di beni e servizi;2;Acquisto di servizi;15;Contratti di servizio pubblico;15;Contratti di servizio per l'illuminazione pubblica;02/11/2021
4128;1;9999999;17,93;707,99;ENEL ENERGIA SPA;8426072694;SALDO Fatt.n. 004166522668  del 06/10/2021 SETTEMBRE 2021 - CONSUMI ILLUMINAZIONE PUBBLICA;28/10/2021;3544;0;119;1;Spese correnti;3;Acquisto di beni e servizi;2;Acquisto di servizi;15;Contratti di servizio pubblico;15;Contratti di servizio per l'illuminazione pubblica;02/11/2021
4128;2;9999999;24,18;707,99;ENEL ENERGIA SPA;8426072694;SALDO Fatt.n. 004166522662  del 06/10/2021 SETTEMBRE 2021 - CONSUMI ILLUMINAZIONE PUBBLICA;28/10/2021;3544;0;119;1;Spese correnti;3;Acquisto di beni e servizi;2;Acquisto di servizi;15;Contratti di servizio pubblico;15;Contratti di servizio per l'illuminazione pubblica;02/11/2021
4128;3;9999999;41,03;707,99;ENEL ENERGIA SPA;8426072694;SALDO Fatt.n. 004166522660  del 06/10/2021 SETTEMBRE 2021 - CONSUMI ILLUMINAZIONE PUBBLICA;28/10/2021;3544;0;119;1;Spese correnti;3;Acquisto di beni e servizi;2;Acquisto di servizi;15;Contratti di servizio pubblico;15;Contratti di servizio per l'illuminazione pubblica;02/11/2021
4128;4;9999999;57,65;707,99;ENEL ENERGIA SPA;8426072694;SALDO Fatt.n. 004172369316  del 12/10/2021 SETTEMBRE 2021 - CONSUMI ILLUMINAZIONE PUBBLICA;28/10/2021;3544;0;119;1;Spese correnti;3;Acquisto di beni e servizi;2;Acquisto di servizi;15;Contratti di servizio pubblico;15;Contratti di servizio per l'illuminazione pubblica;02/11/2021
4128;5;9999999;106,35;707,99;ENEL ENERGIA SPA;8426072694;SALDO Fatt.n. 004170623584  del 10/10/2021 SETTEMBRE 2021 - CONSUMI ILLUMINAZIONE PUBBLICA;28/10/2021;3544;0;119;1;Spese correnti;3;Acquisto di beni e servizi;2;Acquisto di servizi;15;Contratti di servizio pubblico;15;Contratti di servizio per l'illuminazione pubblica;02/11/2021
4128;6;9999999;220,19;707,99;ENEL ENERGIA SPA;8426072694;SALDO Fatt.n. 004166522597  del 06/10/2021 SETTEMBRE 2021 - CONSUMI ILLUMINAZIONE PUBBLICA;28/10/2021;3544;0;119;1;Spese correnti;3;Acquisto di beni e servizi;2;Acquisto di servizi;15;Contratti di servizio pubblico;15;Contratti di servizio per l'illuminazione pubblica;02/11/2021
4128;7;9999999;240,66;707,99;ENEL ENERGIA SPA;8426072694;SALDO Fatt.n. 004173084825  del 13/10/2021 SETTEMBRE 2021 - CONSUMI ILLUMINAZIONE PUBBLICA;28/10/2021;3544;0;119;1;Spese correnti;3;Acquisto di beni e servizi;2;Acquisto di servizi;15;Contratti di servizio pubblico;15;Contratti di servizio per l'illuminazione pubblica;02/11/2021
4129;1;9999999;5,7;800,22;ENEL ENERGIA SPA;8426072694;SALDO Fatt.n. 004173084829  del 13/10/2021 SETTEMBRE 2021 - CONSUMI ILLUMINAZIONE PUBBLICA;28/10/2021;3544;0;119;1;Spese correnti;3;Acquisto di beni e servizi;2;Acquisto di servizi;15;Contratti di servizio pubblico;15;Contratti di servizio per l'illuminazione pubblica;02/11/2021
4129;2;9999999;23,17;800,22;ENEL ENERGIA SPA;8426072694;SALDO Fatt.n. 004173084834  del 13/10/2021 SETTEMBRE 2021 - CONSUMI ILLUMINAZIONE PUBBLICA;28/10/2021;3544;0;119;1;Spese correnti;3;Acquisto di beni e servizi;2;Acquisto di servizi;15;Contratti di servizio pubblico;15;Contratti di servizio per l'illuminazione pubblica;02/11/2021
4129;3;9999999;39,85;800,22;ENEL ENERGIA SPA;8426072694;SALDO Fatt.n. 004173084826  del 13/10/2021 SETTEMBRE 2021 - CONSUMI ILLUMINAZIONE PUBBLICA;28/10/2021;3544;0;119;1;Spese correnti;3;Acquisto di beni e servizi;2;Acquisto di servizi;15;Contratti di servizio pubblico;15;Contratti di servizio per l'illuminazione pubblica;02/11/2021
4129;4;9999999;39,85;800,22;ENEL ENERGIA SPA;8426072694;SALDO Fatt.n. 004173084832  del 13/10/2021 SETTEMBRE 2021 - CONSUMI ILLUMINAZIONE PUBBLICA;28/10/2021;3544;0;119;1;Spese correnti;3;Acquisto di beni e servizi;2;Acquisto di servizi;15;Contratti di servizio pubblico;15;Contratti di servizio per l'illuminazione pubblica;02/11/2021
4129;5;9999999;72,76;800,22;ENEL ENERGIA SPA;8426072694;SALDO Fatt.n. 004173084827  del 13/10/2021 SETTEMBRE 2021 - CONSUMI ILLUMINAZIONE PUBBLICA;28/10/2021;3544;0;119;1;Spese correnti;3;Acquisto di beni e servizi;2;Acquisto di servizi;15;Contratti di servizio pubblico;15;Contratti di servizio per l'illuminazione pubblica;02/11/2021
4129;6;9999999;80,08;800,22;ENEL ENERGIA SPA;8426072694;SALDO Fatt.n. 004173084830  del 13/10/2021 SETTEMBRE 2021 - CONSUMI ILLUMINAZIONE PUBBLICA;28/10/2021;3544;0;119;1;Spese correnti;3;Acquisto di beni e servizi;2;Acquisto di servizi;15;Contratti di servizio pubblico;15;Contratti di servizio per l'illuminazione pubblica;02/11/2021
4129;7;9999999;180,39;800,22;ENEL ENERGIA SPA;8426072694;SALDO Fatt.n. 004173084828  del 13/10/2021 SETTEMBRE 2021 - CONSUMI ILLUMINAZIONE PUBBLICA;28/10/2021;3544;0;119;1;Spese correnti;3;Acquisto di beni e servizi;2;Acquisto di servizi;15;Contratti di servizio pubblico;15;Contratti di servizio per l'illuminazione pubblica;02/11/2021
4129;8;9999999;358,42;800,22;ENEL ENERGIA SPA;8426072694;SALDO Fatt.n. 004173084831  del 13/10/2021 SETTEMBRE 2021 - CONSUMI ILLUMINAZIONE PUBBLICA;28/10/2021;3544;0;119;1;Spese correnti;3;Acquisto di beni e servizi;2;Acquisto di servizi;15;Contratti di servizio pubblico;15;Contratti di servizio per l'illuminazione pubblica;02/11/2021
4130;1;9999999;365,27;823,12;ENEL ENERGIA SPA;8426072694;SALDO Fatt.n. 004166522627  del 06/10/2021 SETTEMBRE 2021 - CONSUMI VILLA FARSETTI;28/10/2021;4234;0;117;1;Spese correnti;3;Acquisto di beni e servizi;2;Acquisto di servizi;5;Utenze e canoni;4;Energia elettrica;02/11/2021
4130;2;9999999;457,85;823,12;ENEL ENERGIA SPA;8426072694;SALDO Fatt.n. 004167834797  del 08/10/2021 SETTEMBRE 2021 - CONSUMI VILLA FARSETTI;28/10/2021;4234;0;117;1;Spese correnti;3;Acquisto di beni e servizi;2;Acquisto di servizi;5;Utenze e canoni;4;Energia elettrica;02/11/2021
4131;1;9999999;31,95;31,95;ENEL ENERGIA SPA;8426072694;SALDO Fatt.n. 004166522564  del 06/10/2021 SETTEMBRE 2021 - CONSUMI CIMITERO STIGLIANO - LAMPADE VOTIVE;28/10/2021;4434;0;118;1;Spese correnti;3;Acquisto di beni e servizi;2;Acquisto di servizi;5;Utenze e canoni;4;Energia elettrica;02/11/2021
4132;1;9999999;22;22;ENEL ENERGIA SPA;8426072694;SALDO Fatt.n. 004166522560  del 06/10/2021 SETTEMBRE 2021 - CONSUMI CIMITERO SMS - LAMPADE VOTIVE;28/10/2021;4434;0;118;1;Spese correnti;3;Acquisto di beni e servizi;2;Acquisto di servizi;5;Utenze e canoni;4;Energia elettrica;02/11/2021
4133;1;9999999;31;31;ENEL ENERGIA SPA;8426072694;SALDO Fatt.n. 004166522630  del 06/10/2021 SETTEMBRE 2021 - CONSUMI CIMITERO S.ANGELO - LAMPADE VOTIVE;28/10/2021;4434;0;118;1;Spese correnti;3;Acquisto di beni e servizi;2;Acquisto di servizi;5;Utenze e canoni;4;Energia elettrica;02/11/2021
4134;1;9999999;80;80;ENEL ENERGIA SPA;8426072694;SALDO Fatt.n. 004166522572  del 06/10/2021 SETTEMBRE 2021 - CONSUMI CIMITERO  CALTANA  - LAMPADE VOTIVE;28/10/2021;4434;0;118;1;Spese correnti;3;Acquisto di beni e servizi;2;Acquisto di servizi;5;Utenze e canoni;4;Energia elettrica;02/11/2021
4135;1;9999999;28;28;ENEL ENERGIA SPA;8426072694;SALDO Fatt.n. 004166522635  del 06/10/2021 SETTEMBRE 2021 - CONSUMI CIMITERO VETERNIGO - LAMPADE VOTIVE;28/10/2021;4434;0;118;1;Spese correnti;3;Acquisto di beni e servizi;2;Acquisto di servizi;5;Utenze e canoni;4;Energia elettrica;02/11/2021
4136;1;9999999;41;41;ENEL ENERGIA SPA;8426072694;SALDO Fatt.n. 004166522544  del 06/10/2021 SETTEMBRE 2021 - CONSUMI CIMITERO CASELLE - LAMPADE VOTIVE;28/10/2021;4434;0;118;1;Spese correnti;3;Acquisto di beni e servizi;2;Acquisto di servizi;5;Utenze e canoni;4;Energia elettrica;02/11/2021
4137;1;9999999;488,75;488,75;SARV ANTINCENDI SRL;Z3B2EAFBE6;ACCONTO Fatt.n. PA0000011  del 05/10/2021 CONTROLLO SEMESTRALE ESTINTORI PORTATILI;02/11/2021;548;0;400;1;Spese correnti;3;Acquisto di beni e servizi;2;Acquisto di servizi;9;Manutenzione ordinaria e riparazioni;11;Manutenzione ordinaria e riparazioni di altri beni materiali;05/11/2021
4138;1;9999999;1.853,88;1.853,88;FORNITECNICA S.R.L.;Z88269EF2B;SALDO Fatt.n. 000536PA21  del 01/10/2021 COSTO COPIA PERIODO OTTOBRE- DICEMBRE 2021;02/11/2021;748;0;18;1;Spese correnti;3;Acquisto di beni e servizi;2;Acquisto di servizi;19;Servizi informatici e di telecomunicazioni;5;Servizi per i sistemi e relativa manutenzione;05/11/2021
4139;1;9999999;305;305;BM OFFICE & SERVICE SRLS;Z33330484E;SALDO Fatt.n. 581/2021  del 04/10/2021 CONTROLLO E MANUTENZIONE PLOTTER;02/11/2021;748;0;737;1;Spese correnti;3;Acquisto di beni e servizi;2;Acquisto di servizi;19;Servizi informatici e di telecomunicazioni;5;Servizi per i sistemi e relativa manutenzione;05/11/2021
4140;1;9999999;1.300,00;1.300,00;SARV ANTINCENDI SRL;Z3B2EAFBE6;ACCONTO Fatt.n. PA0000011  del 05/10/2021 CONTROLLO SEMESTRALE ESTINTORI PORTATILI;02/11/2021;1338;0;401;1;Spese correnti;3;Acquisto di beni e servizi;2;Acquisto di servizi;9;Manutenzione ordinaria e riparazioni;11;Manutenzione ordinaria e riparazioni di altri beni materiali;05/11/2021
4141;1;9999999;99,54;99,54;PELIZZON LUIGI SRL; ;SALDO Fatt.n. 2021VI000061  del 12/10/2021 FORNITURA LIBRI DI TESTO  PER SCUOLE  ELEMENTARI  A.S. 2021-2022;02/11/2021;1357;0;156;1;Spese correnti;4;Trasferimenti correnti;2;Trasferimenti correnti a Famiglie;5;Altri trasferimenti a famiglie;999;Altri trasferimenti a famiglie n.a.c.;05/11/2021
4142;1;9999999;23,14;23,14;L'ISOLA CHE NON C'E' DI BOZZO MORENA; ;SALDO Fatt.n. 1/002  del 08/10/2021 FORNITURA LIBRI DI TESTO PER SCUOLE ELEMENTARI A.S. 2021-2022;02/11/2021;1357;0;156;1;Spese correnti;4;Trasferimenti correnti;2;Trasferimenti correnti a Famiglie;5;Altri trasferimenti a famiglie;999;Altri trasferimenti a famiglie n.a.c.;05/11/2021
4143;1;9999999;347,08;347,08;SARV ANTINCENDI SRL;Z3B2EAFBE6;SALDO Fatt.n. PA0000011  del 05/10/2021 CONTROLLO SEMESTRALE ESTINTORI PORTATILI;02/11/2021;1938;0;402;1;Spese correnti;3;Acquisto di beni e servizi;2;Acquisto di servizi;9;Manutenzione ordinaria e riparazioni;11;Manutenzione ordinaria e riparazioni di altri beni materiali;05/11/2021
4144;1;9999999;215,64;215,64;DANIELE LUCA - VIVAI PIANTE;Z462DEAEA8;SALDO Fatt.n. 78  del 09/10/2021 MANUTENZIONE PATRIMONO ARBOREO ED AREE VERDI;02/11/2021;2549;0;649;1;Spese correnti;3;Acquisto di beni e servizi;2;Acquisto di servizi;99;Altri servizi;9;Acquisto di sevizi per verde e arredo urbano;05/11/2021
4145;1;9999999;3.260,96;3.260,96;DANIELE LUCA - VIVAI PIANTE;Z402FA5ECF;SALDO Fatt.n. 79  del 09/10/2021 ULERIORI INTERVENTI DI MANUTENZIONE SUL PATRIMONIO ARBOREO ED AREE VERDI -1 ACCONTO;02/11/2021;2549;0;1237;1;Spese correnti;3;Acquisto di beni e servizi;2;Acquisto di servizi;99;Altri servizi;9;Acquisto di sevizi per verde e arredo urbano;05/11/2021
4146;1;9999999;500;500;CONDOMINIO BERTOLDO; ;CONTRIBUTO CONDOMINIALE PER ASSICURAZIONE E SPESE LEGALI;04/11/2021;549;0;943;1;Spese correnti;3;Acquisto di beni e servizi;2;Acquisto di servizi;99;Altri servizi;999;Altri servizi diversi n.a.c.;08/11/2021
4147;1;9999999;5.040,00;5.040,00;LABS LABORATORIO SOLIDALE ONLUS; ;PROGETTI DI PUBBLICA UTILITA SOCIALE - FINO A OTTOBRE 2021;04/11/2021;4059;10;283;1;Spese correnti;4;Trasferimenti correnti;4;Trasferimenti correnti a Istituzioni Sociali Private;1;Trasferimenti correnti a Istituzioni Sociali Private;1;Trasferimenti correnti a Istituzioni Sociali Private;08/11/2021
4148;1;9999999;3.360,00;3.360,00;LABS LABORATORIO SOLIDALE ONLUS; ;PROGETTI DI PUBBLICA UTILITA SOCIALE - FINO AD OTTOBRE 2021;04/11/2021;4059;10;427;1;Spese correnti;4;Trasferimenti correnti;4;Trasferimenti correnti a Istituzioni Sociali Private;1;Trasferimenti correnti a Istituzioni Sociali Private;1;Trasferimenti correnti a Istituzioni Sociali Private;08/11/2021
4149;1;9999999;6.880,62;6.880,62;CITTA' METROPOLITANA DI VENEZIA; ;PROTOCOLLO 52290/21 SUA P/C COMUNE DI S.MARIA DI SALA RIMBORSO SPESE PER PROCEDURA DI GARA - PROCEDURA NEGOZIATA TEEMATICA PER AFFIDAMENTO DELLA REALIZZAZIONE DEL TRATTO N.1 DELLA PISTA CICLABILE CICLOPEDONALE LUNGO VIA NOALESE  SR 515 CIG.8810720427;04/11/2021;8563;0;1362;2;Spese in conto capitale;2;Investimenti fissi lordi e acquisto di terreni;1;Beni materiali;9;Beni immobili;12;Infrastrutture stradali;08/11/2021
4151;1;9999999;1.000,00;1.000,00;OMESSO NOMINATIVO NEL RISPETTO DELLA NORMATIVA SULLA PROTEZIONE DATI PERSONALI; ;RATA NOVEMBRE 2021 CONTRIBUTO A FAVORE DI UTENTE DISABILE PER PROSECUZIONE PROGETTO DI DOMICILIARITA -;04/11/2021;4157;0;602;1;Spese correnti;4;Trasferimenti correnti;2;Trasferimenti correnti a Famiglie;2;Interventi assistenziali;999;Altri assegni e sussidi assistenziali;08/11/2021
4152;1;9999999;150;150;OMESSO NOMINATIVO NEL RISPETTO DELLA NORMATIVA SULLA PROTEZIONE DATI PERSONALI; ;NOVEMBRE 2021 AFFIDO FAMILIARE;04/11/2021;3757;50;282;1;Spese correnti;4;Trasferimenti correnti;2;Trasferimenti correnti a Famiglie;2;Interventi assistenziali;999;Altri assegni e sussidi assistenziali;08/11/2021
4153;1;9999999;3.050,00;3.050,00;ENERGIA FUTURA S.C.;Z5C326A0CF;SALDO Fatt.n. FPA 12/21  del 13/10/2021 SERVIZIO DI REALIZZAZIONE DEL NOTIZIARIO COMUNALE 2021;04/11/2021;31;0;643;1;Spese correnti;3;Acquisto di beni e servizi;2;Acquisto di servizi;2;Organizzazione eventi, pubblicita` e servizi per trasferta;999;Altre spese per relazioni pubbliche, convegni e mostre, pubblicita` n.a.c;08/11/2021
4154;1;9999999;140,3;140,3;VEDETTA 2 MONDIALPOL SPA;ZD032B120B;SALDO Fatt.n. VZ-12579  del 13/10/2021 SETTEMBRE 2021  - SERVIZIO DI COLLEGAMENTO - ALLARME  - VIGILANZA NOTTURNA MAGAZZINO COMUNALE E VILLA FARSETTI;04/11/2021;548;0;688;1;Spese correnti;3;Acquisto di beni e servizi;2;Acquisto di servizi;9;Manutenzione ordinaria e riparazioni;8;Manutenzione ordinaria e riparazioni di beni immobili;08/11/2021
4155;1;9999999;1.097,98;1.097,98;TIM SPA - TELECOM ITALIA SPA;ZE027DF92B;SALDO Fatt.n. 4220421800038282  del 11/10/2021 6 BIM 2021 - CONNETTIVITA FIBRA GBE;04/11/2021;134;0;379;1;Spese correnti;3;Acquisto di beni e servizi;2;Acquisto di servizi;5;Utenze e canoni;999;Utenze e canoni per altri servizi n.a.c.;08/11/2021
4156;1;9999999;61;1.443,98;TIM SPA - TELECOM ITALIA SPA;Z502F0ADA2;SALDO Fatt.n. 8E00625918  del 11/10/2021 6 BIM 2021 - FAX CENTRO PRELIEVI;04/11/2021;134;0;944;1;Spese correnti;3;Acquisto di beni e servizi;2;Acquisto di servizi;5;Utenze e canoni;1;Telefonia fissa;08/11/2021
4156;2;9999999;61;1.443,98;TIM SPA - TELECOM ITALIA SPA;Z502F0ADA2;SALDO Fatt.n. 8E00627839  del 11/10/2021 6 BIM 2021 - FAX SEDE MUNICIPALE;04/11/2021;134;0;944;1;Spese correnti;3;Acquisto di beni e servizi;2;Acquisto di servizi;5;Utenze e canoni;1;Telefonia fissa;08/11/2021
4156;3;9999999;97,6;1.443,98;TIM SPA - TELECOM ITALIA SPA;Z502F0ADA2;SALDO Fatt.n. 8E00625948  del 11/10/2021 6 BIM 2021 - UTENZA BIBLIOTECA;04/11/2021;134;0;944;1;Spese correnti;3;Acquisto di beni e servizi;2;Acquisto di servizi;5;Utenze e canoni;1;Telefonia fissa;08/11/2021
4156;4;9999999;97,6;1.443,98;TIM SPA - TELECOM ITALIA SPA;Z502F0ADA2;SALDO Fatt.n. 8E00625954  del 11/10/2021 6 BIM 2021 - UTENZA POLIZIA LOCALE;04/11/2021;134;0;944;1;Spese correnti;3;Acquisto di beni e servizi;2;Acquisto di servizi;5;Utenze e canoni;1;Telefonia fissa;08/11/2021
4156;5;9999999;97,6;1.443,98;TIM SPA - TELECOM ITALIA SPA;Z502F0ADA2;SALDO Fatt.n. 8E00625242  del 11/10/2021 6 BIM 2021 - FAX POLIZIA LOCALE;04/11/2021;134;0;944;1;Spese correnti;3;Acquisto di beni e servizi;2;Acquisto di servizi;5;Utenze e canoni;1;Telefonia fissa;08/11/2021
4156;6;9999999;98,23;1.443,98;TIM SPA - TELECOM ITALIA SPA;Z502F0ADA2;SALDO Fatt.n. 8E00625919  del 11/10/2021 6 BIM 2021 - FAX BIBLIOTECA;04/11/2021;134;0;944;1;Spese correnti;3;Acquisto di beni e servizi;2;Acquisto di servizi;5;Utenze e canoni;1;Telefonia fissa;08/11/2021
4156;7;9999999;101,46;1.443,98;TIM SPA - TELECOM ITALIA SPA;Z502F0ADA2;SALDO Fatt.n. 8E00625947  del 11/10/2021 6 BIM 2021 - UTENZA CENTRO PRELIEVI;04/11/2021;134;0;944;1;Spese correnti;3;Acquisto di beni e servizi;2;Acquisto di servizi;5;Utenze e canoni;1;Telefonia fissa;08/11/2021
4156;8;9999999;109,57;1.443,98;TIM SPA - TELECOM ITALIA SPA;Z502F0ADA2;SALDO Fatt.n. 8E00625672  del 11/10/2021 6 BIM 2021- UTENZA SEDE MUNICIPALE;04/11/2021;134;0;944;1;Spese correnti;3;Acquisto di beni e servizi;2;Acquisto di servizi;5;Utenze e canoni;1;Telefonia fissa;08/11/2021
4156;9;9999999;109,8;1.443,98;TIM SPA - TELECOM ITALIA SPA;Z502F0ADA2;SALDO Fatt.n. 8E00625455  del 11/10/2021 6 BIM 2021 - UTENZA SERVIZI SOCIALI;04/11/2021;134;0;944;1;Spese correnti;3;Acquisto di beni e servizi;2;Acquisto di servizi;5;Utenze e canoni;1;Telefonia fissa;08/11/2021
4156;10;9999999;150,63;1.443,98;TIM SPA - TELECOM ITALIA SPA;Z502F0ADA2;SALDO Fatt.n. 8E00625868  del 11/10/2021 6 BIM 2021 - UTENZA SEDE MUNICIPALE;04/11/2021;134;0;944;1;Spese correnti;3;Acquisto di beni e servizi;2;Acquisto di servizi;5;Utenze e canoni;1;Telefonia fissa;08/11/2021
4156;11;9999999;459,49;1.443,98;TIM SPA - TELECOM ITALIA SPA;Z502F0ADA2;SALDO Fatt.n. 8E00625798  del 11/10/2021 6 BIM 2021 - UTENZA SEDE MUNICIPALE;04/11/2021;134;0;944;1;Spese correnti;3;Acquisto di beni e servizi;2;Acquisto di servizi;5;Utenze e canoni;1;Telefonia fissa;08/11/2021
4157;1;9999999;137,23;137,23;TIM SPA - TELECOM ITALIA SPA;ZEB27AA043;SALDO Fatt.n. 7X03314283  del 11/10/2021 6 BIM 2021 - CONVENZIONE CONSIP TELEFONIA MOBILE 7;04/11/2021;134;0;151;1;Spese correnti;3;Acquisto di beni e servizi;2;Acquisto di servizi;5;Utenze e canoni;2;Telefonia mobile;08/11/2021
4158;1;9999999;533,19;533,19;TIM SPA - TELECOM ITALIA SPA;ZC0320B772;SALDO Fatt.n. 7X03232907  del 11/10/2021 6 BIM 2021 - CONVENZIONE CONSIP TELEFONIA MOBILE 8;04/11/2021;134;0;915;1;Spese correnti;3;Acquisto di beni e servizi;2;Acquisto di servizi;5;Utenze e canoni;2;Telefonia mobile;08/11/2021
4160;1;9999999;4.000,00;4.000,00;LABS LABORATORIO SOLIDALE ONLUS; ;SETTEMBRE / OTTOBRE 2021 QUOTE SERVIZI AUSILIARI ALLA SCUOLA;05/11/2021;1257;0;944;1;Spese correnti;4;Trasferimenti correnti;4;Trasferimenti correnti a Istituzioni Sociali Private;1;Trasferimenti correnti a Istituzioni Sociali Private;1;Trasferimenti correnti a Istituzioni Sociali Private;09/11/2021
4161;1;9999999;1.300,00;1.300,00;MANO AMICA - GRUPPO SALESE DI IMPEGNO SOCIALE O.D.V.; ;SETTEMBRE / OTTOBRE 2021 QUOTE SERVIZI AUSILIARI ALLA SCUOLA;05/11/2021;1257;0;945;1;Spese correnti;4;Trasferimenti correnti;4;Trasferimenti correnti a Istituzioni Sociali Private;1;Trasferimenti correnti a Istituzioni Sociali Private;1;Trasferimenti correnti a Istituzioni Sociali Private;09/11/2021
4163;1;9999999;131,83;131,83;ENI SPA DIVISIONE REFINING & MARKETING;ZA2305CE6E;ACCONTO Fatt.n. 30083385  del 30/09/2021 SETTEMBRE 2021 - FORNITURA METANO;09/11/2021;4121;0;57;1;Spese correnti;3;Acquisto di beni e servizi;1;Acquisto di beni;2;Altri beni di consumo;2;Carburanti, combustibili e lubrificanti;11/11/2021
4164;1;9999999;25,7;25,7;ENI SPA DIVISIONE REFINING & MARKETING;ZA2305CE6E;SALDO Fatt.n. 30083385  del 30/09/2021 SETTEMBRE 2021 - FORNITURA METANO;09/11/2021;4121;0;57;1;Spese correnti;3;Acquisto di beni e servizi;1;Acquisto di beni;2;Altri beni di consumo;2;Carburanti, combustibili e lubrificanti;12/11/2021
4165;1;9999999;1,97;1,97;COMUNE DI S.MARIA DI SALA; ;COMMISSIONI DEL 04/11/2021 CONTO POS ANAGRAFE OTTOBRE 2021;09/11/2021;146;0;712;1;Spese correnti;3;Acquisto di beni e servizi;2;Acquisto di servizi;17;Servizi finanziari;1;Commissioni per servizi finanziari;11/11/2021
4166;1;9999999;96,05;96,05;BERTI LISA - CARTOLERIA; ;SALDO Fatt.n. 16  del 19/10/2021 FORNITURA LIBRI DI TESTO  PER SCUOLE  ELEMENTARI  A.S. 2021-2022;09/11/2021;1357;0;156;1;Spese correnti;4;Trasferimenti correnti;2;Trasferimenti correnti a Famiglie;5;Altri trasferimenti a famiglie;999;Altri trasferimenti a famiglie n.a.c.;12/11/2021
4167;1;9999999;82,16;82,16;CARTOLERIA VIAN DI LORO CRISTINA; ;SALDO Fatt.n. 28/001  del 18/10/2021 FORNITURA LIBRI DI TESTO PER SCUOLE ELEMENTARI A.S. 2021-2022;09/11/2021;1357;0;156;1;Spese correnti;4;Trasferimenti correnti;2;Trasferimenti correnti a Famiglie;5;Altri trasferimenti a famiglie;999;Altri trasferimenti a famiglie n.a.c.;12/11/2021
4168;1;9999999;62,92;62,92;I COLORI DEL VILLAGGIO DI NEGRI OTTAVIA - CARTOLERIA; ;SALDO Fatt.n. 50  del 19/10/2021 FORNITURA LIBRI DI TESTO  PER SCUOLE  ELEMENTARI  A.S. 2021-2022;09/11/2021;1357;0;156;1;Spese correnti;4;Trasferimenti correnti;2;Trasferimenti correnti a Famiglie;5;Altri trasferimenti a famiglie;999;Altri trasferimenti a famiglie n.a.c.;12/11/2021
4169;1;9999999;780,57;780,57;LA CARTOLERIA DI MARTA DALLE FRATTE; ;SALDO Fatt.n. 4/PA  del 18/10/2021 FORNITURA LIBRI DI TESTO  PER SCUOLE  ELEMENTARI  A.S. 2021-2022;09/11/2021;1357;0;156;1;Spese correnti;4;Trasferimenti correnti;2;Trasferimenti correnti a Famiglie;5;Altri trasferimenti a famiglie;999;Altri trasferimenti a famiglie n.a.c.;12/11/2021
4170;1;9999999;22,37;22,37;BARZON MARINA; ;SALDO Fatt.n. 19  del 14/10/2021 FORNITURA LIBRI DI TESTO  PER SCUOLE  ELEMENTARI  A.S. 2021-2022;09/11/2021;1357;0;156;1;Spese correnti;4;Trasferimenti correnti;2;Trasferimenti correnti a Famiglie;5;Altri trasferimenti a famiglie;999;Altri trasferimenti a famiglie n.a.c.;12/11/2021
4171;1;9999999;274,92;274,92;GOMMA E MATITA DI MENEGHELLO GIULIA; ;SALDO Fatt.n. FATTPA 14_21  del 31/10/2021 FORNITURA LIBRI DI TESTO  PER SCUOLE  ELEMENTARI  A.S. 2021-2022;09/11/2021;1357;0;156;1;Spese correnti;4;Trasferimenti correnti;2;Trasferimenti correnti a Famiglie;5;Altri trasferimenti a famiglie;999;Altri trasferimenti a famiglie n.a.c.;12/11/2021
4172;1;9999999;1.300,00;1.300,00;MANO AMICA - GRUPPO SALESE DI IMPEGNO SOCIALE O.D.V.; ;SETTEMNRE - OTTOBRE 2021 SERVIZIO AUSILIARIO TRASPORTO SCOLASTICO;09/11/2021;1257;0;946;1;Spese correnti;4;Trasferimenti correnti;4;Trasferimenti correnti a Istituzioni Sociali Private;1;Trasferimenti correnti a Istituzioni Sociali Private;1;Trasferimenti correnti a Istituzioni Sociali Private;12/11/2021
4176;1;9999999;1.905,87;1.905,87;AGENZIA DELLE ENTRATE - IVA; ;LIQUIDAZIONE IVA COMMERCIALE MESE DI OTTOBRE 2021;10/11/2021;291;0;970;1;Spese correnti;10;Altre spese correnti;3;Versamenti IVA a debito;1;Versamenti IVA a debito per le gestioni commerciali;1;Versamenti IVA a debito per le gestioni commerciali;16/11/2021
4177;1;9999999;30,35;30,35;C/C/P 15453301 SERVIZIO DI TESORERIA COM; ;SPESE DI GESTIONE CONTO CORRENTE POSTALE 15453301 MESE DI OTTOBRE 2021;11/11/2021;146;0;0;1;Spese correnti;3;Acquisto di beni e servizi;2;Acquisto di servizi;17;Servizi finanziari;999;Spese per servizi finanziari n.a.c.;15/11/2021
4178;1;9999999;18,7;18,7;DOLOMITI ENERGIA SPA;8922150718;SALDO Fatt.n. 42104713685  del 28/10/2021 SETTEMBRE 2021 - CONSUMI ALLOGGIO VIA OLIMPIA SMS;11/11/2021;134;30;347;1;Spese correnti;3;Acquisto di beni e servizi;2;Acquisto di servizi;5;Utenze e canoni;6;Gas;15/11/2021
4179;1;9999999;26,46;26,46;DOLOMITI ENERGIA SPA;8922150718;SALDO Fatt.n. 42104713686  del 28/10/2021 SETTEMBRE 2021 - CONSUMI ALLOGGIO VIA DON GALLAERANI CALTANA;11/11/2021;134;30;347;1;Spese correnti;3;Acquisto di beni e servizi;2;Acquisto di servizi;5;Utenze e canoni;6;Gas;15/11/2021
4180;1;9999999;652,11;652,11;DOLOMITI ENERGIA SPA;8922150718;SALDO Fatt.n. 42104713683  del 28/10/2021 SETTEMBRE 2021 - CONSUMI SEDE MUNICIPALE;11/11/2021;134;31;348;1;Spese correnti;3;Acquisto di beni e servizi;2;Acquisto di servizi;5;Utenze e canoni;6;Gas;15/11/2021
4181;1;9999999;90,39;90,39;DOLOMITI ENERGIA SPA;8922150718;SALDO Fatt.n. 42104713687  del 28/10/2021 SETTEMBRE 2021 - CONSUMI SC. ELEM - SC. MEDIA SMS;11/11/2021;1334;30;349;1;Spese correnti;3;Acquisto di beni e servizi;2;Acquisto di servizi;5;Utenze e canoni;6;Gas;15/11/2021
4182;1;9999999;131,97;131,97;DOLOMITI ENERGIA SPA;8922150718;SALDO Fatt.n. 42104713691  del 28/10/2021 SETTEMBRE 2021 - CONSUMI IMP.SPORT. PARROCCHIA CASELLE;11/11/2021;1334;30;349;1;Spese correnti;3;Acquisto di beni e servizi;2;Acquisto di servizi;5;Utenze e canoni;6;Gas;15/11/2021
4183;1;9999999;40,56;40,56;DOLOMITI ENERGIA SPA;8922150718;ACCONTO Fatt.n. 42104713688  del 28/10/2021 SETTEMBRE 2021 - CONSUMI PALESTRA SMS;11/11/2021;1334;30;349;1;Spese correnti;3;Acquisto di beni e servizi;2;Acquisto di servizi;5;Utenze e canoni;6;Gas;15/11/2021
4184;1;9999999;40,55;40,55;DOLOMITI ENERGIA SPA;8922150718;SALDO Fatt.n. 42104713688  del 28/10/2021 SETTEMBRE 2021 - CONSUMI PALESTRA SMS;11/11/2021;1334;30;349;1;Spese correnti;3;Acquisto di beni e servizi;2;Acquisto di servizi;5;Utenze e canoni;6;Gas;15/11/2021
4185;1;9999999;95;95;DOLOMITI ENERGIA SPA;8922150718;ACCONTO Fatt.n. 42104713678  del 28/10/2021 SETTEMBRE 2021 - CONSUMI SC. ELEM. - PALESTRA STIGLIANO;11/11/2021;1334;30;349;1;Spese correnti;3;Acquisto di beni e servizi;2;Acquisto di servizi;5;Utenze e canoni;6;Gas;15/11/2021
4186;1;9999999;95;95;DOLOMITI ENERGIA SPA;8922150718;ACCONTO Fatt.n. 42104713678  del 28/10/2021 SETTEMBRE 2021 - CONSUMI SC. ELEM. - PALESTRA STIGLIANO;11/11/2021;1334;30;349;1;Spese correnti;3;Acquisto di beni e servizi;2;Acquisto di servizi;5;Utenze e canoni;6;Gas;15/11/2021
4187;1;9999999;81,43;81,43;DOLOMITI ENERGIA SPA;8922150718;SALDO Fatt.n. 42104713678  del 28/10/2021 SETTEMBRE 2021 - CONSUMI SC. ELEM. - PALESTRA STIGLIANO;11/11/2021;1334;30;349;1;Spese correnti;3;Acquisto di beni e servizi;2;Acquisto di servizi;5;Utenze e canoni;6;Gas;15/11/2021
4188;1;9999999;39,97;39,97;DOLOMITI ENERGIA SPA;8922150718;SALDO Fatt.n. 42104713681  del 28/10/2021 SETTEMBRE 2021 - CONSUMI SC. ELEM. CALTANA;11/11/2021;1334;30;349;1;Spese correnti;3;Acquisto di beni e servizi;2;Acquisto di servizi;5;Utenze e canoni;6;Gas;15/11/2021
4189;1;9999999;60;60;DOLOMITI ENERGIA SPA;8922150718;ACCONTO Fatt.n. 42104713682  del 28/10/2021 SETTEMBRE 2021 - CONSUMI SC. ELEM - PALESTRA CASELLE;11/11/2021;1334;30;349;1;Spese correnti;3;Acquisto di beni e servizi;2;Acquisto di servizi;5;Utenze e canoni;6;Gas;15/11/2021
4190;1;9999999;60;60;DOLOMITI ENERGIA SPA;8922150718;ACCONTO Fatt.n. 42104713682  del 28/10/2021 SETTEMBRE 2021 - CONSUMI SC. ELEM - PALESTRA CASELLE;11/11/2021;1334;30;349;1;Spese correnti;3;Acquisto di beni e servizi;2;Acquisto di servizi;5;Utenze e canoni;6;Gas;15/11/2021
4191;1;9999999;181,43;181,43;DOLOMITI ENERGIA SPA;8922150718;SALDO Fatt.n. 42104713682  del 28/10/2021 SETTEMBRE 2021 - CONSUMI SC. ELEM - PALESTRA CASELLE;11/11/2021;1334;30;349;1;Spese correnti;3;Acquisto di beni e servizi;2;Acquisto di servizi;5;Utenze e canoni;6;Gas;15/11/2021
4192;1;9999999;26;26;DOLOMITI ENERGIA SPA;8922150718;ACCONTO Fatt.n. 42104713684  del 28/10/2021 SETTEMBRE 2021 - CONSUMI SC. ELEM - PALESTRA - ASILO S.ANGELO;11/11/2021;1334;30;349;1;Spese correnti;3;Acquisto di beni e servizi;2;Acquisto di servizi;5;Utenze e canoni;6;Gas;15/11/2021
4193;1;9999999;26;26;DOLOMITI ENERGIA SPA;8922150718;ACCONTO Fatt.n. 42104713684  del 28/10/2021 SETTEMBRE 2021 - CONSUMI SC. ELEM - PALESTRA - ASILO S.ANGELO;11/11/2021;1334;30;349;1;Spese correnti;3;Acquisto di beni e servizi;2;Acquisto di servizi;5;Utenze e canoni;6;Gas;15/11/2021
4194;1;9999999;77,91;77,91;DOLOMITI ENERGIA SPA;8922150718;SALDO Fatt.n. 42104713684  del 28/10/2021 SETTEMBRE 2021 - CONSUMI SC. ELEM - PALESTRA - ASILO S.ANGELO;11/11/2021;1334;30;349;1;Spese correnti;3;Acquisto di beni e servizi;2;Acquisto di servizi;5;Utenze e canoni;6;Gas;15/11/2021
4195;1;9999999;82;82;DOLOMITI ENERGIA SPA;8922150718;ACCONTO Fatt.n. 42104713679  del 28/10/2021 SETTEMBRE 2021 - CONSUMI SC. ELEM. - PALESTRA VETERNIGO;11/11/2021;1334;30;349;1;Spese correnti;3;Acquisto di beni e servizi;2;Acquisto di servizi;5;Utenze e canoni;6;Gas;15/11/2021
4196;1;9999999;82;82;DOLOMITI ENERGIA SPA;8922150718;ACCONTO Fatt.n. 42104713679  del 28/10/2021 SETTEMBRE 2021 - CONSUMI SC. ELEM. - PALESTRA VETERNIGO;11/11/2021;1334;30;349;1;Spese correnti;3;Acquisto di beni e servizi;2;Acquisto di servizi;5;Utenze e canoni;6;Gas;15/11/2021
4197;1;9999999;136,03;136,03;DOLOMITI ENERGIA SPA;8922150718;SALDO Fatt.n. 42104713679  del 28/10/2021 SETTEMBRE 2021 - CONSUMI SC. ELEM. - PALESTRA VETERNIGO;11/11/2021;1334;30;349;1;Spese correnti;3;Acquisto di beni e servizi;2;Acquisto di servizi;5;Utenze e canoni;6;Gas;15/11/2021
4198;1;9999999;130,84;130,84;DOLOMITI ENERGIA SPA;8922150718;ACCONTO Fatt.n. 42104713690  del 28/10/2021 SETTEMBRE 2021 - CONSUMI PALESTRA CALTANA;11/11/2021;1334;30;349;1;Spese correnti;3;Acquisto di beni e servizi;2;Acquisto di servizi;5;Utenze e canoni;6;Gas;15/11/2021
4199;1;9999999;130,84;130,84;DOLOMITI ENERGIA SPA;8922150718;SALDO Fatt.n. 42104713690  del 28/10/2021 SETTEMBRE 2021 - CONSUMI PALESTRA CALTANA;11/11/2021;1334;30;349;1;Spese correnti;3;Acquisto di beni e servizi;2;Acquisto di servizi;5;Utenze e canoni;6;Gas;15/11/2021
4200;1;9999999;28,27;28,27;DOLOMITI ENERGIA SPA;8922150718;SALDO Fatt.n. 42104713689  del 28/10/2021 SETTEMBRE 2021 - CONSUMI MAGAZZINO COMUNALE;11/11/2021;3534;0;351;1;Spese correnti;3;Acquisto di beni e servizi;2;Acquisto di servizi;5;Utenze e canoni;6;Gas;15/11/2021
4201;1;9999999;43,44;43,44;DOLOMITI ENERGIA SPA;8922150718;SALDO Fatt.n. 42104713680  del 28/10/2021 SETTEMBRE 2021 - CONSUMI VILLA FARSETTI;11/11/2021;4234;0;352;1;Spese correnti;3;Acquisto di beni e servizi;2;Acquisto di servizi;5;Utenze e canoni;6;Gas;15/11/2021
4202;1;9999999;200;200;C/C/P 10299303 POLIZIA LOCALE SERVIZIO D; ;SPESE DI GESTIONE CONTO CORRENTE POSTALE;11/11/2021;1145;0;0;1;Spese correnti;3;Acquisto di beni e servizi;2;Acquisto di servizi;16;Servizi amministrativi;999;Altre spese per servizi amministrativi;15/11/2021
4203;1;9999999;200;200;DIVERSI CCP LAMPADE VOTIVE C/C/P 19041300; ;SPESE DI GESTIONE CONTO CORRENTE POSTALE;11/11/2021;1145;0;0;1;Spese correnti;3;Acquisto di beni e servizi;2;Acquisto di servizi;16;Servizi amministrativi;999;Altre spese per servizi amministrativi;15/11/2021
4204;1;9999999;3.416,00;3.416,00;ALES SRL;ZD632FE321;SALDO Fatt.n. PA/149  del 19/10/2021 REALIZZAZIONE CONCORSO DIGITALE PROVA SCRITTA ISTRUTTORE TECNICO CAT. C;12/11/2021;849;0;728;1;Spese correnti;3;Acquisto di beni e servizi;2;Acquisto di servizi;99;Altri servizi;999;Altri servizi diversi n.a.c.;16/11/2021
4205;1;9999999;6.069,50;6.069,50;COOP SOCIALE PRIMAVERA SOC.COOP.SOC.ONLUS;ZED312C6E7;SALDO Fatt.n. 202/PA  del 18/10/2021 SERVIZIO DI PULIZIA E RIORDINO CENTRI URBANI 2021;12/11/2021;2549;0;354;1;Spese correnti;3;Acquisto di beni e servizi;2;Acquisto di servizi;99;Altri servizi;9;Acquisto di sevizi per verde e arredo urbano;16/11/2021
4206;1;9999999;6.069,50;6.069,50;COOP SOCIALE PRIMAVERA SOC.COOP.SOC.ONLUS;ZED312C6E7;SALDO Fatt.n. 203/PA  del 18/10/2021 SERVIZIO DI PULIZIA E RIORDINO CENTRI URBANI;12/11/2021;2549;0;354;1;Spese correnti;3;Acquisto di beni e servizi;2;Acquisto di servizi;99;Altri servizi;9;Acquisto di sevizi per verde e arredo urbano;16/11/2021
4207;1;9999999;52.207,30;52.207,30;SO.GE.DI.CO. SRL-IMPIANTI COSTR.GENERALI;85260184A1;ACCONTO Fatt.n. 185FEP  del 19/10/2021 INTERVENTO DI ADEGUAMENTO FINALIZZATO ALLA CERTIFICAZIONE ANTINCENDIO SC. ELEM. CALTANA. SAL N. 1 CORRISPONDENTE AL FINALE;12/11/2021;7631;16;1365;2;Spese in conto capitale;2;Investimenti fissi lordi e acquisto di terreni;1;Beni materiali;9;Beni immobili;3;Fabbricati ad uso scolastico;16/11/2021
4208;1;9999999;2.434,71;2.434,71;SO.GE.DI.CO. SRL-IMPIANTI COSTR.GENERALI;85260184A1;SALDO Fatt.n. 185FEP  del 19/10/2021 INTERVENTO DI ADEGUAMENTO FINALIZZATO ALLA CERTIFICAZIONE ANTINCENDIO SC. ELEM. CALTANA. SAL N. 1 CORRISPONDENTE AL FINALE;12/11/2021;7631;16;1365;2;Spese in conto capitale;2;Investimenti fissi lordi e acquisto di terreni;1;Beni materiali;9;Beni immobili;3;Fabbricati ad uso scolastico;16/11/2021
4209;1;9999999;1.922,00;1.922,00;OMESSO NOMINATIVO NEL RISPETTO DELLA NORMATIVA SULLA PROTEZIONE DATI PERSONALI; ;SETTEMBRE 2021 INT.RETTA CASA DI RIPOSO;12/11/2021;3844;0;936;1;Spese correnti;3;Acquisto di beni e servizi;2;Acquisto di servizi;15;Contratti di servizio pubblico;8;Contratti di servizio di assistenza sociale residenziale e semiresidenziale;16/11/2021
4210;1;9999999;8.799,05;8.799,05;VENTUNO SAS DI GIACOMELLO CARLO, FRANCESCO & C.; ;SALDO Fatt.n. 112  del 22/10/2021 FORNITURA LIBRI DI TESTO  PER SCUOLE  ELEMENTARI  A.S. 2021-2022;16/11/2021;1357;0;156;1;Spese correnti;4;Trasferimenti correnti;2;Trasferimenti correnti a Famiglie;5;Altri trasferimenti a famiglie;999;Altri trasferimenti a famiglie n.a.c.;18/11/2021
4211;1;9999999;658,62;658,62;SCANTAMBURLO PIETRO;Z583109522;SALDO Fatt.n. 114  del 25/10/2021 SFALCIO AREE VERDI;16/11/2021;2549;0;307;1;Spese correnti;3;Acquisto di beni e servizi;2;Acquisto di servizi;99;Altri servizi;9;Acquisto di sevizi per verde e arredo urbano;18/11/2021
4212;1;9999999;5.192,32;5.192,32;SCANTAMBURLO PIETRO;Z64335F5D2;SALDO Fatt.n. 110  del 22/10/2021 FORTUNALE DEL 16 AGOSTO 2021 - INTERVENTI DI TAGLIO RAMAGLIA PRESSO AREE VERDI;16/11/2021;2549;0;871;1;Spese correnti;3;Acquisto di beni e servizi;2;Acquisto di servizi;99;Altri servizi;9;Acquisto di sevizi per verde e arredo urbano;18/11/2021
4213;1;9999999;6.856,40;6.856,40;SCANTAMBURLO PIETRO;Z85336039E;SALDO Fatt.n. 112  del 25/10/2021 MANUTENZIONE VERDE PUBBLICO;16/11/2021;2549;0;877;1;Spese correnti;3;Acquisto di beni e servizi;2;Acquisto di servizi;99;Altri servizi;9;Acquisto di sevizi per verde e arredo urbano;18/11/2021
4214;1;9999999;23,55;23,55;C/C/P 1039683022 -RISCOSSIONE COATTIVA EX ICP DPA; ;SPESE GESTIONE CONTO RISCOSSIONE COATTIVA CCP N. 1039683022 MESE DI OTTOBRE BRE 2021;16/11/2021;146;0;0;1;Spese correnti;3;Acquisto di beni e servizi;2;Acquisto di servizi;17;Servizi finanziari;999;Spese per servizi finanziari n.a.c.;18/11/2021
4215;1;9999999;7.930,00;7.930,00;ALES SRL;ZCE3267CDD;SALDO Fatt.n. PA/150  del 19/10/2021 GESTIONE PROVA SCRITTA DA REMOTO DEI CONCORSI PUBBLICI PER N. 1 POSTO DI ISTRUTTORE CONTABILE ED UN POSTO DI ASSISTENTE SOCIALE;16/11/2021;849;0;644;1;Spese correnti;3;Acquisto di beni e servizi;2;Acquisto di servizi;99;Altri servizi;999;Altri servizi diversi n.a.c.;18/11/2021
4216;1;9999999;1.722,98;1.722,98;VALEX SPA; ;LIQUIDAZIONE A DITTA VALEX RIMBORSO ASSENZE RETRIBUITE VICE SINDACO ARPI ALESSANDRO USUFRUITE NEI MESI DI SETTEMBRE ED OTTOBRE 2021.;16/11/2021;30;99;20;1;Spese correnti;3;Acquisto di beni e servizi;2;Acquisto di servizi;1;Organi e incarichi istituzionali dell'amministrazione;2;Organi istituzionali dell'amministrazione - Rimborsi;18/11/2021
4217;1;9999999;489,03;489,03;COMUNE DI MIRANO; ;PROGETTO SOLLIEVO ALZHEIMER ANNO 2020;16/11/2021;4051;0;1027;1;Spese correnti;4;Trasferimenti correnti;1;Trasferimenti correnti a Amministrazioni Pubbliche;2;Trasferimenti correnti a Amministrazioni Locali;3;Trasferimenti correnti a Comuni;18/11/2021
4218;1;9999999;2.500,00;2.500,00;LABS LABORATORIO SOLIDALE ONLUS; ;CONTRIBUTO PER ATTIVITA A FAVORE DI FAMILGIE IN SITUAZIONE DI DIFFICOLTA ANNO 2021;16/11/2021;4059;0;445;1;Spese correnti;4;Trasferimenti correnti;4;Trasferimenti correnti a Istituzioni Sociali Private;1;Trasferimenti correnti a Istituzioni Sociali Private;1;Trasferimenti correnti a Istituzioni Sociali Private;18/11/2021
4219;1;9999999;3.000,00;3.000,00;PARROCCHIA TRASFIGURAZIONE DEL SIGNORE  VETERNIGO; ;SALDO ANNO 2020 CONTRIBUTO L.R.44/87;16/11/2021;8705;0;13;2;Spese in conto capitale;3;Contributi agli investimenti;4;Contributi agli investimenti a Istituzioni Sociali Private;1;Contributi agli investimenti a Istituzioni Sociali Private;1;Contributi agli investimenti a Istituzioni Sociali Private;18/11/2021
4220;1;9999999;3.000,00;3.000,00;PARROCCHIA DI S. MICHELE ARCANGELO S.ANGELO; ;ANNO 2021 CONTRIBUTO L.R. 20.8.1987 N. 44;16/11/2021;8705;0;343;2;Spese in conto capitale;3;Contributi agli investimenti;4;Contributi agli investimenti a Istituzioni Sociali Private;1;Contributi agli investimenti a Istituzioni Sociali Private;1;Contributi agli investimenti a Istituzioni Sociali Private;18/11/2021
4221;1;9999999;3.000,00;3.000,00;PARROCCHIA DI  S.BIAGIO CALTANA; ;ANNO 2021 CONTRIBUTO L.R. 20.8.1987 N. 44 -;16/11/2021;8705;0;342;2;Spese in conto capitale;3;Contributi agli investimenti;4;Contributi agli investimenti a Istituzioni Sociali Private;1;Contributi agli investimenti a Istituzioni Sociali Private;1;Contributi agli investimenti a Istituzioni Sociali Private;18/11/2021
4222;1;9999999;12,3;12,3;COMUNE DI S.MARIA DI SALA; ;AGGIO CONTRIBUTO IFEL RISCOSSIONE IMU RENDICONTO AL 16-11-2021;16/11/2021;332;0;0;1;Spese correnti;3;Acquisto di beni e servizi;2;Acquisto di servizi;3;Aggi di riscossione;999;Altri aggi di riscossione n.a.c.;18/11/2021
4223;1;9999999;250;8.436,72;DIVERSI - DIPENDENTI COMUNALI; ;STIPENDI MESE DI NOVEMBRE 21;16/11/2021;30;99;0;1;Spese correnti;3;Acquisto di beni e servizi;2;Acquisto di servizi;1;Organi e incarichi istituzionali dell'amministrazione;1;Organi istituzionali dell'amministrazione - Indennità;26/11/2021
4223;2;9999999;8.186,72;8.436,72;DIVERSI-AMMINISTRATORI COM.LI; ;STIPENDI MESE DI NOVEMBRE 21;16/11/2021;30;99;0;1;Spese correnti;3;Acquisto di beni e servizi;2;Acquisto di servizi;1;Organi e incarichi istituzionali dell'amministrazione;1;Organi istituzionali dell'amministrazione - Indennità;26/11/2021
4258;1;9999999;750;750;DIVERSI - DIPENDENTI COMUNALI; ;STIPENDI MESE DI NOVEMBRE 21;16/11/2021;849;0;868;1;Spese correnti;3;Acquisto di beni e servizi;2;Acquisto di servizi;99;Altri servizi;999;Altri servizi diversi n.a.c.;26/11/2021
4292;1;9999999;500;500;TABACCHI CRISTINA; ;COMPETENZE QUALE COMPONENTE COMMISSIONE CONCORSO PER UN 1 POSTO DI ISTRUTTORE DIRETTIVO ASSISTENTE  SOCIALE;17/11/2021;849;0;868;1;Spese correnti;3;Acquisto di beni e servizi;2;Acquisto di servizi;99;Altri servizi;999;Altri servizi diversi n.a.c.;19/11/2021
4293;1;9999999;2.000,00;2.000,00;TAAAC SRL; ;ASSEGNAZIONE CONTRIBUTI PER LAPERTURA DI NUOVE ATTIVITA COMMERCIALI AI SENSI DELLA D.G.C. N. 105/2019 - ATTIVITA COMPRESA NELLAMBITO DEL PROGETTO DEL DISTRETTO DEL COMMERCIO;17/11/2021;4758;0;953;1;Spese correnti;4;Trasferimenti correnti;3;Trasferimenti correnti a Imprese;99;Trasferimenti correnti a altre imprese;999;Trasferimenti correnti a altre imprese;19/11/2021
4294;1;9999999;2.000,00;2.000,00;TOELETTATURA BUBYLAND DI RUFFATO VALENTINA; ;ASSEGNAZIONE CONTRIBUTI PER LAPERTURA DI NUOVE ATTIVITA COMMERCIALI AI SENSI DELLA D.G.C. N. 105/2019 - ATTIVITA COMPRESA NELLAMBITO DEL PROGETTO DEL DISTRETTO DEL COMMERCIO;17/11/2021;4758;0;954;1;Spese correnti;4;Trasferimenti correnti;3;Trasferimenti correnti a Imprese;99;Trasferimenti correnti a altre imprese;999;Trasferimenti correnti a altre imprese;19/11/2021
4295;1;9999999;1.600,00;1.600,00;HAIR JOY DI PONTICELLO JESSICA; ;ASSEGNAZIONE CONTRIBUTI PER LAPERTURA DI NUOVE ATTIVITA COMMERCIALI AI SENSI DELLA D.G.C. N. 105/2019 - ATTIVITA COMPRESA NELLAMBITO DEL PROGETTO DEL DISTRETTO DEL COMMERCIO;17/11/2021;4758;0;955;1;Spese correnti;4;Trasferimenti correnti;3;Trasferimenti correnti a Imprese;99;Trasferimenti correnti a altre imprese;999;Trasferimenti correnti a altre imprese;19/11/2021
4296;1;9999999;750;750;LABS LABORATORIO SOLIDALE ONLUS; ;CONTRIBUTO ECONOMICO PER LA DISTRUZIONE PORTA A PORTA DI MATERIALE ILLUSTRATIVO DEDICATO ALLA PROMOZIONE DELLA RASSEGNA CULTURALE NOVEMBRE LETTERARIO 2021.;18/11/2021;1859;0;976;1;Spese correnti;4;Trasferimenti correnti;4;Trasferimenti correnti a Istituzioni Sociali Private;1;Trasferimenti correnti a Istituzioni Sociali Private;1;Trasferimenti correnti a Istituzioni Sociali Private;23/11/2021
4298;1;9999999;200;200;OMESSO NOMINATIVO NEL RISPETTO DELLA NORMATIVA SULLA PROTEZIONE DATI PERSONALI; ;OTTOBRE 2021 - PROGETTO RIA;18/11/2021;3957;54;146;1;Spese correnti;4;Trasferimenti correnti;2;Trasferimenti correnti a Famiglie;5;Altri trasferimenti a famiglie;999;Altri trasferimenti a famiglie n.a.c.;23/11/2021
4299;1;9999999;200;200;OMESSO NOMINATIVO NEL RISPETTO DELLA NORMATIVA SULLA PROTEZIONE DATI PERSONALI; ;OTTOBRE 2021 - PROGETTO RIA;18/11/2021;3957;54;146;1;Spese correnti;4;Trasferimenti correnti;2;Trasferimenti correnti a Famiglie;5;Altri trasferimenti a famiglie;999;Altri trasferimenti a famiglie n.a.c.;07/12/2021
4300;1;9999999;200;200;OMESSO NOMINATIVO NEL RISPETTO DELLA NORMATIVA SULLA PROTEZIONE DATI PERSONALI; ;OTTOBRE 2021 - PROGETTO RIA;18/11/2021;3957;54;146;1;Spese correnti;4;Trasferimenti correnti;2;Trasferimenti correnti a Famiglie;5;Altri trasferimenti a famiglie;999;Altri trasferimenti a famiglie n.a.c.;23/11/2021
4301;1;9999999;200;200;OMESSO NOMINATIVO NEL RISPETTO DELLA NORMATIVA SULLA PROTEZIONE DATI PERSONALI; ;OTTOBRE 2021 - PROGETTO RIA;18/11/2021;3957;54;146;1;Spese correnti;4;Trasferimenti correnti;2;Trasferimenti correnti a Famiglie;5;Altri trasferimenti a famiglie;999;Altri trasferimenti a famiglie n.a.c.;01/12/2021
4302;1;9999999;200;200;OMESSO NOMINATIVO NEL RISPETTO DELLA NORMATIVA SULLA PROTEZIONE DATI PERSONALI; ;OTTOBRE 2021 - PROGETTO RIA;18/11/2021;3957;54;146;1;Spese correnti;4;Trasferimenti correnti;2;Trasferimenti correnti a Famiglie;5;Altri trasferimenti a famiglie;999;Altri trasferimenti a famiglie n.a.c.;26/11/2021
4304;1;9999999;400;400;OMESSO NOMINATIVO NEL RISPETTO DELLA NORMATIVA SULLA PROTEZIONE DATI PERSONALI; ;NOVEMBRE 2021 MINIMO VITALE;18/11/2021;4157;0;998;1;Spese correnti;4;Trasferimenti correnti;2;Trasferimenti correnti a Famiglie;2;Interventi assistenziali;999;Altri assegni e sussidi assistenziali;02/12/2021
4305;1;9999999;100;100;OMESSO NOMINATIVO NEL RISPETTO DELLA NORMATIVA SULLA PROTEZIONE DATI PERSONALI; ;NOVEMBRE 2021 MINIMO VITALE;18/11/2021;4157;0;872;1;Spese correnti;4;Trasferimenti correnti;2;Trasferimenti correnti a Famiglie;2;Interventi assistenziali;999;Altri assegni e sussidi assistenziali;23/11/2021
4306;1;9999999;150;150;OMESSO NOMINATIVO NEL RISPETTO DELLA NORMATIVA SULLA PROTEZIONE DATI PERSONALI; ;NOVEMBRE 2021 MINIMO VITALE;18/11/2021;4157;0;621;1;Spese correnti;4;Trasferimenti correnti;2;Trasferimenti correnti a Famiglie;2;Interventi assistenziali;999;Altri assegni e sussidi assistenziali;23/11/2021
4307;1;9999999;400;400;OMESSO NOMINATIVO NEL RISPETTO DELLA NORMATIVA SULLA PROTEZIONE DATI PERSONALI; ;NOVEMBRE 2021 MINIMO VITALE;18/11/2021;4157;0;999;1;Spese correnti;4;Trasferimenti correnti;2;Trasferimenti correnti a Famiglie;2;Interventi assistenziali;999;Altri assegni e sussidi assistenziali;06/12/2021
4308;1;9999999;150;150;OMESSO NOMINATIVO NEL RISPETTO DELLA NORMATIVA SULLA PROTEZIONE DATI PERSONALI; ;NOVEMBRE 2021 MINIMO VITALE;18/11/2021;4157;0;873;1;Spese correnti;4;Trasferimenti correnti;2;Trasferimenti correnti a Famiglie;2;Interventi assistenziali;999;Altri assegni e sussidi assistenziali;30/11/2021
4309;1;9999999;100;100;OMESSO NOMINATIVO NEL RISPETTO DELLA NORMATIVA SULLA PROTEZIONE DATI PERSONALI; ;NOVEMBRE 2021 MINIMO VITALE;18/11/2021;4157;0;695;1;Spese correnti;4;Trasferimenti correnti;2;Trasferimenti correnti a Famiglie;2;Interventi assistenziali;999;Altri assegni e sussidi assistenziali;23/11/2021
4310;1;9999999;700;700;OMESSO NOMINATIVO NEL RISPETTO DELLA NORMATIVA SULLA PROTEZIONE DATI PERSONALI; ;NOVEMBRE 2021 PROGETTO A RILEVANZA SOCIALE - COMPETENZE;18/11/2021;4157;0;91;1;Spese correnti;4;Trasferimenti correnti;2;Trasferimenti correnti a Famiglie;2;Interventi assistenziali;999;Altri assegni e sussidi assistenziali;23/11/2021
4311;1;9999999;281;281;OMESSO NOMINATIVO NEL RISPETTO DELLA NORMATIVA SULLA PROTEZIONE DATI PERSONALI; ;CODICE UTENTE 31700008/00032416 MORO GIORGIO CANONI DI LOCAZIONE INSOLUTI;18/11/2021;4157;0;1000;1;Spese correnti;4;Trasferimenti correnti;2;Trasferimenti correnti a Famiglie;2;Interventi assistenziali;999;Altri assegni e sussidi assistenziali;23/11/2021
4312;1;9999999;219;219;OMESSO NOMINATIVO NEL RISPETTO DELLA NORMATIVA SULLA PROTEZIONE DATI PERSONALI; ;CODICE UTENTE 31700008/00032416 MORO GIORGIO CANONI DI LOCAZIONE INSOLUTI;18/11/2021;4157;51;645;1;Spese correnti;4;Trasferimenti correnti;2;Trasferimenti correnti a Famiglie;2;Interventi assistenziali;999;Altri assegni e sussidi assistenziali;23/11/2021
4313;1;9999999;200;200;OMESSO NOMINATIVO NEL RISPETTO DELLA NORMATIVA SULLA PROTEZIONE DATI PERSONALI; ;NOVEMBRE 2021 - ARRETRATI OTTOBRE 2021  MINIMO VITALE;18/11/2021;4157;0;1001;1;Spese correnti;4;Trasferimenti correnti;2;Trasferimenti correnti a Famiglie;2;Interventi assistenziali;999;Altri assegni e sussidi assistenziali;23/11/2021
4314;1;9999999;150;150;OMESSO NOMINATIVO NEL RISPETTO DELLA NORMATIVA SULLA PROTEZIONE DATI PERSONALI; ;NOVEMBRE 2021 MINIMO VITALE;18/11/2021;4157;0;842;1;Spese correnti;4;Trasferimenti correnti;2;Trasferimenti correnti a Famiglie;2;Interventi assistenziali;999;Altri assegni e sussidi assistenziali;02/12/2021
4315;1;9999999;171,03;171,03;C.E.I.F. DI BESSEGA VANNI;ZB9305D59C;SALDO Fatt.n. 1-15  del 30/10/2021 MATERIALE VARIO DI FERRAMENTA PER MANUTENZIONI;18/11/2021;522;0;58;1;Spese correnti;3;Acquisto di beni e servizi;1;Acquisto di beni;2;Altri beni di consumo;999;Altri beni e materiali di consumo n.a.c.;23/11/2021
4316;1;9999999;1.276,12;1.276,12;GRAFICHE QUATTRO SRL;ZB133A6077;SALDO Fatt.n. 000011-0CPAPA  del 29/10/2021 DEPLIANT A 3 ANTE F.TO CHIUSO PER NOVEMBRE LETTERARIO;18/11/2021;1831;0;932;1;Spese correnti;3;Acquisto di beni e servizi;2;Acquisto di servizi;2;Organizzazione eventi, pubblicita` e servizi per trasferta;4;Pubblicita`;23/11/2021
4317;1;9999999;1.101,26;1.101,26;ARTEA  SNC DI LION & SALVIATO;Z47300506C;SALDO Fatt.n. 25-2021/PA  del 20/10/2021 OPERAZIONI EFFETTUATE NEI CIMITERI DEL COMUNE DI SANTA MARIA DI SALA NEL MESE DI SETTEMBRE 2021;18/11/2021;4438;0;1377;1;Spese correnti;3;Acquisto di beni e servizi;2;Acquisto di servizi;9;Manutenzione ordinaria e riparazioni;8;Manutenzione ordinaria e riparazioni di beni immobili;23/11/2021
4318;1;9999999;73,08;73,08;BERTI LISA - CARTOLERIA; ;SALDO Fatt.n. 17  del 20/10/2021 FORNITURA LIBRI DI TESTO  PER SCUOLE  ELEMENTARI  A.S. 2021-2022;18/11/2021;1357;0;156;1;Spese correnti;4;Trasferimenti correnti;2;Trasferimenti correnti a Famiglie;5;Altri trasferimenti a famiglie;999;Altri trasferimenti a famiglie n.a.c.;23/11/2021
4319;1;9999999;160;160;OMESSO NOMINATIVO NEL RISPETTO DELLA NORMATIVA SULLA PROTEZIONE DATI PERSONALI; ;INT.RETTA SCUOLA MATERNA SETTEMBRE OTTOBRE 2021;19/11/2021;3757;0;899;1;Spese correnti;4;Trasferimenti correnti;2;Trasferimenti correnti a Famiglie;5;Altri trasferimenti a famiglie;999;Altri trasferimenti a famiglie n.a.c.;23/11/2021
4320;1;9999999;299;299;OMESSO NOMINATIVO NEL RISPETTO DELLA NORMATIVA SULLA PROTEZIONE DATI PERSONALI; ;INT.RETTA SCUOLA MATERNA SETTEMBRE OTTOBRE 21;19/11/2021;3957;54;646;1;Spese correnti;4;Trasferimenti correnti;2;Trasferimenti correnti a Famiglie;5;Altri trasferimenti a famiglie;999;Altri trasferimenti a famiglie n.a.c.;23/11/2021
4321;1;9999999;41;41;OMESSO NOMINATIVO NEL RISPETTO DELLA NORMATIVA SULLA PROTEZIONE DATI PERSONALI; ;INT.RETTA SCUOLA MATERNA SETTEMBRE OTTOBRE 2021;19/11/2021;3757;0;902;1;Spese correnti;4;Trasferimenti correnti;2;Trasferimenti correnti a Famiglie;5;Altri trasferimenti a famiglie;999;Altri trasferimenti a famiglie n.a.c.;23/11/2021
4322;1;9999999;340;340;OMESSO NOMINATIVO NEL RISPETTO DELLA NORMATIVA SULLA PROTEZIONE DATI PERSONALI; ;INT.RETTA SCUOLA MATERNA SETTEMBRE OTTOBRE 2021;19/11/2021;3757;0;903;1;Spese correnti;4;Trasferimenti correnti;2;Trasferimenti correnti a Famiglie;5;Altri trasferimenti a famiglie;999;Altri trasferimenti a famiglie n.a.c.;23/11/2021
4323;1;9999999;170;170;OMESSO NOMINATIVO NEL RISPETTO DELLA NORMATIVA SULLA PROTEZIONE DATI PERSONALI; ;INT.RETTA SCUOLA MATERNA SETTEMBRE OTTOBRE 2021;19/11/2021;3757;0;901;1;Spese correnti;4;Trasferimenti correnti;2;Trasferimenti correnti a Famiglie;5;Altri trasferimenti a famiglie;999;Altri trasferimenti a famiglie n.a.c.;23/11/2021
4324;1;9999999;340;340;OMESSO NOMINATIVO NEL RISPETTO DELLA NORMATIVA SULLA PROTEZIONE DATI PERSONALI; ;INT.RETTA SCUOLA MATERNA SETTEMBRE OTTOBRE 2021;19/11/2021;3957;54;646;1;Spese correnti;4;Trasferimenti correnti;2;Trasferimenti correnti a Famiglie;5;Altri trasferimenti a famiglie;999;Altri trasferimenti a famiglie n.a.c.;23/11/2021
4325;1;9999999;100;100;OMESSO NOMINATIVO NEL RISPETTO DELLA NORMATIVA SULLA PROTEZIONE DATI PERSONALI; ;INT.RETTA SCUOLA MATERNA SETTEMBRE OTTOBRE 2021;19/11/2021;3757;0;991;1;Spese correnti;4;Trasferimenti correnti;2;Trasferimenti correnti a Famiglie;5;Altri trasferimenti a famiglie;999;Altri trasferimenti a famiglie n.a.c.;23/11/2021
4326;1;9999999;240;240;OMESSO NOMINATIVO NEL RISPETTO DELLA NORMATIVA SULLA PROTEZIONE DATI PERSONALI; ;INT.RETTA SCUOLA MATERNA SETTEMBRE OTTOBRE 2021;19/11/2021;3957;54;148;1;Spese correnti;4;Trasferimenti correnti;2;Trasferimenti correnti a Famiglie;5;Altri trasferimenti a famiglie;999;Altri trasferimenti a famiglie n.a.c.;23/11/2021
4327;1;9999999;200;200;OMESSO NOMINATIVO NEL RISPETTO DELLA NORMATIVA SULLA PROTEZIONE DATI PERSONALI; ;RETTE DOPOSCUOLA SETTEMBRE OTTOBRE 2021;19/11/2021;3757;0;904;1;Spese correnti;4;Trasferimenti correnti;2;Trasferimenti correnti a Famiglie;5;Altri trasferimenti a famiglie;999;Altri trasferimenti a famiglie n.a.c.;23/11/2021
4328;1;9999999;260;260;OMESSO NOMINATIVO NEL RISPETTO DELLA NORMATIVA SULLA PROTEZIONE DATI PERSONALI; ;CENTRO ESTIVO 2021 QUOTA;19/11/2021;3757;0;910;1;Spese correnti;4;Trasferimenti correnti;2;Trasferimenti correnti a Famiglie;5;Altri trasferimenti a famiglie;999;Altri trasferimenti a famiglie n.a.c.;23/11/2021
4329;1;9999999;175;175;OMESSO NOMINATIVO NEL RISPETTO DELLA NORMATIVA SULLA PROTEZIONE DATI PERSONALI; ;RETTE DOPOSCUOLA SETTEMBRE OTTOBRE 2021;19/11/2021;3757;0;905;1;Spese correnti;4;Trasferimenti correnti;2;Trasferimenti correnti a Famiglie;5;Altri trasferimenti a famiglie;999;Altri trasferimenti a famiglie n.a.c.;23/11/2021
4330;1;9999999;175;175;OMESSO NOMINATIVO NEL RISPETTO DELLA NORMATIVA SULLA PROTEZIONE DATI PERSONALI; ;RETTE DOPOSCUOLA SETTEMBRE OTTOBRE 2021;19/11/2021;3757;0;906;1;Spese correnti;4;Trasferimenti correnti;2;Trasferimenti correnti a Famiglie;5;Altri trasferimenti a famiglie;999;Altri trasferimenti a famiglie n.a.c.;23/11/2021
4331;1;9999999;75;75;OMESSO NOMINATIVO NEL RISPETTO DELLA NORMATIVA SULLA PROTEZIONE DATI PERSONALI; ;RETTE DOPOSCUOLA OTTOBRE 2021;19/11/2021;3757;0;984;1;Spese correnti;4;Trasferimenti correnti;2;Trasferimenti correnti a Famiglie;5;Altri trasferimenti a famiglie;999;Altri trasferimenti a famiglie n.a.c.;23/11/2021
4332;1;9999999;30;30;OMESSO NOMINATIVO NEL RISPETTO DELLA NORMATIVA SULLA PROTEZIONE DATI PERSONALI; ;RETTE DOPOSCUOLA  OTTOBRE 2021;19/11/2021;3757;0;983;1;Spese correnti;4;Trasferimenti correnti;2;Trasferimenti correnti a Famiglie;5;Altri trasferimenti a famiglie;999;Altri trasferimenti a famiglie n.a.c.;23/11/2021
4333;1;9999999;146,4;146,4;BADO S.R.L.;Z3B33AA0BF;SALDO Fatt.n. 1/146  del 04/11/2021 FORNITURA CASSETTIERA PER UFFICIO TECNICO - SETTORE EDILIZIA PRIVATA;23/11/2021;521;0;938;1;Spese correnti;3;Acquisto di beni e servizi;1;Acquisto di beni;2;Altri beni di consumo;999;Altri beni e materiali di consumo n.a.c.;25/11/2021
4334;1;9999999;140,3;140,3;VEDETTA 2 MONDIALPOL SPA;ZD032B120B;SALDO Fatt.n. VZ-13974  del 04/11/2021 OTTOBRE 2021  - SERVIZIO DI COLLEGAMENTO - ALLARME  - VIGILANZA NOTTURNA MAGAZZINO COMUNALE E VILLA FARSETTI;23/11/2021;548;0;688;1;Spese correnti;3;Acquisto di beni e servizi;2;Acquisto di servizi;9;Manutenzione ordinaria e riparazioni;8;Manutenzione ordinaria e riparazioni di beni immobili;25/11/2021
4335;1;9999999;179;179;MAGGIOLI SPA;Z03335A4C5;SALDO Fatt.n. 0005958343  del 31/10/2021 FORNITURA MANUALE PRATICO UFFICIALE D'ANAGRAFE;23/11/2021;621;0;864;1;Spese correnti;3;Acquisto di beni e servizi;1;Acquisto di beni;2;Altri beni di consumo;999;Altri beni e materiali di consumo n.a.c.;25/11/2021
4336;1;9999999;292,79;292,79;CONVERGE SPA;Z9D1FAB040;SALDO Fatt.n. 21306152  del 31/10/2021 NOLEGGIO APPARECCHIATURE MULTIFUNZIONE PER UTC -  PERIODO DAL 01-08-2021 AL 31-10-2021;23/11/2021;748;0;534;1;Spese correnti;3;Acquisto di beni e servizi;2;Acquisto di servizi;19;Servizi informatici e di telecomunicazioni;9;Servizi per le postazioni di lavoro e relativa manutenzione;25/11/2021
4337;1;9999999;109,8;109,8;JOLLY BOX SRL;Z642E237DF;SALDO Fatt.n. 5329-V0-2021  del 29/10/2021 NOLEGGIO DI CONTAINER NAVALE SC. ELEM. VETERNIGO - MESE DI OTTOBRE 2021;23/11/2021;1336;0;679;1;Spese correnti;3;Acquisto di beni e servizi;2;Acquisto di servizi;7;Utilizzo di beni di terzi;8;Noleggi di impianti e macchinari;25/11/2021
4338;1;9999999;118,58;118,58;PUNTO E VIRGOLA DI FRANZATO MONIA; ;SALDO Fatt.n. 16/PA  del 04/11/2021 FORNITURA LIBRI DI TESTO  PER SCUOLE  ELEMENTARI  A.S. 2021-2022;23/11/2021;1357;0;156;1;Spese correnti;4;Trasferimenti correnti;2;Trasferimenti correnti a Famiglie;5;Altri trasferimenti a famiglie;999;Altri trasferimenti a famiglie n.a.c.;25/11/2021
4339;1;9999999;1.460,01;1.460,01;MEB SRL;ZEB310D930;SALDO Fatt.n. 055111  del 29/10/2021 MATERIALE ELETTRICO VARIO PER MANUTENZIONI;23/11/2021;1938;0;407;1;Spese correnti;3;Acquisto di beni e servizi;2;Acquisto di servizi;9;Manutenzione ordinaria e riparazioni;4;Manutenzione ordinaria e riparazioni di impianti e macchinari;25/11/2021
4340;1;9999999;6.183,00;6.183,00;DISMA SAS DI ANGELO RIGO & C.;Z2B33311E4;SALDO Fatt.n. 071/2021  del 30/10/2021 SERVIZI BIBLIOTECARI COMPETENZA AGOSTO - OTTOBRE 2021;23/11/2021;2049;0;867;1;Spese correnti;3;Acquisto di beni e servizi;2;Acquisto di servizi;99;Altri servizi;999;Altri servizi diversi n.a.c.;25/11/2021
4341;1;9999999;53,64;53,64;EPIU' SRL - COSTRUIRE INSIEME;Z4230934B4;SALDO Fatt.n. 27939  del 31/10/2021 MATERIALI EDILI PER MANUTENZIONE;23/11/2021;3538;0;167;1;Spese correnti;3;Acquisto di beni e servizi;2;Acquisto di servizi;9;Manutenzione ordinaria e riparazioni;8;Manutenzione ordinaria e riparazioni di beni immobili;25/11/2021
4342;1;9999999;56,62;119,91;SONEPAR ITALIA  SPA;ZD1310D90B;SALDO Fatt.n. 0031266798  del 31/10/2021 MATERIALE ELETTRICO PER MANUTENZIONI;23/11/2021;3538;0;314;1;Spese correnti;3;Acquisto di beni e servizi;2;Acquisto di servizi;9;Manutenzione ordinaria e riparazioni;4;Manutenzione ordinaria e riparazioni di impianti e macchinari;25/11/2021
4342;2;9999999;63,29;119,91;SONEPAR ITALIA  SPA;ZD1310D90B;SALDO Fatt.n. 0031266799  del 31/10/2021 MATERIALE ELETTRICO PER MANUTENZIONI;23/11/2021;3538;0;314;1;Spese correnti;3;Acquisto di beni e servizi;2;Acquisto di servizi;9;Manutenzione ordinaria e riparazioni;4;Manutenzione ordinaria e riparazioni di impianti e macchinari;25/11/2021
4343;1;9999999;2.989,00;2.989,00;BADO S.R.L.;Z0E33AA062;SALDO Fatt.n. 1/145  del 04/11/2021  FORNITURA ARREDO PER UFFICIO TECNICO - SETTORE EDILIZIA PRIVATA.;23/11/2021;7420;5;939;2;Spese in conto capitale;2;Investimenti fissi lordi e acquisto di terreni;1;Beni materiali;99;Altri beni materiali;999;Altri beni materiali diversi;25/11/2021
4344;1;9999999;569;569;COMUNE DI DOLO; ;RETTA AGOSTO 2021 - OSPITE GRUPPO APPARTAMENTO;23/11/2021;4051;0;179;1;Spese correnti;4;Trasferimenti correnti;1;Trasferimenti correnti a Amministrazioni Pubbliche;2;Trasferimenti correnti a Amministrazioni Locali;3;Trasferimenti correnti a Comuni;25/11/2021
4345;1;9999999;115;115;OMESSO NOMINATIVO NEL RISPETTO DELLA NORMATIVA SULLA PROTEZIONE DATI PERSONALI; ;NOVEMBRE 2021 COMPETENZE TIROCINIO INSERIMENTO LAVORATIVO;23/11/2021;4157;0;355;1;Spese correnti;4;Trasferimenti correnti;2;Trasferimenti correnti a Famiglie;2;Interventi assistenziali;999;Altri assegni e sussidi assistenziali;25/11/2021
4347;1;9999999;106,01;106,01;MUFFATO CLAUDIO;Z6D31936E3;SALDO Fatt.n. 328  del 30/10/2021 MANUTENZIONE ATTREZZATURE PER VERDE;23/11/2021;2538;0;410;1;Spese correnti;3;Acquisto di beni e servizi;2;Acquisto di servizi;9;Manutenzione ordinaria e riparazioni;5;Manutenzione ordinaria e riparazioni di attrezzature;25/11/2021
4348;1;9999999;1.100,00;1.100,00;CIRCOLO ARCI  F. PIROLA; ;CONTRIBUTO PER ATTIVITA AMBITO RASSEGNE NOVEMBRE LETTERARIO /NOVEMBRE DONNA/MOSTRA DEL LIBRO 2021;24/11/2021;1859;0;977;1;Spese correnti;4;Trasferimenti correnti;4;Trasferimenti correnti a Istituzioni Sociali Private;1;Trasferimenti correnti a Istituzioni Sociali Private;1;Trasferimenti correnti a Istituzioni Sociali Private;26/11/2021
4349;1;9999999;1.100,00;1.100,00;ASSOCIAZIONE  LA CASA SULL' ALBERO; ;CONTRIBUTO PER ATTIVITA AMBITO RASSEGNE NOVEMBRE LETTERARIO /NOVEMBRE DONNA/MOSTRA DEL LIBRO 2021;24/11/2021;1859;0;978;1;Spese correnti;4;Trasferimenti correnti;4;Trasferimenti correnti a Istituzioni Sociali Private;1;Trasferimenti correnti a Istituzioni Sociali Private;1;Trasferimenti correnti a Istituzioni Sociali Private;26/11/2021
4350;1;9999999;300;300;A.P.S. PADOVADONNE; ;CONTRIBUTO PER ATTIVITA AMBITO RASSEGNE NOVEMBRE LETTERARIO /NOVEMBRE DONNA/MOSTRA DEL LIBRO 2021;24/11/2021;1859;0;979;1;Spese correnti;4;Trasferimenti correnti;4;Trasferimenti correnti a Istituzioni Sociali Private;1;Trasferimenti correnti a Istituzioni Sociali Private;1;Trasferimenti correnti a Istituzioni Sociali Private;26/11/2021
4351;1;9999999;1.850,00;1.850,00;A SE STANTE APS; ;CONTRIBUTO PER ATTIVITA AMBITO RASSEGNE NOVEMBRE LETTERARIO /NOVEMBRE DONNA/MOSTRA DEL LIBRO 2021;24/11/2021;1859;0;980;1;Spese correnti;4;Trasferimenti correnti;4;Trasferimenti correnti a Istituzioni Sociali Private;1;Trasferimenti correnti a Istituzioni Sociali Private;1;Trasferimenti correnti a Istituzioni Sociali Private;26/11/2021
4352;1;9999999;500;500;GAGLIARDI DANIELE; ;RIMBORSO SPESE TIROCINIO GEOMETRA A SEGUITO ACCORDO-QUADRO;24/11/2021;541;0;1012;1;Spese correnti;3;Acquisto di beni e servizi;2;Acquisto di servizi;12;Lavoro flessibile, quota LSU e acquisto di servizi da agenzie di lavoro interinale;999;Altre forme di lavoro flessibile n.a.c.;26/11/2021
4353;1;9999999;348,85;1.143,90;ABACO S.P.A.;766214493F;SALDO Fatt.n. 2021120005357  del 09/11/2021 AGGIO CUP - OCCUPAZIONE SUOLO PUBBLICO - SU INCASSI ENTE RENDICONTO DELLA GESTIONE AL 31/10/2021 CIG 766214493F;24/11/2021;332;0;1228;1;Spese correnti;3;Acquisto di beni e servizi;2;Acquisto di servizi;3;Aggi di riscossione;999;Altri aggi di riscossione n.a.c.;26/11/2021
4353;2;9999999;795,05;1.143,90;ABACO S.P.A.;766214493F;SALDO Fatt.n. 2021120005355  del 09/11/2021 AGGIO CUP - ESPOSIZIONI PUBBLI CITARIE - SU INCASSI ENTE RENDICONTO DELLA GESTIONE DAL 01/10/2021 AL 31/10/2021 CIG 766214493F;24/11/2021;332;0;1228;1;Spese correnti;3;Acquisto di beni e servizi;2;Acquisto di servizi;3;Aggi di riscossione;999;Altri aggi di riscossione n.a.c.;26/11/2021
4354;1;9999999;102,8;102,8;ABACO S.P.A.;766214493F;SALDO Fatt.n. 2021140003856  del 05/11/2021 RISCOSSIONE COATTIVA ICI IMU TASI LOTTO 10- 11-12-13-14-15 RENDICONTO DELLA GESTIONE AL 31/10/2021 CIG 766214493F;24/11/2021;332;0;567;1;Spese correnti;3;Acquisto di beni e servizi;2;Acquisto di servizi;3;Aggi di riscossione;999;Altri aggi di riscossione n.a.c.;26/11/2021
4355;1;9999999;74,9;74,9;ABACO S.P.A.;5325258DE8;SALDO Fatt.n. 2021140003855  del 05/11/2021 AGGIO RISCOSSIONE COATTIVA ICI IMU LOTTO 2  RENDICONTO DELLA GESTIONE AL 31/10/2021 C.I.G. 5325258DE8;24/11/2021;332;0;671;1;Spese correnti;3;Acquisto di beni e servizi;2;Acquisto di servizi;3;Aggi di riscossione;999;Altri aggi di riscossione n.a.c.;26/11/2021
4356;1;9999999;507,52;507,52;GRAFICHE E. GASPARI SRL;Z003337FE1;SALDO Fatt.n. 13850/S  del 30/10/2021 FORNITURA AVVISI DI RICEVIMENTO POSTALI E BUSTE INTESTATE CON LOGO COMUNALE;24/11/2021;121;6;846;1;Spese correnti;3;Acquisto di beni e servizi;1;Acquisto di beni;2;Altri beni di consumo;14;Stampati specialistici;26/11/2021
4357;1;9999999;1.087,14;1.087,14;ERREBIAN SPA;ZA733540D8;SALDO Fatt.n. V2/586304  del 29/10/2021 FORNITURA MATERIALE DI CANCELLERIA PER GLI UFFICI COMUNALI 2021;24/11/2021;121;6;865;1;Spese correnti;3;Acquisto di beni e servizi;1;Acquisto di beni;2;Altri beni di consumo;1;Carta, cancelleria e stampati;26/11/2021
4358;1;9999999;660;660;HALLEY VENETO SRL;Z422F31B66;ACCONTO Fatt.n. 1/211409  del 10/11/2021 PROGETTO SWITCH OFF PAGOPA ANNO 2021;24/11/2021;740;0;1324;1;Spese correnti;3;Acquisto di beni e servizi;2;Acquisto di servizi;11;Prestazioni professionali e specialistiche;999;Altre prestazioni professionali e specialistiche n.a.c.;26/11/2021
4359;1;9999999;312,66;312,66;KYOCERA DOCUMENT SOLUTIONS ITALIA SPA;ZCC25B593E;SALDO Fatt.n. 1010724388  del 16/11/2021 FOTOCOPIATRICI 29 L3 - 36 MESI - CANONE  PERIODO 15.08.2021 al 14.11.2021;24/11/2021;748;0;106;1;Spese correnti;3;Acquisto di beni e servizi;2;Acquisto di servizi;19;Servizi informatici e di telecomunicazioni;7;Servizi di gestione documentale;26/11/2021
4360;1;9999999;4.178,35;4.178,35;INKOM ENGINEERING SRL;Z9933BA951;SALDO Fatt.n. NV02_634  del 15/11/2021  CANONE TRIENNALE SOFTWARE ANTIVIRUS;24/11/2021;748;0;959;1;Spese correnti;3;Acquisto di beni e servizi;2;Acquisto di servizi;19;Servizi informatici e di telecomunicazioni;6;Servizi di sicurezza;26/11/2021
4361;1;9999999;3.050,00;3.050,00;HALLEY VENETO SRL;Z3F246FD4E;SALDO Fatt.n. 1/211387  del 08/11/2021 ATTIVITA PROGETTO MOC MODELLO ORGANIZZATIVO COMUNALE  ANNO 2021;24/11/2021;748;0;860;1;Spese correnti;3;Acquisto di beni e servizi;2;Acquisto di servizi;19;Servizi informatici e di telecomunicazioni;11;Processi trasversali alle classi di servizio;26/11/2021
4362;1;9999999;3.000,00;3.000,00;HALLEY VENETO SRL;Z422F31B66;SALDO Fatt.n. 1/211409  del 10/11/2021 PROGETTO SWITCH OFF PAGOPA ANNO 2021;24/11/2021;748;0;1017;1;Spese correnti;3;Acquisto di beni e servizi;2;Acquisto di servizi;19;Servizi informatici e di telecomunicazioni;2;Assistenza all'utente e formazione;26/11/2021
4363;1;9999999;76,21;76,21;L'ELIOTECNICA DI GAMBARO GIANLUCA; ;SALDO Fatt.n. 182  del 15/11/2021 FORNITURA LIBRI DI TESTO  PER SCUOLE  ELEMENTARI  A.S. 2021-2022;24/11/2021;1357;0;156;1;Spese correnti;4;Trasferimenti correnti;2;Trasferimenti correnti a Famiglie;5;Altri trasferimenti a famiglie;999;Altri trasferimenti a famiglie n.a.c.;26/11/2021
4364;1;9999999;39,77;262,51;IDRONORD SRL;ZAF3049734;SALDO Fatt.n. 3162  del 31/10/2021 MATERIALE EDILE - STRADALE PER MANUTENZIONI;24/11/2021;3538;0;49;1;Spese correnti;3;Acquisto di beni e servizi;2;Acquisto di servizi;9;Manutenzione ordinaria e riparazioni;8;Manutenzione ordinaria e riparazioni di beni immobili;26/11/2021
4364;2;9999999;222,74;262,51;IDRONORD SRL;ZAF3049734;SALDO Fatt.n. 3070  del 27/10/2021 MATERIALE EDILE - STRADALE  PER MANUTENZIONI;24/11/2021;3538;0;49;1;Spese correnti;3;Acquisto di beni e servizi;2;Acquisto di servizi;9;Manutenzione ordinaria e riparazioni;8;Manutenzione ordinaria e riparazioni di beni immobili;26/11/2021
4365;1;9999999;3.172,00;3.172,00;STUDIO ASSOCIATO BETTINARDI CESTER ARCHEOLOGI;Z3D3106994;SALDO Fatt.n. 46/2021  del 31/10/2021  INDAGINI PRELIMINARI DI VERIFICA INTERESSE ARCHEOLOGICO PER INTERVENTO DI REALIZZAZIONE DI UN TRATTO DI PISTA  CICLO - PEDONALE tLATO SUD S.P.30 VIA CALTANA, TRATTO DAL CIMITERO A VIA PIANIGA;24/11/2021;8563;0;1372;2;Spese in conto capitale;2;Investimenti fissi lordi e acquisto di terreni;1;Beni materiali;9;Beni immobili;12;Infrastrutture stradali;26/11/2021
4366;1;9999999;4.445,38;25.690,80;SODEXO ITALIA SPA;78886743B9;SALDO Fatt.n. 6400046178  del 31/10/2021 OTTOBRE 2021 - PASTI SCUOLE MATERNE BAMBINI E INSEGNANTI;24/11/2021;1344;0;543;1;Spese correnti;3;Acquisto di beni e servizi;2;Acquisto di servizi;15;Contratti di servizio pubblico;6;Contratti di servizio per le mense scolastiche;26/11/2021
4366;2;9999999;21.245,42;25.690,80;SODEXO ITALIA SPA;78886743B9;SALDO Fatt.n. 6400046179  del 31/10/2021 OTTOBRE 2021 - PASTI TRASPORTATI SCUOLE BAMBINI E INSEGNANTI;24/11/2021;1344;0;543;1;Spese correnti;3;Acquisto di beni e servizi;2;Acquisto di servizi;15;Contratti di servizio pubblico;6;Contratti di servizio per le mense scolastiche;26/11/2021
4367;1;9999999;1.848,00;20.176,93;BONAVENTURA EXPRESS SRL;8704892021;SALDO Fatt.n. 194PA  del 30/10/2021 SANIFICAZIONE PER EMERGENZA COVID -19 - TRASPORTO SCOLASTICO OTTOBRE 2021;24/11/2021;1344;0;388;1;Spese correnti;3;Acquisto di beni e servizi;2;Acquisto di servizi;15;Contratti di servizio pubblico;2;Contratti di servizio di trasporto scolastico;26/11/2021
4367;2;9999999;18.328,93;20.176,93;BONAVENTURA EXPRESS SRL;8704892021;SALDO Fatt.n. 193PA  del 30/10/2021 OTTOBRE 2021 - TRASPORTO SCOLASTICO;24/11/2021;1344;0;388;1;Spese correnti;3;Acquisto di beni e servizi;2;Acquisto di servizi;15;Contratti di servizio pubblico;2;Contratti di servizio di trasporto scolastico;26/11/2021
4368;1;9999999;30.406,09;30.406,09;C.E.V. - CONSORZIO EDILI VENETI SOC.COOPERATIVA;8550907FAB;SALDO Fatt.n. FATTPA 149_21  del 08/11/2021 MANUTENZIONE STRAORDINARIA E IMPERMEABILIZZAZIONE MANTI DI COPERTURA SCUOLA PRIMARIA E SECONDARIA DEL CAPOLUOGO - CERTIFICATO DI PAGAMENTO N. 2 DEL 21.10.2021;24/11/2021;7630;0;1236;2;Spese in conto capitale;2;Investimenti fissi lordi e acquisto di terreni;1;Beni materiali;9;Beni immobili;3;Fabbricati ad uso scolastico;26/11/2021
4369;1;9999999;247,41;247,41;VODAFONE ITALIA SPA;Z6C2BED875;SALDO Fatt.n. AN20283577  del 09/11/2021 PERIODO 05 SETTEMBRE - 03 NOVEMBRE 2021 - TELEFONIA;24/11/2021;134;32;310;1;Spese correnti;3;Acquisto di beni e servizi;2;Acquisto di servizi;5;Utenze e canoni;2;Telefonia mobile;26/11/2021
4370;1;9999999;59,62;59,62;VODAFONE ITALIA SPA;Z6C2BED875;SALDO Fatt.n. AN20283149  del 09/11/2021 PERIODO 05 SETTEMBRE - 03 NOVEMBRE 2021 - TELEFONIA;24/11/2021;1134;30;311;1;Spese correnti;3;Acquisto di beni e servizi;2;Acquisto di servizi;5;Utenze e canoni;1;Telefonia fissa;26/11/2021
4371;1;9999999;1.167,78;1.167,78;VODAFONE ITALIA SPA;Z6C2BED875;SALDO Fatt.n. AN20282996  del 09/11/2021 PERIODO 05 SETTEMBRE - 03 NOVEMBRE 2021 - TELEFONIA;24/11/2021;134;32;310;1;Spese correnti;3;Acquisto di beni e servizi;2;Acquisto di servizi;5;Utenze e canoni;2;Telefonia mobile;26/11/2021
4372;1;9999999;933,59;933,59;VODAFONE ITALIA SPA;Z6C2BED875;SALDO Fatt.n. AN20283073  del 09/11/2021 PERIODO 05 SETTEMBRE - 03 NOVEMBRE 2021 - TELEFONIA;24/11/2021;1134;30;311;1;Spese correnti;3;Acquisto di beni e servizi;2;Acquisto di servizi;5;Utenze e canoni;1;Telefonia fissa;26/11/2021
4374;1;9999999;950;950;OMESSO NOMINATIVO NEL RISPETTO DELLA NORMATIVA SULLA PROTEZIONE DATI PERSONALI; ;NOVEMBRE 2021 INTEGRAZIONE RETTA CASA DI RIPOSO LA SALUTE DI FIESSO DARTICO.;25/11/2021;3844;0;434;1;Spese correnti;3;Acquisto di beni e servizi;2;Acquisto di servizi;15;Contratti di servizio pubblico;8;Contratti di servizio di assistenza sociale residenziale e semiresidenziale;29/11/2021
4375;1;9999999;365;365;OMESSO NOMINATIVO NEL RISPETTO DELLA NORMATIVA SULLA PROTEZIONE DATI PERSONALI; ;NOVEMBRE 2021  INTEGRAZIONE RETTA CASA DI RIPOSO DON ORIONE DI TREBASELEGHE.;25/11/2021;3844;0;415;1;Spese correnti;3;Acquisto di beni e servizi;2;Acquisto di servizi;15;Contratti di servizio pubblico;12;Contratti di servizio per la gestione delle aree di sosta a pagamento;29/11/2021
4376;1;9999999;506;506;OMESSO NOMINATIVO NEL RISPETTO DELLA NORMATIVA SULLA PROTEZIONE DATI PERSONALI; ;NOVEMBRE 2021 INTEGRAZIONE RETTA CASA DI RIPOSO RELAXXI DI NOALE;25/11/2021;3844;0;437;1;Spese correnti;3;Acquisto di beni e servizi;2;Acquisto di servizi;15;Contratti di servizio pubblico;8;Contratti di servizio di assistenza sociale residenziale e semiresidenziale;29/11/2021
4377;1;9999999;900;900;OMESSO NOMINATIVO NEL RISPETTO DELLA NORMATIVA SULLA PROTEZIONE DATI PERSONALI; ;NOVEMBRE 2021 INTEGRAZIONE RETTA CASA DI RIPOSO IPAB L.MARIUTTO DI MIRANO;25/11/2021;3844;0;574;1;Spese correnti;3;Acquisto di beni e servizi;2;Acquisto di servizi;15;Contratti di servizio pubblico;8;Contratti di servizio di assistenza sociale residenziale e semiresidenziale;29/11/2021
4378;1;9999999;819,73;819,73;OMESSO NOMINATIVO NEL RISPETTO DELLA NORMATIVA SULLA PROTEZIONE DATI PERSONALI; ;NOVEMBRE 2021 INTEGRAZIONE RETTA CASA DI RIPOSO IPAB L.MARIUTTO DI MIRANO ANNO 2021;25/11/2021;3844;0;709;1;Spese correnti;3;Acquisto di beni e servizi;2;Acquisto di servizi;15;Contratti di servizio pubblico;8;Contratti di servizio di assistenza sociale residenziale e semiresidenziale;29/11/2021
4379;1;9999999;700;700;OMESSO NOMINATIVO NEL RISPETTO DELLA NORMATIVA SULLA PROTEZIONE DATI PERSONALI; ;NOVEMBRE 2021 INTEGRAZIONE RETTA CASA DI RIPOSO LA SALUTE DI FIESSO DARTICO;25/11/2021;3844;0;435;1;Spese correnti;3;Acquisto di beni e servizi;2;Acquisto di servizi;15;Contratti di servizio pubblico;8;Contratti di servizio di assistenza sociale residenziale e semiresidenziale;29/11/2021
4380;1;9999999;600;600;OMESSO NOMINATIVO NEL RISPETTO DELLA NORMATIVA SULLA PROTEZIONE DATI PERSONALI; ;NOVEMBRE 2021 INTEGRAZIONE RETTA CASA DI RIPOSO RELAXXI DI NOALE.;25/11/2021;3844;0;572;1;Spese correnti;3;Acquisto di beni e servizi;2;Acquisto di servizi;15;Contratti di servizio pubblico;8;Contratti di servizio di assistenza sociale residenziale e semiresidenziale;29/11/2021
4381;1;9999999;41,24;280,13;ENEL ENERGIA SPA;8426072694;SALDO Fatt.n. 004174036317  del 08/11/2021 OTTOBRE 2021 - CONSUMI PARCHEGGIO C.C. PRISMA CASELLE;25/11/2021;134;31;111;1;Spese correnti;3;Acquisto di beni e servizi;2;Acquisto di servizi;5;Utenze e canoni;4;Energia elettrica;29/11/2021
4381;2;9999999;42,13;280,13;ENEL ENERGIA SPA;8426072694;SALDO Fatt.n. 004174036320  del 08/11/2021 OTTOBRE 2021 - CONSUM MERCATO CALTANA;25/11/2021;134;31;111;1;Spese correnti;3;Acquisto di beni e servizi;2;Acquisto di servizi;5;Utenze e canoni;4;Energia elettrica;29/11/2021
4381;3;9999999;60,27;280,13;ENEL ENERGIA SPA;8426072694;SALDO Fatt.n. 004174036291  del 08/11/2021 OTTOBRE 2021 - CONSUMI PARCHEGGIO OVALE;25/11/2021;134;31;111;1;Spese correnti;3;Acquisto di beni e servizi;2;Acquisto di servizi;5;Utenze e canoni;4;Energia elettrica;29/11/2021
4381;4;9999999;136,49;280,13;ENEL ENERGIA SPA;8426072694;SALDO Fatt.n. 004180967739  del 16/11/2021 OTTOBRE 2021 - CONSUMI  ALLOGGIO VIA OLIMPIA SMS;25/11/2021;134;31;111;1;Spese correnti;3;Acquisto di beni e servizi;2;Acquisto di servizi;5;Utenze e canoni;4;Energia elettrica;29/11/2021
4382;1;9999999;24,94;287,29;ENEL ENERGIA SPA;8426072694;SALDO Fatt.n. 004174036260  del 08/11/2021 OTTOBRE 2021 - CONSUMI ALLOGGIO VIA DON GALLERANI CALTANA;25/11/2021;134;31;111;1;Spese correnti;3;Acquisto di beni e servizi;2;Acquisto di servizi;5;Utenze e canoni;4;Energia elettrica;29/11/2021
4382;2;9999999;50,22;287,29;ENEL ENERGIA SPA;8426072694;SALDO Fatt.n. 004174036278  del 08/11/2021 OTTOBRE 2021 - CONSUMI FONTANA VETERNIGO;25/11/2021;134;31;111;1;Spese correnti;3;Acquisto di beni e servizi;2;Acquisto di servizi;5;Utenze e canoni;4;Energia elettrica;29/11/2021
4382;3;9999999;56,23;287,29;ENEL ENERGIA SPA;8426072694;SALDO Fatt.n. 004174036219  del 08/11/2021 OTTOBRE 2021 - CONSUMI MERCATO SMS;25/11/2021;134;31;111;1;Spese correnti;3;Acquisto di beni e servizi;2;Acquisto di servizi;5;Utenze e canoni;4;Energia elettrica;29/11/2021
4382;4;9999999;73,14;287,29;ENEL ENERGIA SPA;8426072694;SALDO Fatt.n. 004174036211  del 08/11/2021 OTTOBRE 2021 - CONSUMI MERCATO CASELLE;25/11/2021;134;31;111;1;Spese correnti;3;Acquisto di beni e servizi;2;Acquisto di servizi;5;Utenze e canoni;4;Energia elettrica;29/11/2021
4382;5;9999999;82,76;287,29;ENEL ENERGIA SPA;8426072694;SALDO Fatt.n. 004174036287  del 08/11/2021 OTTOBRE 2021 - CONSUMI P.ZZA S.D.A. CALTANA;25/11/2021;134;31;111;1;Spese correnti;3;Acquisto di beni e servizi;2;Acquisto di servizi;5;Utenze e canoni;4;Energia elettrica;29/11/2021
4383;1;9999999;963,63;963,63;ENEL ENERGIA SPA;8426072694;SALDO Fatt.n. 004174036240  del 08/11/2021 OTTOBRE 2021 - CONSUMI SEDE MUNICIPALE;25/11/2021;134;31;111;1;Spese correnti;3;Acquisto di beni e servizi;2;Acquisto di servizi;5;Utenze e canoni;4;Energia elettrica;29/11/2021
4384;1;9999999;5,46;5,46;ENEL ENERGIA SPA;8426072694;ACCONTO Fatt.n. 004174036307  del 08/11/2021 OTTOBRE 2021 - CONSUMI CIMITERO VETERNIGO - LAMPADE VOTIVE;25/11/2021;134;31;111;1;Spese correnti;3;Acquisto di beni e servizi;2;Acquisto di servizi;5;Utenze e canoni;4;Energia elettrica;29/11/2021
4385;1;9999999;5,9;5,9;ENEL ENERGIA SPA;8426072694;ACCONTO Fatt.n. 004174036215  del 08/11/2021 OTTOBRE 2021 - CONSUMI CIMITERO CASELLE - LAMPADE VOTIVE;25/11/2021;134;31;111;1;Spese correnti;3;Acquisto di beni e servizi;2;Acquisto di servizi;5;Utenze e canoni;4;Energia elettrica;29/11/2021
4386;1;9999999;4,35;4,35;ENEL ENERGIA SPA;8426072694;ACCONTO Fatt.n. 004174036302  del 08/11/2021 OTTOBRE 2021 - CONSUMI CIMITERO S.ANGELO - LAMPADE VOTIVE;25/11/2021;134;31;111;1;Spese correnti;3;Acquisto di beni e servizi;2;Acquisto di servizi;5;Utenze e canoni;4;Energia elettrica;29/11/2021
4387;1;9999999;5,39;5,39;ENEL ENERGIA SPA;8426072694;ACCONTO Fatt.n. 004174036232  del 08/11/2021 OTTOBRE 2021 - CONSUMI CIMITERO SMS - LAMPADE VOTIVE;25/11/2021;134;31;111;1;Spese correnti;3;Acquisto di beni e servizi;2;Acquisto di servizi;5;Utenze e canoni;4;Energia elettrica;29/11/2021
4388;1;9999999;5,2;5,2;ENEL ENERGIA SPA;8426072694;ACCONTO Fatt.n. 004174036244  del 08/11/2021 OTTOBRE 2021 - CONSUMI CIMITERO CALTANA - LAMPADE VOTIVE;25/11/2021;134;31;111;1;Spese correnti;3;Acquisto di beni e servizi;2;Acquisto di servizi;5;Utenze e canoni;4;Energia elettrica;29/11/2021
4389;1;9999999;34,34;1.836,63;ENEL ENERGIA SPA;8426072694;SALDO Fatt.n. 004174036273  del 08/11/2021 OTTOBRE 2021 - CONSUMI SC. ELEM. SMS;25/11/2021;1334;30;112;1;Spese correnti;3;Acquisto di beni e servizi;2;Acquisto di servizi;5;Utenze e canoni;4;Energia elettrica;29/11/2021
4389;2;9999999;217,92;1.836,63;ENEL ENERGIA SPA;8426072694;SALDO Fatt.n. 004174036277  del 08/11/2021 OTTOBRE 2021 - CONSUMI SC, ELEM. CASELLE;25/11/2021;1334;30;112;1;Spese correnti;3;Acquisto di beni e servizi;2;Acquisto di servizi;5;Utenze e canoni;4;Energia elettrica;29/11/2021
4389;3;9999999;308,09;1.836,63;ENEL ENERGIA SPA;8426072694;SALDO Fatt.n. 004174036301  del 08/11/2021 OTTOBRE 2021 - CONSUMI  SC. ELEM. CALTANA;25/11/2021;1334;30;112;1;Spese correnti;3;Acquisto di beni e servizi;2;Acquisto di servizi;5;Utenze e canoni;4;Energia elettrica;29/11/2021
4389;4;9999999;1.276,28;1.836,63;ENEL ENERGIA SPA;8426072694;SALDO Fatt.n. 004177110884  del 12/11/2021 OTTOBRE 2021 - CONSUMI SC. MEDIA SMS;25/11/2021;1334;30;112;1;Spese correnti;3;Acquisto di beni e servizi;2;Acquisto di servizi;5;Utenze e canoni;4;Energia elettrica;29/11/2021
4390;1;9999999;179;179;ENEL ENERGIA SPA;8426072694;ACCONTO Fatt.n. 004174036217  del 08/11/2021 OTTOBRE 2021 - CONSUMI SC. ELEM-PALESTRA VETERNIGO;25/11/2021;1334;30;112;1;Spese correnti;3;Acquisto di beni e servizi;2;Acquisto di servizi;5;Utenze e canoni;4;Energia elettrica;29/11/2021
4391;1;9999999;294,69;294,69;ENEL ENERGIA SPA;8426072694;ACCONTO Fatt.n. 004174036217  del 08/11/2021 OTTOBRE 2021 - CONSUMI SC. ELEM-PALESTRA VETERNIGO;25/11/2021;1334;30;112;1;Spese correnti;3;Acquisto di beni e servizi;2;Acquisto di servizi;5;Utenze e canoni;4;Energia elettrica;29/11/2021
4392;1;9999999;246,93;246,93;ENEL ENERGIA SPA;8426072694;ACCONTO Fatt.n. 004174036292  del 08/11/2021 OTTOBRE 2021 - CONSUMI PALESTRA CALTANA;25/11/2021;1334;30;112;1;Spese correnti;3;Acquisto di beni e servizi;2;Acquisto di servizi;5;Utenze e canoni;4;Energia elettrica;29/11/2021
4393;1;9999999;84,07;84,07;ENEL ENERGIA SPA;8426072694;ACCONTO Fatt.n. 004174036270  del 08/11/2021 OTTOBRE 2021 - CONSUMI PALESTRA CASELLE;25/11/2021;1334;30;112;1;Spese correnti;3;Acquisto di beni e servizi;2;Acquisto di servizi;5;Utenze e canoni;4;Energia elettrica;29/11/2021
4394;1;9999999;181;181;ENEL ENERGIA SPA;8426072694;ACCONTO Fatt.n. 004178994184  del 14/11/2021 OTTOBRE 2021 - CONSUMI SC. ELEM - PALESTRA - ASILO S.ANGELO;25/11/2021;1334;30;112;1;Spese correnti;3;Acquisto di beni e servizi;2;Acquisto di servizi;5;Utenze e canoni;4;Energia elettrica;29/11/2021
4395;1;9999999;544,55;544,55;ENEL ENERGIA SPA;8426072694;ACCONTO Fatt.n. 004178994184  del 14/11/2021 OTTOBRE 2021 - CONSUMI SC. ELEM - PALESTRA - ASILO S.ANGELO;25/11/2021;1334;30;112;1;Spese correnti;3;Acquisto di beni e servizi;2;Acquisto di servizi;5;Utenze e canoni;4;Energia elettrica;29/11/2021
4396;1;9999999;147;147;ENEL ENERGIA SPA;8426072694;ACCONTO Fatt.n. 004174036282  del 08/11/2021 OTTOBRE 2021 - CONSUMI  SC. ELEM-PALESTRA STIGLIANO;25/11/2021;1334;30;112;1;Spese correnti;3;Acquisto di beni e servizi;2;Acquisto di servizi;5;Utenze e canoni;4;Energia elettrica;29/11/2021
4397;1;9999999;126,81;126,81;ENEL ENERGIA SPA;8426072694;ACCONTO Fatt.n. 004174036282  del 08/11/2021 OTTOBRE 2021 - CONSUMI  SC. ELEM-PALESTRA STIGLIANO;25/11/2021;1334;30;112;1;Spese correnti;3;Acquisto di beni e servizi;2;Acquisto di servizi;5;Utenze e canoni;4;Energia elettrica;29/11/2021
4398;1;9999999;122,69;122,69;ENEL ENERGIA SPA;8426072694;ACCONTO Fatt.n. 004174036325  del 08/11/2021 OTTOBRE 2021 - CONSUMI PALESTRA SMS;25/11/2021;1334;30;112;1;Spese correnti;3;Acquisto di beni e servizi;2;Acquisto di servizi;5;Utenze e canoni;4;Energia elettrica;29/11/2021
4399;1;9999999;32,4;32,4;ENEL ENERGIA SPA;8426072694;SALDO Fatt.n. 004174036337  del 08/11/2021 OTTOBRE 2021 - CONSUMI IMP. SPORT. CASELLE;25/11/2021;1934;0;114;1;Spese correnti;3;Acquisto di beni e servizi;2;Acquisto di servizi;5;Utenze e canoni;4;Energia elettrica;29/11/2021
4400;1;9999999;142,24;142,24;ENEL ENERGIA SPA;8426072694;SALDO Fatt.n. 004174036305  del 08/11/2021 OTTOBRE 2021 - CONSUMI IMP. SPORT. SMS;25/11/2021;1934;0;114;1;Spese correnti;3;Acquisto di beni e servizi;2;Acquisto di servizi;5;Utenze e canoni;4;Energia elettrica;29/11/2021
4401;1;9999999;93,27;93,27;ENEL ENERGIA SPA;8426072694;SALDO Fatt.n. 004174036243  del 08/11/2021 OTTOBRE 2021 - CONSUMI IMP.SPORT. CASELLE ( PARROCCHIA );25/11/2021;1934;0;114;1;Spese correnti;3;Acquisto di beni e servizi;2;Acquisto di servizi;5;Utenze e canoni;4;Energia elettrica;29/11/2021
4402;1;9999999;179;179;ENEL ENERGIA SPA;8426072694;SALDO Fatt.n. 004174036217  del 08/11/2021 OTTOBRE 2021 - CONSUMI SC. ELEM-PALESTRA VETERNIGO;25/11/2021;1934;0;114;1;Spese correnti;3;Acquisto di beni e servizi;2;Acquisto di servizi;5;Utenze e canoni;4;Energia elettrica;29/11/2021
4403;1;9999999;246,93;246,93;ENEL ENERGIA SPA;8426072694;SALDO Fatt.n. 004174036292  del 08/11/2021 OTTOBRE 2021 - CONSUMI PALESTRA CALTANA;25/11/2021;1934;0;114;1;Spese correnti;3;Acquisto di beni e servizi;2;Acquisto di servizi;5;Utenze e canoni;4;Energia elettrica;29/11/2021
4404;1;9999999;84,06;84,06;ENEL ENERGIA SPA;8426072694;SALDO Fatt.n. 004174036270  del 08/11/2021 OTTOBRE 2021 - CONSUMI PALESTRA CASELLE;25/11/2021;1934;0;114;1;Spese correnti;3;Acquisto di beni e servizi;2;Acquisto di servizi;5;Utenze e canoni;4;Energia elettrica;29/11/2021
4405;1;9999999;181;181;ENEL ENERGIA SPA;8426072694;SALDO Fatt.n. 004178994184  del 14/11/2021 OTTOBRE 2021 - CONSUMI SC. ELEM - PALESTRA - ASILO S.ANGELO;25/11/2021;1934;0;114;1;Spese correnti;3;Acquisto di beni e servizi;2;Acquisto di servizi;5;Utenze e canoni;4;Energia elettrica;29/11/2021
